{"text_format":"1","workbook":"xlsx","n_sheets":34,"sheets":["modProv","Инструкция","Справочная информация","Лог обновления","Титульный","Список ЦСХВС (не дифф)","ЦСХВС доступ (не дифф)","Список ЦСХВС (дифф)","Ссылки на публикации","Комментарии","Проверка","AllSheetsInThisWorkbook","TEHSHEET","et_union_hor","et_union_vert","modInfo","modReestr","modfrmReestr","modUpdTemplMain","REESTR_ORG","modClassifierValidate","modHyp","modList00","modList01","modList02","modList03","modList04","modfrmDateChoose","modComm","modThisWorkbook","REESTR_MO","modfrmReestrMR","modfrmRegion","modfrmCheckUpdates"],"not_rendered":{"charts":0,"images":20,"macros":1,"external_links":0,"defined_names":116,"comments":1,"pivot_tables":0},"unopened":[],"bounds":{"document_bytes":16777216,"sheet_cells":100000,"rows_first":2000,"rows_last":500,"rows_between":2000,"halvings":0,"cell_chars":16384,"cell_head_chars":4096},"cells_cut":0,"cells_raw":0,"read":"whole","date_system":"1900"}

{"sheet":"modProv","index":0,"n_rows":0,"n_cols":0,"rows_kept":0,"cut":false,"hidden":true,"merged":[]}

{"sheet":"Инструкция","index":1,"n_rows":109,"n_cols":27,"rows_kept":109,"cut":false,"hidden":false,"merged":[[79,4,79,23],[86,4,86,7],[83,4,83,23],[85,4,85,23],[84,4,84,23],[86,8,86,23],[1,1,1,6],[2,1,2,2],[4,1,4,24],[6,4,18,23],[20,5,20,12],[20,15,20,23],[21,5,21,12],[21,15,21,23],[34,4,38,23],[39,4,39,23],[40,4,44,23],[45,4,56,23],[22,15,22,22],[69,4,69,23],[81,4,81,23],[70,4,70,23],[57,4,57,6],[57,7,57,23],[58,4,58,6],[58,7,58,23],[59,4,59,6],[59,7,59,23],[71,5,71,23],[72,5,72,23],[73,5,73,23],[74,5,74,23],[78,4,78,23],[106,5,106,18],[108,5,108,23],[60,7,60,23],[87,4,87,6],[87,7,87,23],[88,4,88,6],[88,7,88,23],[75,5,75,23],[89,4,89,6],[89,7,89,23],[90,7,90,23],[104,4,104,23],[82,4,82,23],[80,4,80,23],[76,5,76,23],[77,4,77,23]]}
[null,null,null,null,null,null,null,null,null,null,null,null,null,null,null,null,null,null,null,null,null,null,null,null,null,null," (требуется обновление)"]
[null,{"$f":"\"Код шаблона: \" & GetCode()","v":"Код шаблона: JKH.OPEN.INFO.QUARTER.HVS"}]
[null,{"$f":"\"Версия \" & GetVersion()","v":"Версия 6.1.2"}]
[]
[null,{"$f":"\"Информация о наличии (отсутствии) технической возможности подключения к централизованной системе \"&TSphere_full&\", а также о регистрации и ходе реализации заявок о подключении к централизованной системе \"&TSphere_full","v":"Информация о наличии (отсутствии) технической возможности подключения к централизованной системе холодного водоснабжения, а также о регистрации и ходе реализации заявок о подключении к централизованной системе холодного водоснабжения"}]
[]
[null,null,null,null,"• На рабочем месте должен быть установлен MS Office 2003 SP3, 2007 SP3, 2010 с полной версией MS Excel\n\n• Макросы во время работы должны быть включены (!)\n\n• Для корректной работы отчёта требуется выбрать низкий уровень безопасности\n(В меню MS Excel 2003: Сервис | Макрос | Безопасность | выбрать пункт «Низкая безопасность» | OK)\n(В меню MS Excel 2007/2010: Параметры Excel | Центр управления безопасностью | Параметры центра управления безопасностью | Параметры макросов | Включить все макросы | ОК)\n\n• Если Вы работаете в табличном процессоре MS Excel 2007 и выше, то можете использовать для работы формат XLSM (Книга Excel с поддержкой макросов). При работе в формате XLSM заметно быстрее происходит сохранение файла, а также уменьшается размер по сравнению с форматом XLS\n\n• Не рекомендуется снимать защиту с листов и каким-либо образом модифицировать защищаемые формулы и расчётные поля, в противном случае, отчёт будет отклонён системой\n\n• При сохранении не следует выбирать формат XLSX (Книга Excel), так как в указанном формате макросы, необходимые для работы отчёта, безвозвратно удаляются"]
[]
[]
[]
[]
[]
[]
[]
[]
[]
[]
[]
[]
[]
[null,null,null,null,"A"," - не обязательные для заполнения",null,null,null,null,null,null,null,null,"A"," - с формулами и константами"]
[null,null,null,null,"A"," - обязательные для заполнения",null,null,null,null,null,null,null,null,"A"," - с выбором значений до двойному клику,"]
[null,null,null,null,null,null,null,null,null,null,null,null,null,null,null,"либо с возможностью выбора даты из календаря или ручного ввода"]
[]
[]
[]
[]
[]
[]
[]
[]
[]
[]
[]
[null,null,null,null,"Если в предложенном Вам списке необходимая организация, МР/МО отсутствуют, обновите реестры с помощью кнопок\n\nВ результате синхронизации с базой данных список организаций (МР/МО) будет заменён актуальным (механизм синхронизации требует подключения к сети Интернет и основан на использовании протокола HTTPS (TCP порт 443))\n\nЕсли после обновления Вам не удалось найти необходимую организацию в списке, обратитесь к ответственному за поддержание реестра Вашего региона. Информация о региональных органах регулирования доступна по ссылке:"]
[]
[]
[]
[]
[null,null,null,null,"http://www.fstrf.ru/regions/region/showlist"]
[]
[]
[]
[]
[]
[null,null,null,null,"• При сохранении шаблона осуществляется проверка корректности данных, в том числе на наличие значений в ячейках, обязательных для заполнения\n\n• Если какая-то ячейка не удовлетворяет условию проверки, на лист «Проверка» добавляется гиперссылка на данную ячейку и указывается причина ошибки\n\n• В колонке «Статус» для каждого сообщения возможны 2 значения: ошибка и предупреждение\n\n• При наличии сообщений со статусом «Ошибка» шаблон будет отклонён системой и не будет загружен в хранилище данных, сообщения со статусом «Предупреждение» носят информационный характер, и такой шаблон будет принят системой"]
[]
[]
[]
[]
[]
[]
[]
[]
[]
[]
[]
[null,null,null,null,"Web-сайт:",null,null,"http://support.eias.ru/index.php?a=add&catid=5"]
[null,null,null,null,"E-mail:",null,null,"openinfo@eias.ru"]
[null,null,null,null,"Дистрибутивы:",null,null,"http://eias.ru/?page=show_distrs"]
[null,null,null,null,null,null,null,"для устранения ошибок (например, \"Compile error in hidden module\")"]
[]
[]
[]
[]
[]
[]
[]
[]
[null,null,null,null,"Законодательная основа шаблона"]
[null,null,null,null,"Данный шаблон разработан в соответствии с:"]
[null,null,null,null," • ","Постановлением Правительства РФ от 17.01.2013 N 6 \"О стандартах раскрытия информации в сфере водоснабжения и водоотведения\""]
[null,null,null,null,null,"Полный текст Постановления N 6"]
[null,null,null,null,null,{"$f":"\"Подробнее о сфере \"& TSphere_full","v":"Подробнее о сфере холодного водоснабжения"}]
[null,null,null,null," • ","Приказом Федеральной службы по тарифам (ФСТ России) от 15 мая 2013 г. № 129 (зарегистрирован Минюстом России № 28876 от 25.06.2013) «Об утверждении форм предоставления информации, подлежащей раскрытию, организациями, осуществляющими горячее водоснабжение, холодное водоснабжение и водоотведение, и органами регулирования тарифов, а также Правил заполнения таких форм»"]
[null,null,null,null,null,"Полный текст Приказа № 129 на сайте ФСТ России"]
[]
[null,null,null,null,"Принципы работы с шаблоном"]
[null,null,null,null,"  Перед началом работы с шаблоном Вам необходимо нажать кнопку \"Приступить к заполнению\", после чего на форме выбора выбрать из выпадающего списка нужный субъект РФ. После выбора субъекта РФ в шаблоне отобразятся листы для заполнения."]
[null,null,null,null,"  На листе «Титульный» нужно заполнить все ячейки голубого цвета."]
[null,null,null,null,"  На листе «Ссылки на публикации» «Адрес сайта в сети интернет» вводите, не нарушая цвет ячейки /если копируете гиперссылку из браузера, то выполните двойной щелчок левой кнопки мыши по ячейке и только после этого можете вставить скопированный элемент/.\n"]
[null,null,null,null,"  При вводе даты на расчетных листах необходимо выбрать дату из календаря (иконка справа от выбранной ячейки), либо ввести дату непосредственно в ячейку в формате - 'ДД.ММ.ГГГГ'."]
[null,null,null,null,"  Если какой-либо из показателей на расчетных листах для Вашей организации отсутствует, введите в поле, обязательное для заполнение, «0» (для числовых показателей) и «-» (для текстовых).\n"]
[null,null,null,null,"  Внимательно следите за информационными сообщениями на расчетных листах."]
[null,null,null,null,"  Все необходимые комментарии по всем формам Вы можете отразить на листе «Комментарии»."]
[null,null,null,null,"  Сопроводительные материалы необходимо загружать с помощью \"ЕИАС Мониторинг\""]
[null,null,null,null,"Инструкция",null,null,null,"http://eias.ru/files/shablon/manual_loading_through_monitoring.pdf"]
[]
[null,null,null,null,"E-mail:",null,null,"openinfo@eias.ru"]
[null,null,null,null,"Web-сайт:",null,null,"http://eias.ru/?page=show_templates"]
[]
[]
[]
[]
[]
[]
[]
[]
[]
[]
[]
[]
[]
[]
[null,null,null,null,"При наличии подключения к Интернет, можно автоматически проверять наличие доступных обновлений. Выберите способ оповещения о наличии обновлений для отчёта:"]
[]
[null,null,null,null,null,"проверять доступные обновления (рекомендуется)",null,null,null,null,null,null,null,null,null,null,null,null,null,null,null,null,null,null,null,null,"y"]
[]
[null,null,null,null,null,"никогда не проверять наличие обновлений (не рекомендуется)"]

{"sheet":"Справочная информация","index":2,"n_rows":142,"n_cols":6,"rows_kept":142,"cut":false,"hidden":false,"merged":[]}
[]
[null,{"$f":"code","v":"Код шаблона: JKH.OPEN.INFO.QUARTER.HVS"}]
[]
[]
[null,null,"II. Стандарты раскрытия информации в сфере холодного водоснабжения"]
[]
[null,null," 14. Регулируемой организацией подлежит раскрытию информация:",null,null," "]
[null,null,"  а) о регулируемой организации (общая информация);",null,null,"  "]
[null,null,"  б) о тарифах на регулируемые товары (услуги);",null,null,"  "]
[null,null,"  в) об основных показателях финансово-хозяйственной деятельности регулируемой организации, включая структуру основных производственных затрат (в части регулируемой деятельности);",null,null,"  "]
[null,null,"  г) об основных потребительских характеристиках регулируемых товаров и услуг регулируемой организации и их соответствии установленным требованиям;",null,null,"  "]
[null,null,"  д) об инвестиционных программах регулируемой организации и отчетах об их реализации;",null,null,"  "]
[null,null,"  е) о наличии (отсутствии) технической возможности подключения к централизованной системе холодного водоснабжения, а также о регистрации и ходе реализации заявок о подключении к централизованной системе холодного водоснабжения;",null,null,"  "]
[null,null,"  ж) об условиях, на которых осуществляется поставка регулируемых товаров (оказание регулируемых услуг), и (или) об условиях договоров о подключении к системе централизованного водоснабжения;",null,null,"  "]
[null,null,"  з) о порядке выполнения технологических, технических и других мероприятий, связанных с подключением к централизованной системе холодного водоснабжения;",null,null,"  "]
[null,null,"  и) о способах приобретения, стоимости и объемах товаров, необходимых для производства регулируемых товаров и (или) оказания регулируемых услуг регулируемой организацией;",null,null,"  "]
[null,null,"  к) о предложении регулируемой организации об установлении тарифов в сфере холодного водоснабжения.",null,null,"  "]
[null,null,"  ",null,null,"  "]
[null,null," 15. Информация о тарифах на регулируемые товары (услуги) в сфере холодного водоснабжения содержит сведения:",null,null," "]
[null,null,"  а) об утвержденных тарифах на питьевую воду (питьевое водоснабжение); руб/куб м",null,null,"  "]
[null,null,"  б) об утвержденных тарифах на техническую воду;",null,null,"  "]
[null,null,"  в) об утвержденных тарифах на транспортировку воды;",null,null,"  "]
[null,null,"  г) об утвержденных тарифах на подвоз воды;",null,null,"  "]
[null,null,"  д) об утвержденных тарифах на подключение к централизованной системе холодного водоснабжения руб./куб. м/час.",null,null,"  "]
[null,null,"  ",null,null,"  "]
[null,null," 16. В отношении сведений, предусмотренных пунктом 15 настоящего документа, указывается информация:",null,null," "]
[null,null,"  а) о наименовании органа регулирования, принявшего решение об утверждении тарифов;",null,null,"  "]
[null,null,"  б) о реквизитах (дата и номер) такого решения;",null,null,"  "]
[null,null,"  в) о величине установленного тарифа;",null,null,"  "]
[null,null,"  г) о сроке действия тарифа;",null,null,"  "]
[null,null,"  д) об источнике официального опубликования решения.",null,null,"  "]
[null,null,"  ",null,null,"  "]
[null,null," 17. В рамках общей информации о регулируемой организации раскрытию подлежат следующие сведения:",null,null," "]
[null,null,"  а) фирменное наименование юридического лица (согласно уставу регулируемой организации), фамилия, имя и отчество руководителя регулируемой организации;",null,null,"  "]
[null,null,"  б) основной государственный регистрационный номер, дата его присвоения и наименование органа, принявшего решение о регистрации, в соответствии со свидетельством о государственной регистрации в качестве юридического лица;",null,null,"  "]
[null,null,"  в) почтовый адрес, адрес фактического местонахождения органов управления регулируемой организации, контактные телефоны, а также (при наличии) официальный сайт в сети \"Интернет\" и адрес электронной почты;",null,null,"  "]
[null,null,"  г) режим работы регулируемой организации (абонентских отделов, сбытовых подразделений), в том числе часы работы диспетчерских служб;",null,null,"  "]
[null,null,"  д) вид регулируемой деятельности;",null,null,"  "]
[null,null,"  е) протяженность водопроводных сетей (в однотрубном исчислении) (километров);",null,null,"  "]
[null,null,"  ж) количество скважин (штук);",null,null,"  "]
[null,null,"  з) количество подкачивающих насосных станций (штук).",null,null,"  "]
[null,null,"  ",null,null,"  "]
[null,null," 18. Информация об основных показателях финансово-хозяйственной деятельности регулируемой организации, включая структуру основных производственных затрат (в части регулируемой деятельности), содержит сведения:",null,null," "]
[null,null,"  а) о выручке от вида регулируемой деятельности (тыс. рублей) с разбивкой по видам деятельности;",null,null,"  "]
[null,null,"  б) о себестоимости производимых товаров (оказываемых услуг) по виду регулируемой деятельности (тыс. рублей), включая:",null,null,"  "]
[null,null,"    - расходы на оплату холодной воды, приобретаемой у других организаций для последующей подачи потребителям;",null,null,"   "]
[null,null,"   - расходы на покупаемую электрическую энергию (мощность), используемую в технологическом процессе (с указанием средневзвешенной стоимости 1 кВт·ч), и объем приобретения электрической энергии;",null,null,"   "]
[null,null,"   - расходы на химические реагенты, используемые в технологическом процессе;",null,null,"   "]
[null,null,"   - расходы на оплату труда и отчисления на социальные нужды основного производственного персонала;",null,null,"   "]
[null,null,"   - расходы на оплату труда и отчисления на социальные нужды административно-управленческого персонала;",null,null,"   "]
[null,null,"   - расходы на амортизацию основных производственных средств;",null,null,"   "]
[null,null,"   - расходы на аренду имущества, используемого для осуществления регулируемого вида деятельности;",null,null,"   "]
[null,null,"   - общепроизводственные расходы, в том числе отнесенные к ним расходы на текущий и капитальный ремонт;",null,null,"   "]
[null,null,"   - общехозяйственные расходы, в том числе отнесенные к ним расходы на текущий и капитальный ремонт;",null,null,"   "]
[null,null,"   - расходы на капитальный и текущий ремонт основных производственных средств (в том числе информация об объемах товаров и услуг, их стоимости и способах приобретения у тех организаций, сумма оплаты услуг которых превышает 20 процентов суммы расходов по указанной статье расходов);",null,null,"   "]
[null,null,"   - расходы на услуги производственного характера, оказываемые по договорам с организациями на проведение регламентных работ в рамках технологического процесса (в том числе информация об объемах товаров и услуг, их стоимости и способах приобретения у тех организаций, сумма оплаты услуг которых превышает 20 процентов суммы расходов по указанной статье расходов);",null,null,"   "]
[null,null,"   - прочие расходы, которые подлежат отнесению на регулируемые виды деятельности в соответствии с основами ценообразования в сфере водоснабжения и водоотведения, утверждаемыми Правительством Российской Федерации;",null,null,"   "]
[null,null,"  в) о чистой прибыли, полученной от регулируемого вида деятельности, с указанием размера ее расходования на финансирование мероприятий, предусмотренных инвестиционной программой регулируемой организации (тыс. рублей);",null,null,"  "]
[null,null,"  г) об изменении стоимости основных фондов (в том числе за счет их ввода в эксплуатацию (вывода из эксплуатации)), их переоценки (тыс. рублей);",null,null,"  "]
[null,null,"  д) о валовой прибыли (убытках) от продажи товаров и услуг по регулируемому виду деятельности (тыс. рублей);",null,null,"  "]
[null,null,"  е) о годовой бухгалтерской отчетности, включая бухгалтерский баланс и приложения к нему (раскрывается регулируемой организацией, выручка от регулируемой деятельности которой превышает 80 процентов совокупной выручки за отчетный год);",null,null,"  "]
[null,null,"  ж) об объеме поднятой воды (тыс. куб. метров);",null,null,"  "]
[null,null,"  з) об объеме покупной воды (тыс. куб. метров);",null,null,"  "]
[null,null,"  и) об объеме воды, пропущенной через очистные сооружения (тыс. куб. метров);",null,null,"  "]
[null,null,"  к) об объеме отпущенной потребителям воды, определенном по приборам учета и расчетным путем (по нормативам потребления) (тыс. куб. метров);",null,null,"  "]
[null,null,"  л) о потерях воды в сетях (процентов);",null,null,"  "]
[null,null,"  м) о среднесписочной численности основного производственного персонала (человек);",null,null,"  "]
[null,null,"  н) об удельном расходе электроэнергии на подачу воды в сеть (тыс. кВт·ч или тыс. куб. метров);",null,null,"  "]
[null,null,"  о) о расходе воды на собственные (в том числе хозяйственно-бытовые) нужды (процент объема отпуска воды потребителям);",null,null,"  "]
[null,null,"  п) о показателе использования производственных объектов (по объему перекачки) по отношению к пиковому дню отчетного года (процентов).",null,null,"  "]
[null,null,"  ",null,null,"  "]
[null,null," 19. Информация об основных потребительских характеристиках регулируемых товаров и услуг регулируемой организации и их соответствии установленным требованиям содержит сведения:",null,null," "]
[null,null,"  а) о количестве аварий на системах холодного водоснабжения (единиц на километр);",null,null,"  "]
[null,null,"  б) о количестве случаев ограничения подачи холодной воды по графику с указанием срока действия таких ограничений (менее 24 часов в сутки) и доле потребителей (процентов), затронутых ограничениями подачи холодной воды;",null,null,"  "]
[null,null,"  в) об общем количестве проведенных проб качества воды по следующим показателям:",null,null,"  "]
[null,null,"   - мутность;",null,null,"   "]
[null,null,"   - цветность;",null,null,"   "]
[null,null,"   - хлор остаточный общий, в том числе хлор остаточный связанный и хлор остаточный свободный;",null,null,"   "]
[null,null,"   - общие колиформные бактерии;",null,null,"   "]
[null,null,"   - термотолерантные колиформные бактерии;",null,null,"   "]
[null,null,"  г) о количестве проведенных проб, выявивших несоответствие холодной воды санитарным нормам (предельно допустимой концентрации), по следующим показателям:",null,null,"  "]
[null,null,"   - мутность;",null,null,"   "]
[null,null,"   - цветность;",null,null,"   "]
[null,null,"   - хлор остаточный общий, в том числе хлор остаточный связанный и хлор остаточный свободный;",null,null,"   "]
[null,null,"   - общие колиформные бактерии;",null,null,"   "]
[null,null,"   - термотолерантные колиформные бактерии;",null,null,"   "]
[null,null,"  д) о доле исполненных в срок договоров о подключении (процент общего количества заключенных договоров о подключении);",null,null,"  "]
[null,null,"  е) о средней продолжительности рассмотрения заявлений о подключении (дней).",null,null,"  "]
[null,null,"  ",null,null,"  "]
[null,null," 20. Информация об инвестиционных программах регулируемой организации содержит сведения:",null,null," "]
[null,null,"  а) о наименовании, дате утверждения и цели инвестиционной программы;",null,null,"  "]
[null,null,"  б) о наименовании органа исполнительной власти субъекта Российской Федерации, утвердившего инвестиционную программу, и о наименовании органа местного самоуправления, согласовавшего инвестиционную программу;",null,null,"  "]
[null,null,"  в) о сроках начала и окончания реализации инвестиционной программы;",null,null,"  "]
[null,null,"  г) о потребностях в финансовых средствах, необходимых для реализации инвестиционной программы, в том числе с разбивкой по годам, мероприятиям и источникам финансирования инвестиционной программы (тыс. рублей);",null,null,"  "]
[null,null,"  д) о плановых значениях целевых показателей инвестиционной программы (с разбивкой по мероприятиям);",null,null,"  "]
[null,null,"  е) о фактических значениях целевых показателей (тыс. рублей);",null,null,"  "]
[null,null,"  ж) об использовании инвестиционных средств за отчетный год с разбивкой по кварталам, мероприятиям и источникам финансирования инвестиционной программы (тыс. рублей);",null,null,"  "]
[null,null,"  з) о внесении изменений в инвестиционную программу.",null,null,"  "]
[null,null,"  ",null,null,"  "]
[null,null," 21. Информация о наличии (отсутствии) технической возможности подключения к централизованной системе холодного водоснабжения, а также о регистрации и ходе реализации заявок о подключении к централизованной системе холодного водоснабжения содержит сведения:",null,null," "]
[null,null,"  а) о количестве поданных заявок о подключении к централизованной системе холодного водоснабжения в течение квартала;",null,null,"  "]
[null,null,"  б) о количестве исполненных заявок о подключении к централизованной системе холодного водоснабжения в течение квартала;",null,null,"  "]
[null,null,"  в) о количестве заявок о подключении к централизованной системе холодного водоснабжения, по которым принято решение об отказе в подключении (с указанием причин), в течение квартала;",null,null,"  "]
[null,null,"  г) о резерве мощности централизованной системы холодного водоснабжения в течение квартала.",null,null,"  "]
[null,null,"  ",null,null,"  "]
[null,null," 22. При использовании регулируемой организацией нескольких централизованных систем холодного водоснабжения информация о резерве мощности таких систем публикуется в отношении каждой централизованной системы холодного водоснабжения.",null,null," "]
[null,null,"  ",null,null,"  "]
[null,null," 23. Информация об условиях, на которых осуществляется поставка регулируемых товаров и (или) оказание регулируемых услуг, должна содержать сведения об условиях публичных договоров поставок регулируемых товаров, оказания регулируемых услуг, в том числе договоров о подключении к централизованной системе холодного водоснабжения.",null,null," "]
[null,null,"  ",null,null,"  "]
[null,null," 24. Информация о порядке выполнения технологических, технических и других мероприятий, связанных с подключением к централизованной системе холодного водоснабжения, содержит:",null,null," "]
[null,null,"  а) форму заявки о подключении к централизованной системе холодного водоснабжения;",null,null,"  "]
[null,null,"  б) перечень документов, представляемых одновременно с заявкой о подключении к централизованной системе холодного водоснабжения;",null,null,"  "]
[null,null,"  в) реквизиты нормативного правового акта, регламентирующего порядок действий заявителя и регулируемой организации при подаче, приеме, обработке заявки о подключении к централизованной системе холодного водоснабжения, принятии решения и уведомлении о принятом решении;",null,null,"  "]
[null,null,"  г) телефоны и адреса службы, ответственной за прием и обработку заявок о подключении к централизованной системе холодного водоснабжения.",null,null,"  "]
[null,null,"  ",null,null,"  "]
[null,null," 25. Информация о способах приобретения, стоимости и об объемах товаров, необходимых для производства регулируемых товаров и (или) оказания регулируемых услуг регулируемой организацией, содержит сведения о правовых актах, регламентирующих правила закупки (положение о закупках) в регулируемой организации, о месте размещения положения о закупках регулируемой организации, а также сведения о планировании конкурсных процедур и результатах их проведения.",null,null," "]
[null,null,"  ",null,null,"  "]
[null,null," 26. Информация о предложении регулируемой организации об установлении тарифов в сфере холодного водоснабжения на очередной период регулирования содержит копию утвержденной в установленном порядке инвестиционной программы (проекта инвестиционной программы), а также сведения:",null,null," "]
[null,null,"  а) о предлагаемом методе регулирования;",null,null,"  "]
[null,null,"  б) о расчетной величине тарифов;",null,null,"  "]
[null,null,"  в) о периоде действия тарифов;",null,null,"  "]
[null,null,"  г) о долгосрочных параметрах регулирования (в случае если их установление предусмотрено выбранным методом регулирования);",null,null,"  "]
[null,null,"  д) о необходимой валовой выручке на соответствующий период, в том числе с разбивкой по годам;",null,null,"  "]
[null,null,"  е) о годовом объеме отпущенной потребителям воды;",null,null,"  "]
[null,null,"  ж) о размере недополученных доходов регулируемой организации (при их наличии), исчисленном в соответствии с основами ценообразования в сфере водоснабжения и водоотведения, утверждаемыми Правительством Российской Федерации;",null,null,"  "]
[null,null,"  з) о размере экономически обоснованных расходов, не учтенных при регулировании тарифов в предыдущий период регулирования (при их наличии), определенном в соответствии с основами ценообразования в сфере водоснабжения и водоотведения, утверждаемыми Правительством Российской Федерации.",null,null,"  "]
[null,null,"  ",null,null,"  "]
[null,null," 27. Информация, указанная в пунктах 15, 23 и 24 настоящего документа, раскрывается регулируемой организацией не позднее 30 календарных дней со дня принятия решения об установлении тарифа на очередной период регулирования.",null,null," "]
[null,null,"  ",null,null,"  "]
[null,null," 28. Информация, указанная в пунктах 18 - 20 настоящего документа, раскрывается регулируемой организацией не позднее 30 календарных дней со дня направления годового бухгалтерского баланса в налоговые органы, за исключением информации, указанной в подпункте \"з\" пункта 20 настоящего документа.",null,null," "]
[null,null,"  ",null,null,"  "]
[null,null," 29. Информация, указанная в пункте 18 настоящего документа, соответствует годовой бухгалтерской отчетности за отчетный год.",null,null," "]
[null,null,"  ",null,null,"  "]
[null,null," 30. Регулируемая организация, не осуществляющая сдачу годового бухгалтерского баланса в налоговые органы, информацию, указанную в пунктах 18 - 20, за исключением информации, указанной в подпункте \"з\" пункта 20 настоящего документа, раскрывает не позднее 30 календарных дней со дня истечения срока, установленного законодательством Российской Федерации для сдачи годового бухгалтерского баланса в налоговые органы.",null,null," "]
[null,null,"  ",null,null,"  "]
[null,null," 31. Информация, указанная в подпункте \"з\" пункта 20 настоящего документа, раскрывается регулируемой организацией в течение 10 календарных дней со дня принятия органом исполнительной власти субъекта Российской Федерации решения о внесении изменений в инвестиционную программу.",null,null," "]
[null,null,"  ",null,null,"  "]
[null,null," 32. Информация, указанная в пункте 21 настоящего документа, раскрывается регулируемой организацией ежеквартально, в течение 30 календарных дней по истечении квартала, за который раскрывается информация.",null,null," "]
[null,null,"  ",null,null,"  "]
[null,null," 33. Информация, указанная в пунктах 25 и 26 настоящего документа, раскрывается регулируемой организацией в течение 10 календарных дней со дня подачи ею заявления об установлении тарифов в сфере холодного водоснабжения в орган исполнительной власти субъекта Российской Федерации в области государственного регулирования тарифов (орган местного самоуправления).",null,null," "]
[null,null,"  ",null,null,"  "]
[null,null," 34. Информация, указанная в пункте 17 настоящего документа, подлежит раскрытию в течение месяца со дня вступления в силу настоящего документа.",null,null," "]

{"sheet":"Лог обновления","index":3,"n_rows":51,"n_cols":3,"rows_kept":51,"cut":false,"hidden":true,"merged":[]}
["Дата/Время","Сообщение","Статус"]
[]
["2014-01-13T11:00:51","Проверка доступных обновлений...","Информация"]
["2014-01-13T11:00:51","Доступно обновление до версии 6.1.1","Информация"]
["2014-01-13T11:00:51","Описание изменений: Версия 6.1.1 (для шаблонов версии 6.1)\n1. корректировка проверки при сохранении корректности отчетного периода на листе \"Титульный\".","Информация"]
["2014-01-13T11:00:51","Размер файла обновления: 281088 байт","Информация"]
["2014-01-13T11:00:53","Подготовка к обновлению...","Информация"]
["2014-01-13T11:00:55","Сохранение файла резервной копии: T:\\Упр. рег. в сфере КК\\Мониторинга и наблюдения в сфере КК отдел\\@Общая\\ЕИАС\\!!!! Шаблоны РЕГИОНАЛЬНЫЕ\\ГОТОВЫЕ ШАБЛОНЫ\\Раскрытие информации\\31.12.2013\\Квартал\\JKH.OPEN.INFO.QUARTER.HVS.BKP..xls","Информация"]
["2014-01-13T11:01:07","Резервная копия создана: T:\\Упр. рег. в сфере КК\\Мониторинга и наблюдения в сфере КК отдел\\@Общая\\ЕИАС\\!!!! Шаблоны РЕГИОНАЛЬНЫЕ\\ГОТОВЫЕ ШАБЛОНЫ\\Раскрытие информации\\31.12.2013\\Квартал\\JKH.OPEN.INFO.QUARTER.HVS.BKP..xls","Информация"]
["2014-01-13T11:01:07","Создание книги для установки обновлений...","Информация"]
["2014-01-13T11:01:07","Ошибка при инициализации обновления","Ошибка"]
["2014-01-13T11:01:29","Проверка доступных обновлений...","Информация"]
["2014-01-13T11:01:29","Доступно обновление до версии 6.1.1","Информация"]
["2014-01-13T11:01:29","Описание изменений: Версия 6.1.1 (для шаблонов версии 6.1)\n1. корректировка проверки при сохранении корректности отчетного периода на листе \"Титульный\".","Информация"]
["2014-01-13T11:01:29","Размер файла обновления: 281088 байт","Информация"]
["2014-01-13T11:01:30","Подготовка к обновлению...","Информация"]
["2014-01-13T11:01:33","Сохранение файла резервной копии: T:\\Упр. рег. в сфере КК\\Мониторинга и наблюдения в сфере КК отдел\\@Общая\\ЕИАС\\!!!! Шаблоны РЕГИОНАЛЬНЫЕ\\ГОТОВЫЕ ШАБЛОНЫ\\Раскрытие информации\\31.12.2013\\Квартал\\JKH.OPEN.INFO.QUARTER.HVS.BKP..xls","Информация"]
["2014-01-13T11:01:44","Резервная копия создана: T:\\Упр. рег. в сфере КК\\Мониторинга и наблюдения в сфере КК отдел\\@Общая\\ЕИАС\\!!!! Шаблоны РЕГИОНАЛЬНЫЕ\\ГОТОВЫЕ ШАБЛОНЫ\\Раскрытие информации\\31.12.2013\\Квартал\\JKH.OPEN.INFO.QUARTER.HVS.BKP..xls","Информация"]
["2014-01-13T11:01:45","Создание книги для установки обновлений...","Информация"]
["2014-01-13T11:01:58","Файл обновления загружен: T:\\Упр. рег. в сфере КК\\Мониторинга и наблюдения в сфере КК отдел\\@Общая\\ЕИАС\\!!!! Шаблоны РЕГИОНАЛЬНЫЕ\\ГОТОВЫЕ ШАБЛОНЫ\\Раскрытие информации\\31.12.2013\\Квартал\\UPDATE.JKH.OPEN.INFO.QUARTER.HVS.TO.6.1.1.26.xls","Информация"]
["2014-01-13T11:02:14","Обновление завершилось удачно! Шаблон JKH.OPEN.INFO.QUARTER.HVS.BKP..xls сохранен под именем 'JKH.OPEN.INFO.QUARTER.HVS.BKP.(v6.1.1).xls'","Информация"]
["2014-01-13T11:08:11","Проверка доступных обновлений...","Информация"]
["2014-01-13T11:08:11","Версия шаблона 6.1.1 актуальна, обновление не требуется","Информация"]
["2014-04-07T09:50:36","Проверка доступных обновлений...","Информация"]
["2014-04-07T09:50:36","Доступно обновление до версии 6.1.2","Информация"]
["2014-04-07T09:50:36","Описание изменений: Версия 6.1.1 (только(!!!) для шаблонов версии 6.1 и выше)\n1. корректировка проверки при сохранении корректности отчетного периода на листе \"Титульный\".\n2. добавление информации о соответствие форм приказа ФСТ России № 129 от 15 мая 2013 г. на соответствующих листах.\n\n\nЕсли версия Вашего шаблона ниже 6.1, обратитесь к администратору Вашего субъекта РФ.","Информация"]
["2014-04-07T09:50:36","Размер файла обновления: 283136 байт","Информация"]
["2014-04-07T09:50:38","Подготовка к обновлению...","Информация"]
["2014-04-07T09:50:41","Сохранение файла резервной копии: C:\\Шаблоны СРИ\\ХВС\\обн.BKP.xls","Информация"]
["2014-04-07T09:50:48","Резервная копия создана: C:\\Шаблоны СРИ\\ХВС\\обн.BKP.xls","Информация"]
["2014-04-07T09:50:48","Создание книги для установки обновлений...","Информация"]
["2014-04-07T09:50:56","Файл обновления загружен: C:\\Шаблоны СРИ\\ХВС\\UPDATE.JKH.OPEN.INFO.QUARTER.HVS.TO.6.1.2.34.xls","Информация"]
["2014-04-07T09:51:05","Обновление завершилось удачно! Шаблон JKH.OPEN.INFO.QUARTER.HVS.xls сохранен под именем 'JKH.OPEN.INFO.QUARTER.HVS(v6.1.2).xls'","Информация"]
["2017-04-21T08:17:02","Проверка доступных обновлений...","Информация"]
["2017-04-21T08:17:03","Версия шаблона 6.1.2 актуальна, обновление не требуется","Информация"]
["2017-06-26T10:23:04","Проверка доступных обновлений...","Информация"]
["2017-06-26T10:23:04","Версия шаблона 6.1.2 актуальна, обновление не требуется","Информация"]
["2017-07-03T10:35:42","Проверка доступных обновлений...","Информация"]
["2017-07-03T10:35:49","Версия шаблона 6.1.2 актуальна, обновление не требуется","Информация"]
["2017-09-25T13:58:56","Проверка доступных обновлений...","Информация"]
["2017-09-25T13:59:08","Нет доступных обновлений для шаблона с кодом JKH.OPEN.INFO.QUARTER.HVS!","Информация"]
["2017-10-02T09:36:23","Проверка доступных обновлений...","Информация"]
["2017-10-02T09:36:30","Нет доступных обновлений для шаблона с кодом JKH.OPEN.INFO.QUARTER.HVS!","Информация"]
["2017-11-16T10:05:16","Проверка доступных обновлений...","Информация"]
["2017-11-16T10:05:20","Нет доступных обновлений для шаблона с кодом JKH.OPEN.INFO.QUARTER.HVS!","Информация"]
["2017-11-16T10:11:00","Проверка доступных обновлений...","Информация"]
["2017-11-16T10:11:01","Нет доступных обновлений для шаблона с кодом JKH.OPEN.INFO.QUARTER.HVS!","Информация"]
["2018-01-05T09:31:36","Проверка доступных обновлений...","Информация"]
["2018-01-05T09:31:50","Нет доступных обновлений для шаблона с кодом JKH.OPEN.INFO.QUARTER.HVS!","Информация"]
["2018-04-02T10:07:53","Проверка доступных обновлений...","Информация"]
["2018-04-02T10:08:01","Нет доступных обновлений для шаблона с кодом JKH.OPEN.INFO.QUARTER.HVS!","Информация"]

{"sheet":"Титульный","index":4,"n_rows":47,"n_cols":6,"rows_kept":47,"cut":false,"hidden":false,"merged":[[4,4,4,5]]}
[null,null,null,null,null,26357185]
[]
[]
[null,null,null,null,null,{"$f":"version","v":"Версия 6.1.2"}]
[null,null,null,null,{"$f":"\"Информация о наличии (отсутствии) технической возможности подключения к централизованной системе \"&TSphere_full&\", а также о регистрации и ходе реализации заявок о подключении к централизованной системе \"&TSphere_full","v":"Информация о наличии (отсутствии) технической возможности подключения к централизованной системе холодного водоснабжения, а также о регистрации и ходе реализации заявок о подключении к централизованной системе холодного водоснабжения"}]
[]
[null,null,null,null,"Субъект РФ","Кировская область"]
[]
[null,null,null,null,"Публикация","На сайте регулирующего органа"]
[]
[null,null,null,null,"По желанию организации информация раскрыта в дополнительных источниках публикации?","нет"]
[]
[null,null,null,null,{"$f":"\"Тариф установлен дифференцированно по системам \"&TSphere_full&\"?\"","v":"Тариф установлен дифференцированно по системам холодного водоснабжения?"},"нет"]
[]
[null,null,null,null,"Идентификатор тарифа"]
[null,null,null,null,"Описание тарифа"]
[]
[null,null,null,null,null,"Отчётный период"]
[null,null,null,null,"Квартал","I квартал"]
[null,null,null,null,"Год",2017]
[]
[null,null,null,null,"Является ли данное юридическое лицо подразделением (филиалом) другой организации","нет"]
[]
[null,null,null,null,"Наименование организации","ООО \"Октябрьский\""]
[null,null,null,null,"Наименование филиала"]
[null,null,null,null,"ИНН","4329010916"]
[null,null,null,null,"КПП","432901001"]
[]
[null,null,null,null,"Вид деятельности","Оказание услуг в сфере водоснабжения"]
[]
[null,null,null,null,null,"Адрес регулируемой организации"]
[null,null,null,null,"Юридический адрес","613104, Кировская область, Слободской район, п.Октябрьский, ул.Горького, д.1. "]
[null,null,null,null,"Почтовый адрес","613104, Кировская область, Слободской район, п.Октябрьский, ул.Горького, д.1. "]
[]
[null,null,null,null,null,"Руководитель"]
[null,null,null,null,"Фамилия, имя, отчество","Манылов Сергей николаевич \n"]
[null,null,null,null,"(код) номер телефона","8(83362)6-54-45"]
[]
[null,null,null,null,null,"Главный бухгалтер"]
[null,null,null,null,"Фамилия, имя, отчество","Скулкина Валентина Николаевна \n"]
[null,null,null,null,"(код) номер телефона","8(83362)6-55-37 "]
[]
[null,null,null,null,null,"Должностное лицо, ответственное за составление формы"]
[null,null,null,null,"Фамилия, имя, отчество","Платунова Екатерина Леонидовна"]
[null,null,null,null,"Должность","экономист"]
[null,null,null,null,"(код) номер телефона","8(83362)6-55-37 \n"]
[null,null,null,null,"e-mail","Olga.Gorodilova@mail.ru \n"]

{"sheet":"Список ЦСХВС (не дифф)","index":5,"n_rows":15,"n_cols":13,"rows_kept":15,"cut":false,"hidden":false,"merged":[[3,3,3,8],[4,3,4,8],[14,4,14,12],[9,3,11,3],[9,4,11,4],[9,6,10,6],[9,7,10,7],[9,8,10,8],[9,9,10,9],[10,11,10,12]]}
[]
[]
[null,null,null,null,null,null,null,null,"Приложение 2 к приказу ФСТ России от 15 мая 2013 г. N 129, Форма 2.10"]
[null,null,null,{"$f":"\"Информация о наличии (отсутствии) технической возможности подключения к централизованной системе \"&TSphere_full&\" (одной или несколько), в отношении которой(-ых) установлен единый тариф*\"","v":"Информация о наличии (отсутствии) технической возможности подключения к централизованной системе холодного водоснабжения (одной или несколько), в отношении которой(-ых) установлен единый тариф*"}]
[null,null,null,{"$f":"IF(org=0,\"Не определено\",org)","v":"ООО \"Октябрьский\""}]
[]
[null,null,null,"№ п/п","Муниципальный район",null,"№ п/п","Муниципальное образование","ОКТМО","Количество котельных и ЦТП по данному МО","№ п/п",{"$f":"\"Наименование централизованной системы \"&TSphere_full&\" *\"","v":"Наименование централизованной системы холодного водоснабжения *"},{"$f":"\"Резерв мощности централизованной системы \"&TSphere_full&\" в течение квартала, тыс.куб.м/сутки\"","v":"Резерв мощности централизованной системы холодного водоснабжения в течение квартала, тыс.куб.м/сутки"}]
[null,null,null,"1","2",null,"3","4","5","6","6","7","8"]
[]
[null,null,"О",1,"Слободской муниципальный район",null,1,"Октябрьское","33635440",null,"1","закрытая",1]
[null,null,null,null,null,null,null,null,null,null,null,"Добавить централизованную систему"]
[null,null,null,null,null,null,null,"Добавить МО"]
[null,null,null,null,"Добавить МР"]
[]
[null,null,null,"*","Наименование может совпадать с описанием тарифа, указанным на листе 'Титульный'"]

{"sheet":"ЦСХВС доступ (не дифф)","index":6,"n_rows":18,"n_cols":6,"rows_kept":18,"cut":false,"hidden":false,"merged":[[13,4,13,5],[6,4,6,5],[17,4,17,5],[4,3,4,5],[5,3,5,5]]}
[]
[]
[]
[null,null,null,null,null,"Приложение 2 к приказу ФСТ России от 15 мая 2013 г. N 129, Форма 2.10"]
[null,null,null,{"$f":"\"Информация о регистрации и ходе реализации заявок о подключении к централизованной системе \"&TSphere_full&\"*\"","v":"Информация о регистрации и ходе реализации заявок о подключении к централизованной системе холодного водоснабжения*"}]
[null,null,null,{"$f":"IF(org=0,\"Не определено\",org)","v":"ООО \"Октябрьский\""}]
[]
[null,null,null,"№ п/п","Наименование показателя","Значение"]
[null,null,null,"А","1","2"]
[null,null,null,"1",{"$f":"\"Количество поданных заявок о подключении к централизованной системе \"&TSphere_full&\" в течение квартала, шт.\"","v":"Количество поданных заявок о подключении к централизованной системе холодного водоснабжения в течение квартала, шт."},0]
[null,null,null,"2",{"$f":"\"Количество исполненных заявок о подключении к централизованной системе \"&TSphere_full&\" в течение квартала, шт.\"","v":"Количество исполненных заявок о подключении к централизованной системе холодного водоснабжения в течение квартала, шт."},0]
[null,null,null,"3",{"$f":"\"Количество заявок о подключении к централизованной системе  \"&TSphere_full&\", по которым принято решение об отказе в подключении (с указанием причин) в течение квартала, шт.\"","v":"Количество заявок о подключении к централизованной системе  холодного водоснабжения, по которым принято решение об отказе в подключении (с указанием причин) в течение квартала, шт."},0]
[null,null,null,"4","Причины отказа в подключении"]
[null,null,null,"4.0"]
[null,null,null,null,"Добавить причину"]
[null,null,null,"5","Справочно: количество выданных техусловий на подключение, шт."]
[]
[null,null,null,"*","Информация раскрывается ежеквартально, в течение 30 календарных дней по истечении квартала, за который раскрывается информация."]

{"sheet":"Список ЦСХВС (дифф)","index":7,"n_rows":13,"n_cols":20,"rows_kept":13,"cut":false,"hidden":true,"merged":[[11,4,11,19],[3,3,3,12],[4,3,4,12],[12,4,12,12]]}
[]
[]
[null,null,null,null,null,null,null,null,null,null,null,null,"Приложение 2 к приказу ФСТ России от 15 мая 2013 г. N 129, Форма 2.10"]
[null,null,null,{"$f":"\"Информация о наличии (отсутствии) технической возможности подключения к централизованной системе \"&TSphere_full&\", а также о регистрации и ходе реализации заявок о подключении к централизованной системе \"&TSphere_full&\" (одной или несколько), в отношении которой (-ых), установлен единый тариф*\"","v":"Информация о наличии (отсутствии) технической возможности подключения к централизованной системе холодного водоснабжения, а также о регистрации и ходе реализации заявок о подключении к централизованной системе холодного водоснабжения (одной или несколько), в отношении которой (-ых), установлен единый тариф*"}]
[null,null,null,{"$f":"IF(org=0,\"Не определено\",org)","v":"ООО \"Октябрьский\""}]
[]
[null,null,null,"№ п/п","Муниципальный район",null,"№ п/п","Муниципальное образование","ОКТМО","Количество котельных и ЦТП по данному МО",null,"№ п/п",{"$f":"\"Наименование централизованной системы \"&TSphere_full & \" **\"","v":"Наименование централизованной системы холодного водоснабжения **"},"Количество поданных заявок, шт.","Количество исполненных заявок, шт.","Количество заявок с решением об отказе  в подключении, шт.",null,"№ п/п","Причины отказа в подключении",{"$f":"\"Резерв мощности централизованной системы \"&TSphere_full&\" в течение квартала, тыс.куб.м/сутки\"","v":"Резерв мощности централизованной системы холодного водоснабжения в течение квартала, тыс.куб.м/сутки"}]
[null,null,null,"1","2",null,"3","4","5","6",null,"6","7","8","9","10",null,"11","12","13"]
[]
[null,null,null,null,"Добавить МР"]
[]
[null,null,null,"*",{"$f":"\"В случае если регулируемыми организациями оказываются услуги по нескольким технологически не связанным между собой централизованным системам \"&TSphere_full&\", и если в отношении указанных систем устанавливаются различные тарифы в сфере \"&TSphere_full&\", то информация раскрывается отдельно по каждой централизованной системе \"&TSphere_full&\" (для каждого такого тарифа нужно заполнять новый шаблон).\"","v":"В случае если регулируемыми организациями оказываются услуги по нескольким технологически не связанным между собой централизованным системам холодного водоснабжения, и если в отношении указанных систем устанавливаются различные тарифы в сфере холодного водоснабжения, то информация раскрывается отдельно по каждой централизованной системе холодного водоснабжения (для каждого такого тарифа нужно заполнять новый шаблон)."}]
[null,null,null,"**","Наименование может совпадать с описанием тарифа, указанным на листе 'Титульный'"]

{"sheet":"Ссылки на публикации","index":8,"n_rows":13,"n_cols":8,"rows_kept":13,"cut":false,"hidden":true,"merged":[[5,3,5,6],[10,0,11,0],[4,3,4,6],[10,4,10,7]]}
[]
[]
[]
[]
[null,null,null,"Ссылки на публикации\n(указание на официальное печатное издание и (или) адрес сайта в сети Интернет, которые используются для размещения раскрываемой информации)"]
[null,null,null,{"$f":"IF(org=0,\"Не определено\",org)","v":"ООО \"Октябрьский\""}]
[]
[]
[null,null,null,"№ п/п","Содержание","Наименование источника\n(сайта или печатного издания)","Дата размещения информации","Адрес сайта в сети Интернет"]
[null,null,null,"1","2","3","4","5"]
["1",null,null,{"$f":"A11","v":"1"},{"$f":"\"Информация о наличии (отсутствии) технической возможности доступа к регулируемым товарам и услугам регулируемых организаций, а также о регистрации и ходе реализации заявок на подключение к централизованой системе \"&TSphere_full","v":"Информация о наличии (отсутствии) технической возможности доступа к регулируемым товарам и услугам регулируемых организаций, а также о регистрации и ходе реализации заявок на подключение к централизованой системе холодного водоснабжения"}]
[null,null,null,{"$f":"A11&\".1\"","v":"1.1"},"Сайт организации в сети Интернет"]
[null,null,null,null,"Добавить"]

{"sheet":"Комментарии","index":9,"n_rows":13,"n_cols":5,"rows_kept":13,"cut":false,"hidden":false,"merged":[[6,3,6,4],[7,3,7,4]]}
[]
[]
[]
[]
[]
[]
[null,null,null,"Комментарии"]
[null,null,null,{"$f":"IF(org=0,\"Не определено\",org)","v":"ООО \"Октябрьский\""}]
[]
[null,null,null,"№ п/п","Комментарий"]
[null,null,null,"1","2"]
[null,null,null,0]
[null,null,null,null,"Добавить"]

{"sheet":"Проверка","index":10,"n_rows":4,"n_cols":4,"rows_kept":4,"cut":false,"hidden":false,"merged":[[1,1,1,3]]}
[]
[null,"Результат проверки"]
[]
[null,"Ссылка","Причина","Статус"]

{"sheet":"AllSheetsInThisWorkbook","index":11,"n_rows":25,"n_cols":2,"rows_kept":25,"cut":false,"hidden":true,"merged":[]}
["Расчетные листы","Скрытые листы"]
["Инструкция","AllSheetsInThisWorkbook"]
["Справочная информация","TEHSHEET"]
["Лог обновления","et_union_hor"]
["Титульный","et_union_vert"]
["Список ЦСХВС (не дифф)","modInfo"]
["ЦСХВС доступ (не дифф)","modReestr"]
["Список ЦСХВС (дифф)","modfrmReestr"]
["Ссылки на публикации","modUpdTemplMain"]
["Комментарии","REESTR_ORG"]
["Проверка","modClassifierValidate"]
[null,"modProv"]
[null,"modHyp"]
[null,"modList00"]
[null,"modList01"]
[null,"modList02"]
[null,"modList03"]
[null,"modList04"]
[null,"modfrmDateChoose"]
[null,"modComm"]
[null,"modThisWorkbook"]
[null,"REESTR_MO"]
[null,"modfrmReestrMR"]
[null,"modfrmRegion"]
[null,"modfrmCheckUpdates"]

{"sheet":"TEHSHEET","index":12,"n_rows":85,"n_cols":13,"rows_kept":85,"cut":false,"hidden":true,"merged":[]}
["REGION",null,"year_list","logical","Месяц\n(MONTH)","Квартал\n(QUARTER)","Месяц\n(kind_of_publication)","НДС\n/kind_of_NDS/","Номер СЦХВ(СЦВО)\n/SKI_number/","Единица измерения объема оказываемых услуг ГВС\n/kind_of_unit_GVS/",null,"версия шаблона\n (DocProp_Version)","6.1"]
["Алтайский край",null,2013,"да","январь","I квартал","На официальном сайте организации","общий","1","тыс.куб.м/сутки",null,"код шаблона\n(DocProp_TemplateCode)","JKH.OPEN.INFO.QUARTER.HVS"]
["Амурская область",null,2014,"нет","февраль","II квартал","На сайте регулирующего органа","общий с учетом освобождения от уплаты НДС","2","Гкал/час",null,"сфера\n(TSphere)","ХВС"]
["Архангельская область",null,2015,null,"март","III квартал",null,"специальный (упрощенная система налогообложения, система налогообложения для сельскохозяйственных товаропроизводителей)","3","куб.м/час",null,"сфера(латиница)\n(TSphere_trans)","HVS"]
["Астраханская область",null,2016,null,"апрель","IV квартал",null,null,"4",null,null,"сфера расширено\n(TSphere_full)","холодного водоснабжения"]
["Белгородская область",null,2017,null,"май",null,null,null,"5"]
["Брянская область",null,null,null,"июнь",null,null,null,"6"]
["Владимирская область",null,null,null,"июль",null,null,null,"7"]
["Волгоградская область",null,null,null,"август",null,null,null,"8"]
["Вологодская область",null,null,null,"сентябрь",null,null,null,"9"]
["Воронежская область",null,null,null,"октябрь",null,null,null,"10"]
["г.Байконур",null,null,null,"ноябрь",null,null,null,"11"]
["г. Москва",null,null,null,"декабрь",null,null,null,"12"]
["г.Санкт-Петербург",null,null,null,null,null,null,null,"13"]
["Еврейская автономная область",null,null,null,null,null,null,null,"14"]
["Забайкальский край",null,null,null,null,null,null,null,"15"]
["Ивановская область",null,null,null,null,null,null,null,"16"]
["Иркутская область",null,null,null,null,null,null,null,"17"]
["Кабардино-Балкарская республика",null,null,null,null,null,null,null,"18"]
["Калининградская область",null,null,null,null,null,null,null,"19"]
["Калужская область",null,null,null,null,null,null,null,"20"]
["Камчатский край"]
["Карачаево-Черкесская республика"]
["Кемеровская область"]
["Кировская область"]
["Костромская область"]
["Краснодарский край"]
["Красноярский край"]
["Курганская область"]
["Курская область"]
["Ленинградская область"]
["Липецкая область"]
["Магаданская область"]
["Московская область"]
["Мурманская область"]
["Ненецкий автономный округ"]
["Нижегородская область"]
["Новгородская область"]
["Новосибирская область"]
["Омская область"]
["Оренбургская область"]
["Орловская область"]
["Пензенская область"]
["Пермский край"]
["Приморский край"]
["Псковская область"]
["Республика Адыгея"]
["Республика Алтай"]
["Республика Башкортостан"]
["Республика Бурятия"]
["Республика Дагестан"]
["Республика Ингушетия"]
["Республика Калмыкия"]
["Республика Карелия"]
["Республика Коми"]
["Республика Марий Эл"]
["Республика Мордовия"]
["Республика Саха (Якутия)"]
["Республика Северная Осетия-Алания"]
["Республика Татарстан"]
["Республика Тыва"]
["Республика Хакасия"]
["Ростовская область"]
["Рязанская область"]
["Самарская область"]
["Саратовская область"]
["Сахалинская область"]
["Свердловская область"]
["Смоленская область"]
["Ставропольский край"]
["Тамбовская область"]
["Тверская область"]
["Томская область"]
["Тульская область"]
["Тюменская область"]
["Удмуртская республика"]
["Ульяновская область"]
["Хабаровский край"]
["Ханты-Мансийский автономный округ"]
["Челябинская область"]
["Чеченская республика"]
["Чувашская республика"]
["Чукотский автономный округ"]
["Ямало-Ненецкий автономный округ"]
["Ярославская область"]

{"sheet":"et_union_hor","index":13,"n_rows":35,"n_cols":19,"rows_kept":35,"cut":false,"hidden":true,"merged":[[31,19,32,19],[31,13,32,13],[31,14,32,14],[31,15,32,15],[4,11,4,12],[31,12,32,12],[31,3,34,3],[31,4,34,4],[31,6,33,6],[31,7,33,7],[31,8,33,8],[31,9,33,9],[31,11,32,11],[3,8,4,8],[3,9,4,9],[3,7,4,7],[16,0,17,0],[3,4,5,4],[3,3,5,3],[23,4,23,5],[3,6,4,6],[16,4,16,7]]}
[]
["et_List01_1","et_List01_2","et_List01_3"]
[]
[null,null,null,1,null,null,1,null,null,null,"1"]
[null,null,null,null,null,null,null,null,null,null,null,"Добавить централизованную систему"]
[null,null,null,null,null,null,null,"Добавить МО"]
[]
[]
["et_Comm"]
[]
[]
[]
[]
["et_List03"]
[]
[]
[null,null,null,{"$f":"A17","v":0}]
[null,null,null,{"$f":"A17&\".1\"","v":".1"},"Сайт организации в сети Интернет"]
[]
[]
[]
["et_List02_1"]
[]
[]
[]
["et_List02_2"]
[]
[]
[]
["et_List04_1","et_List04_2","et_List04_3"]
[]
[null,null,null,1,null,null,1,null,null,null,null,"1",null,null,null,null,null,"1"]
[null,null,null,null,null,null,null,null,null,null,null,null,null,null,null,null,null,null,"Добавить причину"]
[null,null,null,null,null,null,null,null,null,null,null,null,"Добавить централизованную систему"]
[null,null,null,null,null,null,null,"Добавить МО"]

{"sheet":"et_union_vert","index":14,"n_rows":0,"n_cols":0,"rows_kept":0,"cut":false,"hidden":true,"merged":[]}

{"sheet":"modInfo","index":15,"n_rows":11,"n_cols":4,"rows_kept":11,"cut":false,"hidden":true,"merged":[]}
[null,"Титульный"]
[null,"Для выбора того или иного источника публикации выполните двойной щелчок по синей ячейке напротив соответствующего источника.\nВНИМАНИЕ! Если Вы снимаете галочку с пункта, то будут скрыты и очищены соответствующие строки на листе \"Ссылки на публикации\"!\n\nОпубликование перечисленных в шаблоне показателей на сайте организации в сети Интернет и в печатных изданиях не обязательно, если  данный шаблон предоставлен по системе ЕИАС (региональный сегмент)."]
[null,"Обязательное опубликование на официальном сайте органа исполнительной власти субъекта Российской Федерации в области государственного регулирования тарифов (на официальном сайте органа местного самоуправления поселения или городского округа в случае передачи законом субъекта Российской Федерации полномочий по утверждению тарифов в сфере водоснабжения и водоотведения органам местного самоуправления) предусмотрено пунктом 3 (а) постановления Правительства №6 от 17.01.2013"]
[null,"Задайте период регулирования, выбрав квартал и год из соответствующих списков"]
[null,"Шаблон заполняется раздельно по каждому виду тарифа"]
[null,{"$f":"\"Укажите произвольный номер идентификатора тарифа для централизованных систем \"&TSphere_full&\", которые включены в шаблон. В каждом последующем шаблоне за один отчетный период следует указывать различные идентификаторы тарифа\"","v":"Укажите произвольный номер идентификатора тарифа для централизованных систем холодного водоснабжения, которые включены в шаблон. В каждом последующем шаблоне за один отчетный период следует указывать различные идентификаторы тарифа"}]
[null,"Кратко охарактеризуйте тариф, в отношении которого заполняете шаблон",null,"=ЕСЛИ(region_name=\"Ханты-Мансийский автономный округ\";\"Принадлежность к соответствующей централизованной системе \"&TSphere_full;\"Кратко охарактеризуйте тариф, в отношении которого заполняете шаблон\")"]
[null,"Ссылки на публикации"]
[null,"Вводите адрес сайта, не нарушая цвет ячейки /если копируете гиперссылку из браузера, то выполните двойной щелчок по ячейке и только после этого можете вставить скопированный элемент/"]
[null,"Список ЦСХВС"]
[null,"Централизованная система холодного водоснабжения - комплекс технологически связанных между собой инженерных сооружений, предназначенных для водоподготовки, транспортировки и подачи питьевой и (или) технической воды абонентам (Федеральный закон от 07.12.2011 N 416-ФЗ \"О водоснабжении и водоотведении\", ст.2, п. 29)"]

{"sheet":"modReestr","index":16,"n_rows":0,"n_cols":0,"rows_kept":0,"cut":false,"hidden":true,"merged":[]}

{"sheet":"modfrmReestr","index":17,"n_rows":0,"n_cols":0,"rows_kept":0,"cut":false,"hidden":true,"merged":[]}

{"sheet":"modUpdTemplMain","index":18,"n_rows":0,"n_cols":0,"rows_kept":0,"cut":false,"hidden":true,"merged":[]}

{"sheet":"REESTR_ORG","index":19,"n_rows":1164,"n_cols":12,"rows_kept":1164,"cut":false,"hidden":true,"merged":[]}
["№","NSRF","MR_NAME","OKTMO_MR_NAME","MO_NAME","OKTMO_NAME","RST_ORG_ID","ORG_NAME","INN_NAME","KPP_NAME","VDET_NAME"]
[1,"Кировская область","Арбажский муниципальный район","33602000","Арбажское","33602151","26426929","ООО \"ЖКХ\"  п.Арбаж","4301001848","430101001","Оказание услуг в сфере водоснабжения","VS"]
[2,"Кировская область","Арбажский муниципальный район","33602000","Арбажское","33602151","28985073","ООО \"Комфорт\"","4301002295","430101001","Оказание услуг в сфере водоснабжения","VS"]
[3,"Кировская область","Арбажский муниципальный район","33602000","Арбажское","33602151","28985073","ООО \"Комфорт\"","4301002295","430101001","Транспортировка воды","VS"]
[4,"Кировская область","Арбажский муниципальный район","33602000","Верхотульское","33602416","26372577","Администрация Верхотульского с/п","4301001862","430101001","Оказание услуг в сфере водоснабжения","VS"]
[5,"Кировская область","Арбажский муниципальный район","33602000","Верхотульское","33602416","26372577","Администрация Верхотульского с/п","4301001862","430101001","Транспортировка воды","VS"]
[6,"Кировская область","Арбажский муниципальный район","33602000","Корминское","33602424","26372578","Администрация Корминского с/п","4301001870","430101001","Оказание услуг в сфере водоснабжения","VS"]
[7,"Кировская область","Арбажский муниципальный район","33602000","Сорвижское","33602440","30400859","Администрация МО Сорвижское сп","4301001887","430101001","Оказание услуг в сфере водоснабжения","VS"]
[8,"Кировская область","Арбажский муниципальный район","33602000","Сорвижское","33602440","30400859","Администрация МО Сорвижское сп","4301001887","430101001","Транспортировка воды","VS"]
[9,"Кировская область","Арбажский муниципальный район","33602000","Сорвижское","33602440","26426929","ООО \"ЖКХ\"  п.Арбаж","4301001848","430101001","Оказание услуг в сфере водоснабжения","VS"]
[10,"Кировская область","Арбажский муниципальный район","33602000","Шембетское","33602452","28141420","Администрация Шембетского сельского поселения","4301001855","430101001","Оказание услуг в сфере водоснабжения","VS"]
[11,"Кировская область","Арбажский муниципальный район","33602000","Шембетское","33602452","26491503","СПК колхоз \"Рассвет\"","4301001502","430101001","Оказание услуг в сфере водоснабжения","VS"]
[12,"Кировская область","Арбажский муниципальный район","33602000","Шембетское","33602452","26491503","СПК колхоз \"Рассвет\"","4301001502","430101001","Транспортировка воды","VS"]
[13,"Кировская область","Арбажский муниципальный район","33602000","Шембетское","33602452","28156295","администрация МО Шембетское сельское поселение Арбажского района","4301001855","430101001","Оказание услуг в сфере водоснабжения","VS"]
[14,"Кировская область","Арбажский муниципальный район","33602000","Шембетское","33602452","28156295","администрация МО Шембетское сельское поселение Арбажского района","4301001855","430101001","Транспортировка воды","VS"]
[15,"Кировская область","Афанасьевский муниципальный район","33603000","Бисеровское","33603412","27977572","ИП Жарков С.В.","430200792000","430201001","Оказание услуг в сфере водоснабжения","VS"]
[16,"Кировская область","Афанасьевский муниципальный район","33603000","Бисеровское","33603412","26372581","МКП ЖКХ пгт. Афанасьево","4302003020","430201001","Оказание услуг в сфере водоснабжения","VS"]
[17,"Кировская область","Афанасьевский муниципальный район","33603000","Бисеровское","33603412","26372581","МКП ЖКХ пгт. Афанасьево","4302003020","430201001","Транспортировка воды","VS"]
[18,"Кировская область","Афанасьевский муниципальный район","33603000","Бисеровское","33603412","26577942","ООО \"Сантехсервис\"","4302003936","430201001","Оказание услуг в сфере водоснабжения","VS"]
[19,"Кировская область","Афанасьевский муниципальный район","33603000","Бисеровское","33603412","26577942","ООО \"Сантехсервис\"","4302003936","430201001","Транспортировка воды","VS"]
[20,"Кировская область","Афанасьевский муниципальный район","33603000","Борское","33603416","26594899","Администрация Борского с/п","4302003277","430201001","Оказание услуг в сфере водоснабжения","VS"]
[21,"Кировская область","Афанасьевский муниципальный район","33603000","Гординское","33603428","26594879","Администрация Гординского с/п","4302003125","430201001","Оказание услуг в сфере водоснабжения","VS"]
[22,"Кировская область","Афанасьевский муниципальный район","33603000","Ичетовкинское","33603404","26418311","Администрация Ичетовкинского с/п","4302003100","430201001","Оказание услуг в сфере водоснабжения","VS"]
[23,"Кировская область","Афанасьевский муниципальный район","33603000","Ичетовкинское","33603404","26372581","МКП ЖКХ пгт. Афанасьево","4302003020","430201001","Оказание услуг в сфере водоснабжения","VS"]
[24,"Кировская область","Афанасьевский муниципальный район","33603000","Ичетовкинское","33603404","26372581","МКП ЖКХ пгт. Афанасьево","4302003020","430201001","Транспортировка воды","VS"]
[25,"Кировская область","Афанасьевский муниципальный район","33603000","Ичетовкинское","33603404","26577942","ООО \"Сантехсервис\"","4302003936","430201001","Оказание услуг в сфере водоснабжения","VS"]
[26,"Кировская область","Афанасьевский муниципальный район","33603000","Ичетовкинское","33603404","26577942","ООО \"Сантехсервис\"","4302003936","430201001","Транспортировка воды","VS"]
[27,"Кировская область","Афанасьевский муниципальный район","33603000","Ичетовкинское","33603404","26491516","ООО \"Шанс\"","4302003781","430201001","Оказание услуг в сфере водоснабжения","VS"]
[28,"Кировская область","Афанасьевский муниципальный район","33603000","Лыткинское","33603448","26491506","МКП ЖКХ \"Лытка\"","4302003904","430201001","Оказание услуг в сфере водоснабжения","VS"]
[29,"Кировская область","Афанасьевский муниципальный район","33603000","Лыткинское","33603448","26491506","МКП ЖКХ \"Лытка\"","4302003904","430201001","Транспортировка воды","VS"]
[30,"Кировская область","Афанасьевский муниципальный район","33603000","Пашинское","33603456","26372581","МКП ЖКХ пгт. Афанасьево","4302003020","430201001","Оказание услуг в сфере водоснабжения","VS"]
[31,"Кировская область","Афанасьевский муниципальный район","33603000","Пашинское","33603456","26372581","МКП ЖКХ пгт. Афанасьево","4302003020","430201001","Транспортировка воды","VS"]
[32,"Кировская область","Афанасьевский муниципальный район","33603000","Пашинское","33603456","26577942","ООО \"Сантехсервис\"","4302003936","430201001","Оказание услуг в сфере водоснабжения","VS"]
[33,"Кировская область","Афанасьевский муниципальный район","33603000","Пашинское","33603456","26577942","ООО \"Сантехсервис\"","4302003936","430201001","Транспортировка воды","VS"]
[34,"Кировская область","Афанасьевский муниципальный район","33603000","Поселок Афанасьево","33603151","26372581","МКП ЖКХ пгт. Афанасьево","4302003020","430201001","Оказание услуг в сфере водоснабжения","VS"]
[35,"Кировская область","Афанасьевский муниципальный район","33603000","Поселок Афанасьево","33603151","26372581","МКП ЖКХ пгт. Афанасьево","4302003020","430201001","Транспортировка воды","VS"]
[36,"Кировская область","Афанасьевский муниципальный район","33603000","Поселок Афанасьево","33603151","26577942","ООО \"Сантехсервис\"","4302003936","430201001","Оказание услуг в сфере водоснабжения","VS"]
[37,"Кировская область","Афанасьевский муниципальный район","33603000","Поселок Афанасьево","33603151","26577942","ООО \"Сантехсервис\"","4302003936","430201001","Транспортировка воды","VS"]
[38,"Кировская область","Белохолуницкий муниципальный район","33605000","Быдановское","33605408","26380149","ООО \"Союз\"","4303005372","430301001","Оказание услуг в сфере водоснабжения","VS"]
[39,"Кировская область","Белохолуницкий муниципальный район","33605000","Быдановское","33605408","26380149","ООО \"Союз\"","4303005372","430301001","Транспортировка воды","VS"]
[40,"Кировская область","Белохолуницкий муниципальный район","33605000","Быдановское","33605408","26372586","СПК \"Быданово\"","4303003992","430301001","Оказание услуг в сфере водоснабжения","VS"]
[41,"Кировская область","Белохолуницкий муниципальный район","33605000","Быдановское","33605408","26372586","СПК \"Быданово\"","4303003992","430301001","Транспортировка воды","VS"]
[42,"Кировская область","Белохолуницкий муниципальный район","33605000","Всехсвятское","33605420","26380149","ООО \"Союз\"","4303005372","430301001","Оказание услуг в сфере водоснабжения","VS"]
[43,"Кировская область","Белохолуницкий муниципальный район","33605000","Всехсвятское","33605420","26380149","ООО \"Союз\"","4303005372","430301001","Транспортировка воды","VS"]
[44,"Кировская область","Белохолуницкий муниципальный район","33605000","Всехсвятское","33605420","26651952","ООО\"Универсал\" д.Сырьяны, с. Всехсвятское","4303005260","430301001","Оказание услуг в сфере водоснабжения","VS"]
[45,"Кировская область","Белохолуницкий муниципальный район","33605000","Всехсвятское","33605420","26651952","ООО\"Универсал\" д.Сырьяны, с. Всехсвятское","4303005260","430301001","Транспортировка воды","VS"]
[46,"Кировская область","Белохолуницкий муниципальный район","33605000","Город Белая Холуница","33605101","26372587","ООО \"Исток\"","4303004330","430301001","Оказание услуг в сфере водоснабжения","VS"]
[47,"Кировская область","Белохолуницкий муниципальный район","33605000","Город Белая Холуница","33605101","26372587","ООО \"Исток\"","4303004330","430301001","Транспортировка воды","VS"]
[48,"Кировская область","Белохолуницкий муниципальный район","33605000","Город Белая Холуница","33605101","26380149","ООО \"Союз\"","4303005372","430301001","Оказание услуг в сфере водоснабжения","VS"]
[49,"Кировская область","Белохолуницкий муниципальный район","33605000","Город Белая Холуница","33605101","26380149","ООО \"Союз\"","4303005372","430301001","Транспортировка воды","VS"]
[50,"Кировская область","Белохолуницкий муниципальный район","33605000","Гуренское","33605422","26380149","ООО \"Союз\"","4303005372","430301001","Оказание услуг в сфере водоснабжения","VS"]
[51,"Кировская область","Белохолуницкий муниципальный район","33605000","Гуренское","33605422","26380149","ООО \"Союз\"","4303005372","430301001","Транспортировка воды","VS"]
[52,"Кировская область","Белохолуницкий муниципальный район","33605000","Дубровское","33605423","26357029","ООО \"Диалог\"","4303004562","430301001","Оказание услуг в сфере водоснабжения","VS"]
[53,"Кировская область","Белохолуницкий муниципальный район","33605000","Дубровское","33605423","26357029","ООО \"Диалог\"","4303004562","430301001","Транспортировка воды","VS"]
[54,"Кировская область","Белохолуницкий муниципальный район","33605000","Дубровское","33605423","26418432","ООО \"Родник\"","4303005774","430301001","Оказание услуг в сфере водоснабжения","VS"]
[55,"Кировская область","Белохолуницкий муниципальный район","33605000","Климковское","33605428","28817661","ООО «Велес»","4303006249","430301001","Оказание услуг в сфере водоснабжения","VS"]
[56,"Кировская область","Белохолуницкий муниципальный район","33605000","Климковское","33605428","28817661","ООО «Велес»","4303006249","430301001","Транспортировка воды","VS"]
[57,"Кировская область","Белохолуницкий муниципальный район","33605000","Подрезчихинское","33605436","26357028","ООО \"Согласие\"","4303004555","430301001","Оказание услуг в сфере водоснабжения","VS"]
[58,"Кировская область","Белохолуницкий муниципальный район","33605000","Подрезчихинское","33605436","26357028","ООО \"Согласие\"","4303004555","430301001","Транспортировка воды","VS"]
[59,"Кировская область","Белохолуницкий муниципальный район","33605000","Поломское","33605440","26380149","ООО \"Союз\"","4303005372","430301001","Оказание услуг в сфере водоснабжения","VS"]
[60,"Кировская область","Белохолуницкий муниципальный район","33605000","Поломское","33605440","26380149","ООО \"Союз\"","4303005372","430301001","Транспортировка воды","VS"]
[61,"Кировская область","Белохолуницкий муниципальный район","33605000","Поломское","33605440","26372585","СПК \"Восход\"","4303000991","430301001","Оказание услуг в сфере водоснабжения","VS"]
[62,"Кировская область","Белохолуницкий муниципальный район","33605000","Поломское","33605440","26372585","СПК \"Восход\"","4303000991","430301001","Транспортировка воды","VS"]
[63,"Кировская область","Белохолуницкий муниципальный район","33605000","Троицкое","33605456","26380149","ООО \"Союз\"","4303005372","430301001","Оказание услуг в сфере водоснабжения","VS"]
[64,"Кировская область","Белохолуницкий муниципальный район","33605000","Троицкое","33605456","26380149","ООО \"Союз\"","4303005372","430301001","Транспортировка воды","VS"]
[65,"Кировская область","Богородский муниципальный район","33606000","Ошланское","33606412","26598412","Администрация Ошланского с/п","4304001677","430401001","Оказание услуг в сфере водоснабжения","VS"]
[66,"Кировская область","Богородский муниципальный район","33606000","Ошланское","33606412","26598412","Администрация Ошланского с/п","4304001677","430401001","Транспортировка воды","VS"]
[67,"Кировская область","Богородский муниципальный район","33606000","Ошланское","33606412","26598453","Администрация Чирковского с/п","4304001684","430401001","Оказание услуг в сфере водоснабжения","VS"]
[68,"Кировская область","Богородский муниципальный район","33606000","Ошланское","33606412","26372593","МУП \"ЖКХ\" Богородского района","4304001934","430401001","Оказание услуг в сфере водоснабжения","VS"]
[69,"Кировская область","Богородский муниципальный район","33606000","Ошланское","33606412","26372593","МУП \"ЖКХ\" Богородского района","4304001934","430401001","Транспортировка воды","VS"]
[70,"Кировская область","Богородский муниципальный район","33606000","Ошланское","33606412","26841438","СПК \"Природа\"","4304001613","430401001","Оказание услуг в сфере водоснабжения","VS"]
[71,"Кировская область","Богородский муниципальный район","33606000","Ошланское","33606412","26598449","СПК \"Хорошевский\"","4304000063","430401001","Оказание услуг в сфере водоснабжения","VS"]
[72,"Кировская область","Богородский муниципальный район","33606000","Ошланское","33606412","26372676","СПК (колхоз) \"Красное знамя\"","4314000369","431401001","Оказание услуг в сфере водоснабжения","VS"]
[73,"Кировская область","Богородский муниципальный район","33606000","Ошланское","33606412","26372676","СПК (колхоз) \"Красное знамя\"","4314000369","431401001","Транспортировка воды","VS"]
[74,"Кировская область","Богородский муниципальный район","33606000","Ошланское","33606412","26652798","СПК (колхоз) им.Кирова","4304000105","430401001","Оказание услуг в сфере водоснабжения","VS"]
[75,"Кировская область","Богородский муниципальный район","33606000","Поселок Богородское","33606151","26357033","ООО \"Стимул\"","4304001500","430401001","Оказание услуг в сфере водоснабжения","VS"]
[76,"Кировская область","Богородский муниципальный район","33606000","Поселок Богородское","33606151","26357033","ООО \"Стимул\"","4304001500","430401001","Транспортировка воды","VS"]
[77,"Кировская область","Верхнекамский муниципальный район","33607000","Город Кирс","33607101","26808802","Горьковская дирекция по тепловодоснабжению структурное подразделение Центральной дирекции по тепловодоснабжению - филиала ОАО \"РЖД\"","7708503727","525745041","Оказание услуг в сфере водоснабжения","VS"]
[78,"Кировская область","Верхнекамский муниципальный район","33607000","Город Кирс","33607101","26808802","Горьковская дирекция по тепловодоснабжению структурное подразделение Центральной дирекции по тепловодоснабжению - филиала ОАО \"РЖД\"","7708503727","525745041","Транспортировка воды","VS"]
[79,"Кировская область","Верхнекамский муниципальный район","33607000","Город Кирс","33607101","26811049","МУП \"Водоканал\" г. Кирс\"","4305072208","430501001","Оказание услуг в сфере водоснабжения","VS"]
[80,"Кировская область","Верхнекамский муниципальный район","33607000","Город Кирс","33607101","27968807","МУП \"КирсСпецТранс\"","4305002049","430501001","Оказание услуг в сфере водоснабжения","VS"]
[81,"Кировская область","Верхнекамский муниципальный район","33607000","Город Кирс","33607101","26418631","МУП \"УК ЖКХ г.Кирс Верхнекамского района\"","4305071363","430501001","Оказание услуг в сфере водоснабжения","VS"]
[82,"Кировская область","Верхнекамский муниципальный район","33607000","Город Кирс","33607101","27846370","ООО  «Кирсинская ТЭЦ»","4305072310","430501001","Оказание услуг в сфере водоснабжения","VS"]
[83,"Кировская область","Верхнекамский муниципальный район","33607000","Город Кирс","33607101","27798285","ООО \"Карьер-М\"","4305000034","430501001","Оказание услуг в сфере водоснабжения","VS"]
[84,"Кировская область","Верхнекамский муниципальный район","33607000","Город Кирс","33607101","28815237","ООО \"Кирсинская теплоснабжающая компания\"","4345384041","434501001","Оказание услуг в сфере водоснабжения","VS"]
[85,"Кировская область","Верхнекамский муниципальный район","33607000","Город Кирс","33607101","28815237","ООО \"Кирсинская теплоснабжающая компания\"","4345384041","434501001","Транспортировка воды","VS"]
[86,"Кировская область","Верхнекамский муниципальный район","33607000","Город Кирс","33607101","30956442","ООО \"Кирсинская управляющая компания\"","4303006432","430301001","Оказание услуг в сфере водоснабжения","VS"]
[87,"Кировская область","Верхнекамский муниципальный район","33607000","Город Кирс","33607101","30956442","ООО \"Кирсинская управляющая компания\"","4303006432","430301001","Транспортировка воды","VS"]
[88,"Кировская область","Верхнекамский муниципальный район","33607000","Город Кирс","33607101","30370950","ООО \"Премьер\"","4305002426","430501001","Оказание услуг в сфере водоснабжения","VS"]
[89,"Кировская область","Верхнекамский муниципальный район","33607000","Город Кирс","33607101","30370950","ООО \"Премьер\"","4305002426","430501001","Транспортировка воды","VS"]
[90,"Кировская область","Верхнекамский муниципальный район","33607000","Город Кирс","33607101","28427151","ООО «Ресурс»","4305002948","430501001","Оказание услуг в сфере водоснабжения","VS"]
[91,"Кировская область","Верхнекамский муниципальный район","33607000","Город Кирс","33607101","28427151","ООО «Ресурс»","4305002948","430501001","Транспортировка воды","VS"]
[92,"Кировская область","Верхнекамский муниципальный район","33607000","Город Кирс","33607101","26517798","Филиал ОАО \"РЖД\" ГЖД Кировский региональный центр дирекции по тепловодоснабжению","7708503727","435731037","Оказание услуг в сфере водоснабжения","VS"]
[93,"Кировская область","Верхнекамский муниципальный район","33607000","Город Кирс","33607101","26517798","Филиал ОАО \"РЖД\" ГЖД Кировский региональный центр дирекции по тепловодоснабжению","7708503727","435731037","Транспортировка воды","VS"]
[94,"Кировская область","Верхнекамский муниципальный район","33607000","Кайское","33607420","26603234","Адм. Кайского с/п","4305071003","430501001","Оказание услуг в сфере водоснабжения","VS"]
[95,"Кировская область","Верхнекамский муниципальный район","33607000","Кайское","33607420","27948206","МУП \"Животновод\"","4305001609","430501001","Оказание услуг в сфере водоснабжения","VS"]
[96,"Кировская область","Верхнекамский муниципальный район","33607000","Кайское","33607420","27948206","МУП \"Животновод\"","4305001609","430501001","Транспортировка воды","VS"]
[97,"Кировская область","Верхнекамский муниципальный район","33607000","Лойнское","33607428","26603160","Адм. Лойнского с/п","4305070970","430501001","Оказание услуг в сфере водоснабжения","VS"]
[98,"Кировская область","Верхнекамский муниципальный район","33607000","Поселок Лесной","33607154","27856321","МУП ЖКХ РСО п. Лесной","4305001969","430501001","Оказание услуг в сфере водоснабжения","VS"]
[99,"Кировская область","Верхнекамский муниципальный район","33607000","Поселок Лесной","33607154","29647618","ООО \"Жилищно-коммунальное хозяйство \"Ресурс\" п. Лесной\"","4305005339","430501001","Оказание услуг в сфере водоснабжения","VS"]
[100,"Кировская область","Верхнекамский муниципальный район","33607000","Поселок Лесной","33607154","29647618","ООО \"Жилищно-коммунальное хозяйство \"Ресурс\" п. Лесной\"","4305005339","430501001","Транспортировка воды","VS"]
[101,"Кировская область","Верхнекамский муниципальный район","33607000","Поселок Лесной","33607154","26652722","ООО \"Ресурсоснабжающая организация ЖКХ п.Лесной\"","4305072399","430501001","Оказание услуг в сфере водоснабжения","VS"]
[102,"Кировская область","Верхнекамский муниципальный район","33607000","Поселок Лесной","33607154","27567025","ООО \"Теплосети п.Лесной\"","4305000926","430501001","Оказание услуг в сфере водоснабжения","VS"]
[103,"Кировская область","Верхнекамский муниципальный район","33607000","Поселок Лесной","33607154","28436057","Общество с ограниченной ответственностью \" РСО ЖКХ п.Лесной\"","4305002909","430501001","Оказание услуг в сфере водоснабжения","VS"]
[104,"Кировская область","Верхнекамский муниципальный район","33607000","Поселок Лесной","33607154","28152252","ФКУ «ИК № 20 УФСИН по Кировской области»","4305002440","430501001","Оказание услуг в сфере водоснабжения","VS"]
[105,"Кировская область","Верхнекамский муниципальный район","33607000","Поселок Лесной","33607154","28152252","ФКУ «ИК № 20 УФСИН по Кировской области»","4305002440","430501001","Транспортировка воды","VS"]
[106,"Кировская область","Верхнекамский муниципальный район","33607000","Поселок Рудничный","33607160","30958114","ООО \"ЖКХ Эксперт\"","4305005748","430501001","Оказание услуг в сфере водоснабжения","VS"]
[107,"Кировская область","Верхнекамский муниципальный район","33607000","Поселок Рудничный","33607160","30958114","ООО \"ЖКХ Эксперт\"","4305005748","430501001","Транспортировка воды","VS"]
[108,"Кировская область","Верхнекамский муниципальный район","33607000","Поселок Светлополянск","33607162","30847786","Администрация Светловского сельского поселения","4313005678","431301001","Транспортировка воды","VS"]
[109,"Кировская область","Верхнекамский муниципальный район","33607000","Поселок Светлополянск","33607162","26357036","МУП ЖКХ \"Дымное\"","4305004913","430501001","Оказание услуг в сфере водоснабжения","VS"]
[110,"Кировская область","Верхнекамский муниципальный район","33607000","Поселок Светлополянск","33607162","28855985","МУП ЖКХ Светлополянск","4305005258","430501001","Оказание услуг в сфере водоснабжения","VS"]
[111,"Кировская область","Верхнекамский муниципальный район","33607000","Поселок Светлополянск","33607162","30956442","ООО \"Кирсинская управляющая компания\"","4303006432","430301001","Оказание услуг в сфере водоснабжения","VS"]
[112,"Кировская область","Верхнекамский муниципальный район","33607000","Поселок Светлополянск","33607162","30956442","ООО \"Кирсинская управляющая компания\"","4303006432","430301001","Транспортировка воды","VS"]
[113,"Кировская область","Верхнекамский муниципальный район","33607000","Поселок Светлополянск","33607162","26812575","ООО \"Ресурсоснабжающая организация ЖКХ п.Светлополянск\"","4305072423","430501001","Оказание услуг в сфере водоснабжения","VS"]
[114,"Кировская область","Верхнекамский муниципальный район","33607000","Поселок Светлополянск","33607162","26812575","ООО \"Ресурсоснабжающая организация ЖКХ п.Светлополянск\"","4305072423","430501001","Транспортировка воды","VS"]
[115,"Кировская область","Верхнекамский муниципальный район","33607000","Созимское","33607434","29647618","ООО \"Жилищно-коммунальное хозяйство \"Ресурс\" п. Лесной\"","4305005339","430501001","Оказание услуг в сфере водоснабжения","VS"]
[116,"Кировская область","Верхнекамский муниципальный район","33607000","Созимское","33607434","29647618","ООО \"Жилищно-коммунальное хозяйство \"Ресурс\" п. Лесной\"","4305005339","430501001","Транспортировка воды","VS"]
[117,"Кировская область","Верхнекамский муниципальный район","33607000","Чусовского","33607436","26603182","Адм. Чусовское с/п","4305070881","430501001","Оказание услуг в сфере водоснабжения","VS"]
[118,"Кировская область","Верхошижемский муниципальный район","33608000","Калачиговское","33608418","26829552","СПК колхоз \"Русь\"","4306000407","430601001","Оказание услуг в сфере водоснабжения","VS"]
[119,"Кировская область","Верхошижемский муниципальный район","33608000","Калачиговское","33608418","26829552","СПК колхоз \"Русь\"","4306000407","430601001","Транспортировка воды","VS"]
[120,"Кировская область","Верхошижемский муниципальный район","33608000","Калачиговское","33608418","26372602","ФГУП \"СП \"Нива\"","4306002073","430601001","Оказание услуг в сфере водоснабжения","VS"]
[121,"Кировская область","Верхошижемский муниципальный район","33608000","Калачиговское","33608418","26372602","ФГУП \"СП \"Нива\"","4306002073","430601001","Транспортировка воды","VS"]
[122,"Кировская область","Верхошижемский муниципальный район","33608000","Косинское","33608420","26844783","ООО \"СХП \"Косино\"","4306003158","430601001","Оказание услуг в сфере водоснабжения","VS"]
[123,"Кировская область","Верхошижемский муниципальный район","33608000","Косинское","33608420","26844783","ООО \"СХП \"Косино\"","4306003158","430601001","Транспортировка воды","VS"]
[124,"Кировская область","Верхошижемский муниципальный район","33608000","Косинское","33608420","26372599","СПК колхоз \"Рассвет\"","4306000037","430601001","Оказание услуг в сфере водоснабжения","VS"]
[125,"Кировская область","Верхошижемский муниципальный район","33608000","Мякишинское","33608424","26650320","Администрация Мякишинского с/п","4306002475","430601001","Оказание услуг в сфере водоснабжения","VS"]
[126,"Кировская область","Верхошижемский муниципальный район","33608000","Мякишинское","33608424","26650320","Администрация Мякишинского с/п","4306002475","430601001","Транспортировка воды","VS"]
[127,"Кировская область","Верхошижемский муниципальный район","33608000","Поселок Верхошижемье","33608151","26372604","Администрация Верхолиповского с/п","4306002490","430601001","Оказание услуг в сфере водоснабжения","VS"]
[128,"Кировская область","Верхошижемский муниципальный район","33608000","Поселок Верхошижемье","33608151","26649956","Администрация Верхошижемского г/п","4306002362","430601001","Оказание услуг в сфере водоснабжения","VS"]
[129,"Кировская область","Верхошижемский муниципальный район","33608000","Поселок Верхошижемье","33608151","26649956","Администрация Верхошижемского г/п","4306002362","430601001","Транспортировка воды","VS"]
[130,"Кировская область","Верхошижемский муниципальный район","33608000","Поселок Верхошижемье","33608151","30837207","КОГКУСО \"Верхошижемский психоневрологический интернат\"","4306001217","430601001","Оказание услуг в сфере водоснабжения","VS"]
[131,"Кировская область","Верхошижемский муниципальный район","33608000","Поселок Верхошижемье","33608151","30837207","КОГКУСО \"Верхошижемский психоневрологический интернат\"","4306001217","430601001","Транспортировка воды","VS"]
[132,"Кировская область","Верхошижемский муниципальный район","33608000","Поселок Верхошижемье","33608151","28424404","ООО \"ВодСнабМонтаж\"","4306003285","430601001","Оказание услуг в сфере водоснабжения","VS"]
[133,"Кировская область","Верхошижемский муниципальный район","33608000","Поселок Верхошижемье","33608151","28424404","ООО \"ВодСнабМонтаж\"","4306003285","430601001","Транспортировка воды","VS"]
[134,"Кировская область","Верхошижемский муниципальный район","33608000","Поселок Верхошижемье","33608151","27836684","ООО \"СпецРемСтрой\"","4330007467","433001001","Оказание услуг в сфере водоснабжения","VS"]
[135,"Кировская область","Верхошижемский муниципальный район","33608000","Пунгинское","33608428","30956436","ООО \"СХП \"Пунгино\"","4306003359","430601001","Оказание услуг в сфере водоснабжения","VS"]
[136,"Кировская область","Верхошижемский муниципальный район","33608000","Пунгинское","33608428","30956436","ООО \"СХП \"Пунгино\"","4306003359","430601001","Транспортировка воды","VS"]
[137,"Кировская область","Верхошижемский муниципальный район","33608000","Среднеивкинское","33608432","26418693","ООО \"УК ЖКХ Водолей\"","4306002958","430601001","Оказание услуг в сфере водоснабжения","VS"]
[138,"Кировская область","Верхошижемский муниципальный район","33608000","Среднеивкинское","33608432","26418693","ООО \"УК ЖКХ Водолей\"","4306002958","430601001","Транспортировка воды","VS"]
[139,"Кировская область","Верхошижемский муниципальный район","33608000","Сырдинское","33608436","26357042","СПК \"Звезда\"","4306002820","430601001","Оказание услуг в сфере водоснабжения","VS"]
[140,"Кировская область","Верхошижемский муниципальный район","33608000","Сырдинское","33608436","26357042","СПК \"Звезда\"","4306002820","430601001","Транспортировка воды","VS"]
[141,"Кировская область","Верхошижемский муниципальный район","33608000","Угорское","33608440","26372601","ИП Созин Александр Павлович","430600177151","430601001","Оказание услуг в сфере водоснабжения","VS"]
[142,"Кировская область","Верхошижемский муниципальный район","33608000","Угорское","33608440","27858131","СПК \"Угор\"","4306002789","430601001","Оказание услуг в сфере водоснабжения","VS"]
[143,"Кировская область","Верхошижемский муниципальный район","33608000","Угорское","33608440","27858131","СПК \"Угор\"","4306002789","430601001","Транспортировка воды","VS"]
[144,"Кировская область","Вятские Поляны","33704000","Вятские Поляны","33704000","29648223","МУП Коммунальные Энергетические Системы \"Энерго\"","4340000559","430701001","Оказание услуг в сфере водоснабжения","VS"]
[145,"Кировская область","Вятские Поляны","33704000","Вятские Поляны","33704000","29648223","МУП Коммунальные Энергетические Системы \"Энерго\"","4340000559","430701001","Транспортировка воды","VS"]
[146,"Кировская область","Вятские Поляны","33704000","Вятские Поляны","33704000","26653832","ОАО \"Вятско-Полянская птицефабрика\"","4307003680","430701001","Оказание услуг в сфере водоснабжения","VS"]
[147,"Кировская область","Вятские Поляны","33704000","Вятские Поляны","33704000","26653832","ОАО \"Вятско-Полянская птицефабрика\"","4307003680","430701001","Транспортировка воды","VS"]
[148,"Кировская область","Вятские Поляны","33704000","Вятские Поляны","33704000","27851245","ООО \"Водоканал\"","4307015614","430701001","Оказание услуг в сфере водоснабжения","VS"]
[149,"Кировская область","Вятские Поляны","33704000","Вятские Поляны","33704000","27851245","ООО \"Водоканал\"","4307015614","430701001","Транспортировка воды","VS"]
[150,"Кировская область","Вятские Поляны","33704000","Вятские Поляны","33704000","26491511","ПАО «МРСК «Центра и Приволжья»","5260200603","434502001","Оказание услуг в сфере водоснабжения","VS"]
[151,"Кировская область","Вятскополянский муниципальный район","33610000","Город Сосновка","33610104","26372612","ООО \"Сосновский Водоканал\"","4307008247","430701001","Оказание услуг в сфере водоснабжения","VS"]
[152,"Кировская область","Вятскополянский муниципальный район","33610000","Город Сосновка","33610104","26372612","ООО \"Сосновский Водоканал\"","4307008247","430701001","Транспортировка воды","VS"]
[153,"Кировская область","Вятскополянский муниципальный район","33610000","Гремячевское","33610404","26418934","ООО \"Краснополянский жилкомхоз\"","4307008430","430701001","Оказание услуг в сфере водоснабжения","VS"]
[154,"Кировская область","Вятскополянский муниципальный район","33610000","Гремячевское","33610404","26418934","ООО \"Краснополянский жилкомхоз\"","4307008430","430701001","Транспортировка воды","VS"]
[155,"Кировская область","Вятскополянский муниципальный район","33610000","Ершовское","33610406","26419029","МКП \"Коммунальщик\"","4307010863","430701001","Оказание услуг в сфере водоснабжения","VS"]
[156,"Кировская область","Вятскополянский муниципальный район","33610000","Ершовское","33610406","26419029","МКП \"Коммунальщик\"","4307010863","430701001","Транспортировка воды","VS"]
[157,"Кировская область","Вятскополянский муниципальный район","33610000","Кулыжское","33610408","26419029","МКП \"Коммунальщик\"","4307010863","430701001","Оказание услуг в сфере водоснабжения","VS"]
[158,"Кировская область","Вятскополянский муниципальный район","33610000","Кулыжское","33610408","26419029","МКП \"Коммунальщик\"","4307010863","430701001","Транспортировка воды","VS"]
[159,"Кировская область","Вятскополянский муниципальный район","33610000","Новобурецкое","33610410","26419029","МКП \"Коммунальщик\"","4307010863","430701001","Оказание услуг в сфере водоснабжения","VS"]
[160,"Кировская область","Вятскополянский муниципальный район","33610000","Новобурецкое","33610410","26419029","МКП \"Коммунальщик\"","4307010863","430701001","Транспортировка воды","VS"]
[161,"Кировская область","Вятскополянский муниципальный район","33610000","Новобурецкое","33610410","26372616","ООО \"Жилкомсервис\"","4307009410","430701001","Транспортировка воды","VS"]
[162,"Кировская область","Вятскополянский муниципальный район","33610000","Омгинское","33610412","28819114","ООО «Омга»","4307009145","430701001","Оказание услуг в сфере водоснабжения","VS"]
[163,"Кировская область","Вятскополянский муниципальный район","33610000","Омгинское","33610412","28819114","ООО «Омга»","4307009145","430701001","Транспортировка воды","VS"]
[164,"Кировская область","Вятскополянский муниципальный район","33610000","Поселок Красная Поляна","33610154","26372613","МУП \"Краснополянский водоканал\"","4307008409","430701001","Оказание услуг в сфере водоснабжения","VS"]
[165,"Кировская область","Вятскополянский муниципальный район","33610000","Поселок Красная Поляна","33610154","26372613","МУП \"Краснополянский водоканал\"","4307008409","430701001","Транспортировка воды","VS"]
[166,"Кировская область","Вятскополянский муниципальный район","33610000","Поселок Красная Поляна","33610154","26418934","ООО \"Краснополянский жилкомхоз\"","4307008430","430701001","Оказание услуг в сфере водоснабжения","VS"]
[167,"Кировская область","Вятскополянский муниципальный район","33610000","Поселок Красная Поляна","33610154","26418934","ООО \"Краснополянский жилкомхоз\"","4307008430","430701001","Транспортировка воды","VS"]
[168,"Кировская область","Вятскополянский муниципальный район","33610000","Поселок Красная Поляна","33610154","26444337","ФГКУ комбинат \"Ударник\" Росрезерва","4307000840","430701001","Оказание услуг в сфере водоснабжения","VS"]
[169,"Кировская область","Вятскополянский муниципальный район","33610000","Поселок Красная Поляна","33610154","26444337","ФГКУ комбинат \"Ударник\" Росрезерва","4307000840","430701001","Транспортировка воды","VS"]
[170,"Кировская область","Вятскополянский муниципальный район","33610000","Слудское","33610416","26357058","ООО \"Алмаз 1\"","4307010408","430701001","Оказание услуг в сфере водоснабжения","VS"]
[171,"Кировская область","Вятскополянский муниципальный район","33610000","Слудское","33610416","26357058","ООО \"Алмаз 1\"","4307010408","430701001","Транспортировка воды","VS"]
[172,"Кировская область","Вятскополянский муниципальный район","33610000","Среднетойменское","33610420","28424361","ИП Чернов А.Ю.","430705090645","отсутствует","Оказание услуг в сфере водоснабжения","VS"]
[173,"Кировская область","Вятскополянский муниципальный район","33610000","Среднетойменское","33610420","28424361","ИП Чернов А.Ю.","430705090645","отсутствует","Транспортировка воды","VS"]
[174,"Кировская область","Вятскополянский муниципальный район","33610000","Среднетойменское","33610420","26419029","МКП \"Коммунальщик\"","4307010863","430701001","Оказание услуг в сфере водоснабжения","VS"]
[175,"Кировская область","Вятскополянский муниципальный район","33610000","Среднетойменское","33610420","26419029","МКП \"Коммунальщик\"","4307010863","430701001","Транспортировка воды","VS"]
[176,"Кировская область","Вятскополянский муниципальный район","33610000","Среднетойменское","33610420","26418902","ООО \"Тепловик 1\"","4307011000","430701001","Оказание услуг в сфере водоснабжения","VS"]
[177,"Кировская область","Вятскополянский муниципальный район","33610000","Среднешунское","33610424","26853030","ООО \"Газсервис\"","4307007606","430701001","Оказание услуг в сфере водоснабжения","VS"]
[178,"Кировская область","Вятскополянский муниципальный район","33610000","Среднешунское","33610424","26418934","ООО \"Краснополянский жилкомхоз\"","4307008430","430701001","Оказание услуг в сфере водоснабжения","VS"]
[179,"Кировская область","Вятскополянский муниципальный район","33610000","Среднешунское","33610424","26418934","ООО \"Краснополянский жилкомхоз\"","4307008430","430701001","Транспортировка воды","VS"]
[180,"Кировская область","Вятскополянский муниципальный район","33610000","Среднешунское","33610424","26372608","СХА (колхоз) \"Вятка\"","4307000583","430701001","Оказание услуг в сфере водоснабжения","VS"]
[181,"Кировская область","Вятскополянский муниципальный район","33610000","Старопинигерское","33610426","26419029","МКП \"Коммунальщик\"","4307010863","430701001","Оказание услуг в сфере водоснабжения","VS"]
[182,"Кировская область","Вятскополянский муниципальный район","33610000","Старопинигерское","33610426","26419029","МКП \"Коммунальщик\"","4307010863","430701001","Транспортировка воды","VS"]
[183,"Кировская область","Вятскополянский муниципальный район","33610000","Усть-Люгинское","33610428","26419029","МКП \"Коммунальщик\"","4307010863","430701001","Оказание услуг в сфере водоснабжения","VS"]
[184,"Кировская область","Вятскополянский муниципальный район","33610000","Усть-Люгинское","33610428","26419029","МКП \"Коммунальщик\"","4307010863","430701001","Транспортировка воды","VS"]
[185,"Кировская область","Вятскополянский муниципальный район","33610000","Чекашевское","33610432","26419029","МКП \"Коммунальщик\"","4307010863","430701001","Оказание услуг в сфере водоснабжения","VS"]
[186,"Кировская область","Вятскополянский муниципальный район","33610000","Чекашевское","33610432","26419029","МКП \"Коммунальщик\"","4307010863","430701001","Транспортировка воды","VS"]
[187,"Кировская область","Вятскополянский муниципальный район","33610000","Чекашевское","33610432","26372615","ООО \"Кристалл\"","4307009392","430701001","Оказание услуг в сфере водоснабжения","VS"]
[188,"Кировская область","Даровской муниципальный район","33612000","Верховонданское","33612412","26594987","Администрация Верховонданское с/п","4308003234","430801001","Оказание услуг в сфере водоснабжения","VS"]
[189,"Кировская область","Даровской муниципальный район","33612000","Верховонданское","33612412","26594987","Администрация Верховонданское с/п","4308003234","430801001","Транспортировка воды","VS"]
[190,"Кировская область","Даровской муниципальный район","33612000","Вонданское","33612416","26372625","СПК колхоз \"Вонданский\"","4308002390","430801001","Оказание услуг в сфере водоснабжения","VS"]
[191,"Кировская область","Даровской муниципальный район","33612000","Вонданское","33612416","26372624","СПК колхоз \"Коноваловский\"","4308002368","430801001","Оказание услуг в сфере водоснабжения","VS"]
[192,"Кировская область","Даровской муниципальный район","33612000","Вонданское","33612416","28156333","администрация Вонданского сельского поселения Даровского района","4308003259","430801001","Оказание услуг в сфере водоснабжения","VS"]
[193,"Кировская область","Даровской муниципальный район","33612000","Вонданское","33612416","28156333","администрация Вонданского сельского поселения Даровского района","4308003259","430801001","Транспортировка воды","VS"]
[194,"Кировская область","Даровской муниципальный район","33612000","Кобрское","33612432","26372628","Администрация Кобрского с/п","4308003210","430801001","Оказание услуг в сфере водоснабжения","VS"]
[195,"Кировская область","Даровской муниципальный район","33612000","Кобрское","33612432","26372628","Администрация Кобрского с/п","4308003210","430801001","Транспортировка воды","VS"]
[196,"Кировская область","Даровской муниципальный район","33612000","Кобрское","33612432","26652886","ООО \"Первое мая\"","4308003442","430801001","Оказание услуг в сфере водоснабжения","VS"]
[197,"Кировская область","Даровской муниципальный район","33612000","Лузянское","33612440","26372629","Администрация Лузянского с/п","4308003273","430801001","Оказание услуг в сфере водоснабжения","VS"]
[198,"Кировская область","Даровской муниципальный район","33612000","Лузянское","33612440","26372629","Администрация Лузянского с/п","4308003273","430801001","Транспортировка воды","VS"]
[199,"Кировская область","Даровской муниципальный район","33612000","Лузянское","33612440","26372622","СПК колхоз \"Коммунизм\"","4308000642","430801001","Оказание услуг в сфере водоснабжения","VS"]
[200,"Кировская область","Даровской муниципальный район","33612000","Пиксурское","33612408","26372619","СПК колхоз \"Нива\"","4308000353","430801001","Оказание услуг в сфере водоснабжения","VS"]
[201,"Кировская область","Даровской муниципальный район","33612000","Пиксурское","33612408","28256687","администрация Пиксурского с/п Даровского района","4308003298","430801001","Оказание услуг в сфере водоснабжения","VS"]
[202,"Кировская область","Даровской муниципальный район","33612000","Пиксурское","33612408","28256687","администрация Пиксурского с/п Даровского района","4308003298","430801001","Транспортировка воды","VS"]
[203,"Кировская область","Даровской муниципальный район","33612000","Поселок Даровской","33612151","26646624","АО \"Даровское ДЭП-14\"","4308003562","430801001","Оказание услуг в сфере водоснабжения","VS"]
[204,"Кировская область","Даровской муниципальный район","33612000","Поселок Даровской","33612151","26646624","АО \"Даровское ДЭП-14\"","4308003562","430801001","Транспортировка воды","VS"]
[205,"Кировская область","Даровской муниципальный район","33612000","Поселок Даровской","33612151","28488860","Администрация Даровского городского поселения","4308003178","430801001","Оказание услуг в сфере водоснабжения","VS"]
[206,"Кировская область","Даровской муниципальный район","33612000","Поселок Даровской","33612151","28488860","Администрация Даровского городского поселения","4308003178","430801001","Транспортировка воды","VS"]
[207,"Кировская область","Даровской муниципальный район","33612000","Поселок Даровской","33612151","31021020","МУП Гарант","4308004421","430801001","Оказание услуг в сфере водоснабжения","VS"]
[208,"Кировская область","Даровской муниципальный район","33612000","Поселок Даровской","33612151","31021020","МУП Гарант","4308004421","430801001","Транспортировка воды","VS"]
[209,"Кировская область","Даровской муниципальный район","33612000","Поселок Даровской","33612151","26372626","ОАО агрофирма \"Маяк\"","4308002907","430801001","Оказание услуг в сфере водоснабжения","VS"]
[210,"Кировская область","Даровской муниципальный район","33612000","Поселок Даровской","33612151","26421049","ООО \"Колос\"","4308003121","430801001","Оказание услуг в сфере водоснабжения","VS"]
[211,"Кировская область","Даровской муниципальный район","33612000","Поселок Даровской","33612151","26372623","СПК \"Дымковский\"","4308001734","430801001","Оказание услуг в сфере водоснабжения","VS"]
[212,"Кировская область","Даровской муниципальный район","33612000","Поселок Даровской","33612151","26372618","СПК колхоз \"Восход\"","4308000233","430801001","Оказание услуг в сфере водоснабжения","VS"]
[213,"Кировская область","Даровской муниципальный район","33612000","Поселок Даровской","33612151","26372620","СПК колхоз \"Заря\"","4308000378","430801001","Оказание услуг в сфере водоснабжения","VS"]
[214,"Кировская область","Даровской муниципальный район","33612000","Поселок Даровской","33612151","26372620","СПК колхоз \"Заря\"","4308000378","430801001","Транспортировка воды","VS"]
[215,"Кировская область","Даровской муниципальный район","33612000","Поселок Даровской","33612151","26372621","СПК колхоз \"Тороповский\"","4308000459","430801001","Оказание услуг в сфере водоснабжения","VS"]
[216,"Кировская область","ЗАТО Первомайский","33787000","ЗАТО Первомайский","33787000","26560525","АО \"ГУ ЖКХ\"","5116000922","511601001","Оказание услуг в сфере водоснабжения","VS"]
[217,"Кировская область","ЗАТО Первомайский","33787000","ЗАТО Первомайский","33787000","26560525","АО \"ГУ ЖКХ\"","5116000922","511601001","Транспортировка воды","VS"]
[218,"Кировская область","ЗАТО Первомайский","33787000","ЗАТО Первомайский","33787000","30407160","АО \"ГУ ЖКХ\"","5116000922","183845001","Оказание услуг в сфере водоснабжения","VS"]
[219,"Кировская область","ЗАТО Первомайский","33787000","ЗАТО Первомайский","33787000","26421051","МУП ЖКХ \"Уют\"","4338006063","433801001","Оказание услуг в сфере водоснабжения","VS"]
[220,"Кировская область","ЗАТО Первомайский","33787000","ЗАТО Первомайский","33787000","26421051","МУП ЖКХ \"Уют\"","4338006063","433801001","Транспортировка воды","VS"]
[221,"Кировская область","ЗАТО Первомайский","33787000","ЗАТО Первомайский","33787000","30933816","ООО \"Уют\"","4338009610","433801001","Оказание услуг в сфере водоснабжения","VS"]
[222,"Кировская область","ЗАТО Первомайский","33787000","ЗАТО Первомайский","33787000","30933816","ООО \"Уют\"","4338009610","433801001","Транспортировка воды","VS"]
[223,"Кировская область","Зуевский муниципальный район","33614000","Город Зуевка","33614101","26808802","Горьковская дирекция по тепловодоснабжению структурное подразделение Центральной дирекции по тепловодоснабжению - филиала ОАО \"РЖД\"","7708503727","525745041","Оказание услуг в сфере водоснабжения","VS"]
[224,"Кировская область","Зуевский муниципальный район","33614000","Город Зуевка","33614101","26808802","Горьковская дирекция по тепловодоснабжению структурное подразделение Центральной дирекции по тепловодоснабжению - филиала ОАО \"РЖД\"","7708503727","525745041","Транспортировка воды","VS"]
[225,"Кировская область","Зуевский муниципальный район","33614000","Город Зуевка","33614101","26380169","ООО \"Кристалл\"","4309005523","430901001","Оказание услуг в сфере водоснабжения","VS"]
[226,"Кировская область","Зуевский муниципальный район","33614000","Город Зуевка","33614101","26380169","ООО \"Кристалл\"","4309005523","430901001","Транспортировка воды","VS"]
[227,"Кировская область","Зуевский муниципальный район","33614000","Город Зуевка","33614101","26517798","Филиал ОАО \"РЖД\" ГЖД Кировский региональный центр дирекции по тепловодоснабжению","7708503727","435731037","Оказание услуг в сфере водоснабжения","VS"]
[228,"Кировская область","Зуевский муниципальный район","33614000","Город Зуевка","33614101","26517798","Филиал ОАО \"РЖД\" ГЖД Кировский региональный центр дирекции по тепловодоснабжению","7708503727","435731037","Транспортировка воды","VS"]
[229,"Кировская область","Зуевский муниципальный район","33614000","Зуевское","33614408","26836683","ИП Наумов П.В.","430902036132","430901001","Транспортировка воды","VS"]
[230,"Кировская область","Зуевский муниципальный район","33614000","Зуевское","33614408","30943192","Муниципальное учреждение Администрация Зуёвского сельского поселения Зуевского района Кировской области","4309005026","430901001","Оказание услуг в сфере водоснабжения","VS"]
[231,"Кировская область","Зуевский муниципальный район","33614000","Кордяжское","33614412","28424396","Администрация Кордяжского сельского поселения","4309005114","430901001","Оказание услуг в сфере водоснабжения","VS"]
[232,"Кировская область","Зуевский муниципальный район","33614000","Кордяжское","33614412","28424396","Администрация Кордяжского сельского поселения","4309005114","430901001","Транспортировка воды","VS"]
[233,"Кировская область","Зуевский муниципальный район","33614000","Кордяжское","33614412","26836683","ИП Наумов П.В.","430902036132","430901001","Транспортировка воды","VS"]
[234,"Кировская область","Зуевский муниципальный район","33614000","Кордяжское","33614412","26836734","ИП Туснолобов И.Я.","430900811474","430901001","Оказание услуг в сфере водоснабжения","VS"]
[235,"Кировская область","Зуевский муниципальный район","33614000","Косинское","33614458","28457753","Администрация Косинского с/п Зуевского района","4309005107","430901001","Оказание услуг в сфере водоснабжения","VS"]
[236,"Кировская область","Зуевский муниципальный район","33614000","Косинское","33614458","28446812","Администрация Косинского сельского поселения","4309005107","430901001","Оказание услуг в сфере водоснабжения","VS"]
[237,"Кировская область","Зуевский муниципальный район","33614000","Косинское","33614458","28942010","ООО «СтройКом».","4335003931","433501001","Оказание услуг в сфере водоснабжения","VS"]
[238,"Кировская область","Зуевский муниципальный район","33614000","Косинское","33614458","28942010","ООО «СтройКом».","4335003931","433501001","Транспортировка воды","VS"]
[239,"Кировская область","Зуевский муниципальный район","33614000","Мухинское","33614424","28257700","МУ Администрация Мухинского сельского поселения Зуевского района Кировской области","4309005139","430901001","Оказание услуг в сфере водоснабжения","VS"]
[240,"Кировская область","Зуевский муниципальный район","33614000","Мухинское","33614424","28257700","МУ Администрация Мухинского сельского поселения Зуевского района Кировской области","4309005139","430901001","Транспортировка воды","VS"]
[241,"Кировская область","Зуевский муниципальный район","33614000","Мухинское","33614424","26372630","ООО ЖКХ \"Родник\"","4309004618","430901001","Оказание услуг в сфере водоснабжения","VS"]
[242,"Кировская область","Зуевский муниципальный район","33614000","Мухинское","33614424","26372630","ООО ЖКХ \"Родник\"","4309004618","430901001","Транспортировка воды","VS"]
[243,"Кировская область","Зуевский муниципальный район","33614000","Октябрьское","33614428","28792066","Администрация Октябрьского сельского поселения","4309005097","430901001","Оказание услуг в сфере водоснабжения","VS"]
[244,"Кировская область","Зуевский муниципальный район","33614000","Октябрьское","33614428","28792066","Администрация Октябрьского сельского поселения","4309005097","430901001","Транспортировка воды","VS"]
[245,"Кировская область","Зуевский муниципальный район","33614000","Октябрьское","33614428","26372630","ООО ЖКХ \"Родник\"","4309004618","430901001","Оказание услуг в сфере водоснабжения","VS"]
[246,"Кировская область","Зуевский муниципальный район","33614000","Октябрьское","33614428","26372630","ООО ЖКХ \"Родник\"","4309004618","430901001","Транспортировка воды","VS"]
[247,"Кировская область","Зуевский муниципальный район","33614000","Сезеневское","33614436","28253536","Администрация Сезеневского сельского поселения","4309005040","430901001","Оказание услуг в сфере водоснабжения","VS"]
[248,"Кировская область","Зуевский муниципальный район","33614000","Сезеневское","33614436","28253536","Администрация Сезеневского сельского поселения","4309005040","430901001","Транспортировка воды","VS"]
[249,"Кировская область","Зуевский муниципальный район","33614000","Сезеневское","33614436","26836683","ИП Наумов П.В.","430902036132","430901001","Транспортировка воды","VS"]
[250,"Кировская область","Зуевский муниципальный район","33614000","Семушинское","33614442","26372652","ООО \"ЖКХ Гарант\"","4312042758","431201001","Оказание услуг в сфере водоснабжения","VS"]
[251,"Кировская область","Зуевский муниципальный район","33614000","Семушинское","33614442","26592839","ООО ЖКХ \"Чуваши\"","4312033464","431201001","Оказание услуг в сфере водоснабжения","VS"]
[252,"Кировская область","Зуевский муниципальный район","33614000","Соколовское","33614443","28855770","Администрации Соколовского сельского поселения","4309005072","430901001","Оказание услуг в сфере водоснабжения","VS"]
[253,"Кировская область","Зуевский муниципальный район","33614000","Соколовское","33614443","28855770","Администрации Соколовского сельского поселения","4309005072","430901001","Транспортировка воды","VS"]
[254,"Кировская область","Зуевский муниципальный район","33614000","Соколовское","33614443","28141408","МУ Администрация Соколовского сельского поселения Зуевского района Кировкой области","4309005072","430901001","Оказание услуг в сфере водоснабжения","VS"]
[255,"Кировская область","Зуевский муниципальный район","33614000","Соколовское","33614443","26595023","СПК \"Родина\"","4309000780","430901001","Оказание услуг в сфере водоснабжения","VS"]
[256,"Кировская область","Зуевский муниципальный район","33614000","Соколовское","33614443","28505876","СПК \"Соколовка\"","4309003131","431101001","Оказание услуг в сфере водоснабжения","VS"]
[257,"Кировская область","Зуевский муниципальный район","33614000","Сунское","33614448","26372630","ООО ЖКХ \"Родник\"","4309004618","430901001","Оказание услуг в сфере водоснабжения","VS"]
[258,"Кировская область","Зуевский муниципальный район","33614000","Сунское","33614448","26421071","СПК ПЗ \"Новый\"","4309000733","430901001","Оказание услуг в сфере водоснабжения","VS"]
[259,"Кировская область","Зуевский муниципальный район","33614000","Сунское","33614448","26421071","СПК ПЗ \"Новый\"","4309000733","430901001","Транспортировка воды","VS"]
[260,"Кировская область","Зуевский муниципальный район","33614000","Чепецкое","33614453","28253644","Администрация Чепецкого сельского поселения Зуевского района","4309005033","430901001","Оказание услуг в сфере водоснабжения","VS"]
[261,"Кировская область","Зуевский муниципальный район","33614000","Чепецкое","33614453","28253644","Администрация Чепецкого сельского поселения Зуевского района","4309005033","430901001","Транспортировка воды","VS"]
[262,"Кировская область","Зуевский муниципальный район","33614000","Чепецкое","33614453","26836683","ИП Наумов П.В.","430902036132","430901001","Транспортировка воды","VS"]
[263,"Кировская область","Кикнурский муниципальный район","33616000","Кикнурское","33616438","28882545","Администрация Кикнурского сельского поселения","4311003763","431101001","Оказание услуг в сфере водоснабжения","VS"]
[264,"Кировская область","Кикнурский муниципальный район","33616000","Кикнурское","33616438","28882545","Администрация Кикнурского сельского поселения","4311003763","431101001","Транспортировка воды","VS"]
[265,"Кировская область","Кикнурский муниципальный район","33616000","Кикнурское","33616438","30837207","КОГКУСО \"Верхошижемский психоневрологический интернат\"","4306001217","430601001","Оказание услуг в сфере водоснабжения","VS"]
[266,"Кировская область","Кикнурский муниципальный район","33616000","Кикнурское","33616438","30837207","КОГКУСО \"Верхошижемский психоневрологический интернат\"","4306001217","430601001","Транспортировка воды","VS"]
[267,"Кировская область","Кикнурский муниципальный район","33616000","Кикнурское","33616438","27341298","СПК \"Новый\"","4311003636","431101001","Оказание услуг в сфере водоснабжения","VS"]
[268,"Кировская область","Кикнурский муниципальный район","33616000","Кикнурское","33616438","27341298","СПК \"Новый\"","4311003636","431101001","Транспортировка воды","VS"]
[269,"Кировская область","Кикнурский муниципальный район","33616000","Кикнурское","33616438","26372642","СПК (колхоз) \"Авангард\"","4311002706","431101001","Оказание услуг в сфере водоснабжения","VS"]
[270,"Кировская область","Кикнурский муниципальный район","33616000","Кикнурское","33616438","26372642","СПК (колхоз) \"Авангард\"","4311002706","431101001","Транспортировка воды","VS"]
[271,"Кировская область","Кикнурский муниципальный район","33616000","Поселок Кикнур","33616151","26357067","МУП \"Коммунальщик\"","4311002760","431101001","Оказание услуг в сфере водоснабжения","VS"]
[272,"Кировская область","Кикнурский муниципальный район","33616000","Поселок Кикнур","33616151","26357067","МУП \"Коммунальщик\"","4311002760","431101001","Транспортировка воды","VS"]
[273,"Кировская область","Кикнурский муниципальный район","33616000","Поселок Кикнур","33616151","26755549","ОАО \"Кикнурский маслозавод\"","4311000025","431101001","Оказание услуг в сфере водоснабжения","VS"]
[274,"Кировская область","Кикнурский муниципальный район","33616000","Поселок Кикнур","33616151","26840971","ОАО «Кикнурский маслодельный завод»","4311000025","431101001","Оказание услуг в сфере водоснабжения","VS"]
[275,"Кировская область","Кильмезский муниципальный район","33617000","Большепорекское","33617440","26799753","Администрация МО Большепорекское сельское поселение","4310033701","431001001","Оказание услуг в сфере водоснабжения","VS"]
[276,"Кировская область","Кильмезский муниципальный район","33617000","Большепорекское","33617440","26838008","СПК - колхоз \"Заря\"","4310033934","431001001","Оказание услуг в сфере водоснабжения","VS"]
[277,"Кировская область","Кильмезский муниципальный район","33617000","Бурашевское","33617404","26755567","Администрация Бурашевского с/п","4310033451","431001001","Оказание услуг в сфере водоснабжения","VS"]
[278,"Кировская область","Кильмезский муниципальный район","33617000","Вихаревское","33617408","27573675","Администрация Вихаревского с/п","4310033719","431001001","Оказание услуг в сфере водоснабжения","VS"]
[279,"Кировская область","Кильмезский муниципальный район","33617000","Вихаревское","33617408","28454193","Администрация Вихаревского сельского поселения Кильмезского района","4310033719","431001001","Оказание услуг в сфере водоснабжения","VS"]
[280,"Кировская область","Кильмезский муниципальный район","33617000","Вихаревское","33617408","28454193","Администрация Вихаревского сельского поселения Кильмезского района","4310033719","431001001","Транспортировка воды","VS"]
[281,"Кировская область","Кильмезский муниципальный район","33617000","Вихаревское","33617408","26372638","ООО \"Вихаревский\"","4310033910","431001001","Оказание услуг в сфере водоснабжения","VS"]
[282,"Кировская область","Кильмезский муниципальный район","33617000","Дамаскинское","33617412","30351532","Администрация Дамаскинского сельского поселения","4310033596","431001001","Оказание услуг в сфере водоснабжения","VS"]
[283,"Кировская область","Кильмезский муниципальный район","33617000","Дамаскинское","33617412","26755572","Администрация МО Дамаскинское с/п","4310033596","431001001","Оказание услуг в сфере водоснабжения","VS"]
[284,"Кировская область","Кильмезский муниципальный район","33617000","Дамаскинское","33617412","28002631","ООО \"Стройсантехмонтаж 43\"","4345317581","434501001","Оказание услуг в сфере водоснабжения","VS"]
[285,"Кировская область","Кильмезский муниципальный район","33617000","Зимнякское","33617418","26473416","ООО \"Житница\"","4310033998","431001001","Оказание услуг в сфере водоснабжения","VS"]
[286,"Кировская область","Кильмезский муниципальный район","33617000","Зимнякское","33617418","26372636","ООО \"Кильмезьводоканал\"","4310004203","431001001","Оказание услуг в сфере водоснабжения","VS"]
[287,"Кировская область","Кильмезский муниципальный район","33617000","Зимнякское","33617418","26372636","ООО \"Кильмезьводоканал\"","4310004203","431001001","Транспортировка воды","VS"]
[288,"Кировская область","Кильмезский муниципальный район","33617000","Малокильмезское","33617424","26799766","Администрация МО Малокильмезское сельское поселение","4310033564","431001001","Оказание услуг в сфере водоснабжения","VS"]
[289,"Кировская область","Кильмезский муниципальный район","33617000","Моторское","33617428","27748141","Администрация Моторского с/п","4310033500","431001001","Оказание услуг в сфере водоснабжения","VS"]
[290,"Кировская область","Кильмезский муниципальный район","33617000","Моторское","33617428","26372634","СХА  (колхоз) \"Надежда\"","4310000618","431001001","Оказание услуг в сфере водоснабжения","VS"]
[291,"Кировская область","Кильмезский муниципальный район","33617000","Паскинское","33617436","26595049","Администрация Паскинского с/п","4310033483","431001001","Оказание услуг в сфере водоснабжения","VS"]
[292,"Кировская область","Кильмезский муниципальный район","33617000","Поселок Кильмезь","33617151","26372636","ООО \"Кильмезьводоканал\"","4310004203","431001001","Оказание услуг в сфере водоснабжения","VS"]
[293,"Кировская область","Кильмезский муниципальный район","33617000","Поселок Кильмезь","33617151","26372636","ООО \"Кильмезьводоканал\"","4310004203","431001001","Транспортировка воды","VS"]
[294,"Кировская область","Кильмезский муниципальный район","33617000","Рыбно-Ватажское","33617444","26755575","Администрация МО Рыбно-Ватажское с/п","4310033652","431001001","Оказание услуг в сфере водоснабжения","VS"]
[295,"Кировская область","Кильмезский муниципальный район","33617000","Селинское","33617448","28110309","Администрация Селинского с/п","4310033620","431001001","Оказание услуг в сфере водоснабжения","VS"]
[296,"Кировская область","Кильмезский муниципальный район","33617000","Селинское","33617448","28110309","Администрация Селинского с/п","4310033620","431001001","Транспортировка воды","VS"]
[297,"Кировская область","Кильмезский муниципальный район","33617000","Селинское","33617448","26372636","ООО \"Кильмезьводоканал\"","4310004203","431001001","Оказание услуг в сфере водоснабжения","VS"]
[298,"Кировская область","Кильмезский муниципальный район","33617000","Селинское","33617448","26372636","ООО \"Кильмезьводоканал\"","4310004203","431001001","Транспортировка воды","VS"]
[299,"Кировская область","Кильмезский муниципальный район","33617000","Чернушское","33617456","26595037","Администрация Чернушского с/п","4310033476","431001001","Оказание услуг в сфере водоснабжения","VS"]
[300,"Кировская область","Киров","33701000","Киров","33701000","26436860","АО \"Вятское машиностроительное предприятие \"Авитек\"","4345047310","434501001","Оказание услуг в сфере водоснабжения","VS"]
[301,"Кировская область","Киров","33701000","Киров","33701000","26436860","АО \"Вятское машиностроительное предприятие \"Авитек\"","4345047310","434501001","Транспортировка воды","VS"]
[302,"Кировская область","Киров","33701000","Киров","33701000","26560525","АО \"ГУ ЖКХ\"","5116000922","511601001","Оказание услуг в сфере водоснабжения","VS"]
[303,"Кировская область","Киров","33701000","Киров","33701000","26560525","АО \"ГУ ЖКХ\"","5116000922","511601001","Транспортировка воды","VS"]
[304,"Кировская область","Киров","33701000","Киров","33701000","30407160","АО \"ГУ ЖКХ\"","5116000922","183845001","Оказание услуг в сфере водоснабжения","VS"]
[305,"Кировская область","Киров","33701000","Киров","33701000","30407160","АО \"ГУ ЖКХ\"","5116000922","183845001","Транспортировка воды","VS"]
[306,"Кировская область","Киров","33701000","Киров","33701000","26372878","АО \"Кировские коммунальные системы\"","4345230965","434501001","Оказание услуг в сфере водоснабжения","VS"]
[307,"Кировская область","Киров","33701000","Киров","33701000","26372878","АО \"Кировские коммунальные системы\"","4345230965","434501001","Транспортировка воды","VS"]
[308,"Кировская область","Киров","33701000","Киров","33701000","26420983","АО \"Ново-Вятка\"","4345029946","434501001","Оказание услуг в сфере водоснабжения","VS"]
[309,"Кировская область","Киров","33701000","Киров","33701000","26420983","АО \"Ново-Вятка\"","4345029946","434501001","Транспортировка воды","VS"]
[310,"Кировская область","Киров","33701000","Киров","33701000","26357287","АО \"Нововятский лесоперерабатывающий комбинат\"","4349006474","434501001","Оказание услуг в сфере водоснабжения","VS"]
[311,"Кировская область","Киров","33701000","Киров","33701000","26357287","АО \"Нововятский лесоперерабатывающий комбинат\"","4349006474","434501001","Транспортировка воды","VS"]
[312,"Кировская область","Киров","33701000","Киров","33701000","26380270","АО \"Нововятский механический завод\"","4345029953","434501001","Оказание услуг в сфере водоснабжения","VS"]
[313,"Кировская область","Киров","33701000","Киров","33701000","26380270","АО \"Нововятский механический завод\"","4345029953","434501001","Транспортировка воды","VS"]
[314,"Кировская область","Киров","33701000","Киров","33701000","26319888","АО «Кирово-Чепецкое управление строительства»","4347030908","434701001","Оказание услуг в сфере водоснабжения","VS"]
[315,"Кировская область","Киров","33701000","Киров","33701000","26319888","АО «Кирово-Чепецкое управление строительства»","4347030908","434701001","Транспортировка воды","VS"]
[316,"Кировская область","Киров","33701000","Киров","33701000","26444969","ГОУ НПО \"Профессиональное училище №43\"","4349003579","434901001","Оказание услуг в сфере водоснабжения","VS"]
[317,"Кировская область","Киров","33701000","Киров","33701000","26808802","Горьковская дирекция по тепловодоснабжению структурное подразделение Центральной дирекции по тепловодоснабжению - филиала ОАО \"РЖД\"","7708503727","525745041","Оказание услуг в сфере водоснабжения","VS"]
[318,"Кировская область","Киров","33701000","Киров","33701000","26808802","Горьковская дирекция по тепловодоснабжению структурное подразделение Центральной дирекции по тепловодоснабжению - филиала ОАО \"РЖД\"","7708503727","525745041","Транспортировка воды","VS"]
[319,"Кировская область","Киров","33701000","Киров","33701000","26357279","ЗАО \"Заречье\"","4348000230","434501001","Оказание услуг в сфере водоснабжения","VS"]
[320,"Кировская область","Киров","33701000","Киров","33701000","26357279","ЗАО \"Заречье\"","4348000230","434501001","Транспортировка воды","VS"]
[321,"Кировская область","Киров","33701000","Киров","33701000","26836745","ЗАО \"Промуправление\"","4345268479","434501001","Оказание услуг в сфере водоснабжения","VS"]
[322,"Кировская область","Киров","33701000","Киров","33701000","26836745","ЗАО \"Промуправление\"","4345268479","434501001","Транспортировка воды","VS"]
[323,"Кировская область","Киров","33701000","Киров","33701000","27604508","ЗАО \"ЭнергоТранс-С\"","5043048430","504301001","Оказание услуг в сфере водоснабжения","VS"]
[324,"Кировская область","Киров","33701000","Киров","33701000","27604508","ЗАО \"ЭнергоТранс-С\"","5043048430","504301001","Транспортировка воды","VS"]
[325,"Кировская область","Киров","33701000","Киров","33701000","26493558","КОГБУЗ \"Кировская областная клиническая психиатрическая больница им. Академика В.М. Бехтерева\"","4345393078","434501001","Оказание услуг в сфере водоснабжения","VS"]
[326,"Кировская область","Киров","33701000","Киров","33701000","26493558","КОГБУЗ \"Кировская областная клиническая психиатрическая больница им. Академика В.М. Бехтерева\"","4345393078","434501001","Транспортировка воды","VS"]
[327,"Кировская область","Киров","33701000","Киров","33701000","26923255","КОГПОАУ \"Кировский государственный автодорожный техникум\"","4349003579","434501001","Оказание услуг в сфере водоснабжения","VS"]
[328,"Кировская область","Киров","33701000","Киров","33701000","26923255","КОГПОАУ \"Кировский государственный автодорожный техникум\"","4349003579","434501001","Транспортировка воды","VS"]
[329,"Кировская область","Киров","33701000","Киров","33701000","26372877","МУМП \"Лянгасово\"","4345028565","434501001","Оказание услуг в сфере водоснабжения","VS"]
[330,"Кировская область","Киров","33701000","Киров","33701000","26420931","МУП \"Водоканал\"","4345000249","434501001","Оказание услуг в сфере водоснабжения","VS"]
[331,"Кировская область","Киров","33701000","Киров","33701000","26420931","МУП \"Водоканал\"","4345000249","434501001","Транспортировка воды","VS"]
[332,"Кировская область","Киров","33701000","Киров","33701000","26372882","МУП \"Нововятский \"Водоканал\"","4345148069","434501001","Оказание услуг в сфере водоснабжения","VS"]
[333,"Кировская область","Киров","33701000","Киров","33701000","26372882","МУП \"Нововятский \"Водоканал\"","4345148069","434501001","Транспортировка воды","VS"]
[334,"Кировская область","Киров","33701000","Киров","33701000","26380276","ОАО \"Вяткаагроснаб\"","4348001272","434501001","Оказание услуг в сфере водоснабжения","VS"]
[335,"Кировская область","Киров","33701000","Киров","33701000","26380276","ОАО \"Вяткаагроснаб\"","4348001272","434501001","Транспортировка воды","VS"]
[336,"Кировская область","Киров","33701000","Киров","33701000","26436880","ОАО \"Кировский завод по обработке цветных металлов\"","4347000477","434501001","Оказание услуг в сфере водоснабжения","VS"]
[337,"Кировская область","Киров","33701000","Киров","33701000","26436880","ОАО \"Кировский завод по обработке цветных металлов\"","4347000477","434501001","Транспортировка воды","VS"]
[338,"Кировская область","Киров","33701000","Киров","33701000","28493969","ОАО \"Кировский ордена Отечественной войны 1 степени комбинат искусственных кож\"","4348003456","434501001","Оказание услуг в сфере водоснабжения","VS"]
[339,"Кировская область","Киров","33701000","Киров","33701000","28493969","ОАО \"Кировский ордена Отечественной войны 1 степени комбинат искусственных кож\"","4348003456","434501001","Транспортировка воды","VS"]
[340,"Кировская область","Киров","33701000","Киров","33701000","28146794","ОАО Кирово-Чепецкое управление строительства\"","4347030908","434501001","Оказание услуг в сфере водоснабжения","VS"]
[341,"Кировская область","Киров","33701000","Киров","33701000","26372886","ООО \"Агенство универсальной информации Лира\"","4347032359","434501001","Оказание услуг в сфере водоснабжения","VS"]
[342,"Кировская область","Киров","33701000","Киров","33701000","26372886","ООО \"Агенство универсальной информации Лира\"","4347032359","434501001","Транспортировка воды","VS"]
[343,"Кировская область","Киров","33701000","Киров","33701000","26372881","ООО \"Водоснабжение\"","4345142370","434501001","Оказание услуг в сфере водоснабжения","VS"]
[344,"Кировская область","Киров","33701000","Киров","33701000","26372881","ООО \"Водоснабжение\"","4345142370","434501001","Транспортировка воды","VS"]
[345,"Кировская область","Киров","33701000","Киров","33701000","26372880","ООО \"ВятВодСтрой\"","4345138543","434501001","Оказание услуг в сфере водоснабжения","VS"]
[346,"Кировская область","Киров","33701000","Киров","33701000","30797725","ООО \"Вятский фанерный комбинат\"","4345128104","434501001","Оказание услуг в сфере водоснабжения","VS"]
[347,"Кировская область","Киров","33701000","Киров","33701000","30797725","ООО \"Вятский фанерный комбинат\"","4345128104","434501001","Транспортировка воды","VS"]
[348,"Кировская область","Киров","33701000","Киров","33701000","26577551","ООО \"Зотик\"","4346039721","434501001","Оказание услуг в сфере водоснабжения","VS"]
[349,"Кировская область","Киров","33701000","Киров","33701000","26577551","ООО \"Зотик\"","4346039721","434501001","Транспортировка воды","VS"]
[350,"Кировская область","Киров","33701000","Киров","33701000","26357264","ООО \"Лепсе-сеть\"","4345093540","434501001","Оказание услуг в сфере водоснабжения","VS"]
[351,"Кировская область","Киров","33701000","Киров","33701000","26357264","ООО \"Лепсе-сеть\"","4345093540","434501001","Транспортировка воды","VS"]
[352,"Кировская область","Киров","33701000","Киров","33701000","30370950","ООО \"Премьер\"","4305002426","430501001","Транспортировка воды","VS"]
[353,"Кировская область","Киров","33701000","Киров","33701000","26420831","ООО \"РЭП \"Костино\"","4345130248","434501001","Оказание услуг в сфере водоснабжения","VS"]
[354,"Кировская область","Киров","33701000","Киров","33701000","26420831","ООО \"РЭП \"Костино\"","4345130248","434501001","Транспортировка воды","VS"]
[355,"Кировская область","Киров","33701000","Киров","33701000","26444942","ООО \"Радужнинская ТГК\"","4345247415","434501001","Оказание услуг в сфере водоснабжения","VS"]
[356,"Кировская область","Киров","33701000","Киров","33701000","26493556","ООО \"Радужнинский завод ЖБИ\"","4345259058","434501001","Оказание услуг в сфере водоснабжения","VS"]
[357,"Кировская область","Киров","33701000","Киров","33701000","26493556","ООО \"Радужнинский завод ЖБИ\"","4345259058","434501001","Транспортировка воды","VS"]
[358,"Кировская область","Киров","33701000","Киров","33701000","26420988","ООО \"Рэмэнергосервис\"","4345089350","434501001","Транспортировка воды","VS"]
[359,"Кировская область","Киров","33701000","Киров","33701000","30874458","ООО \"ССК-ТУР\"","4345372832","434501001","Транспортировка воды","VS"]
[360,"Кировская область","Киров","33701000","Киров","33701000","26447913","ООО \"СтройСнабТехнология\"","4345007332","434501001","Транспортировка воды","VS"]
[361,"Кировская область","Киров","33701000","Киров","33701000","30802153","ООО \"Теплогенерирующая компания\"","4345394473","434501001","Оказание услуг в сфере водоснабжения","VS"]
[362,"Кировская область","Киров","33701000","Киров","33701000","30802153","ООО \"Теплогенерирующая компания\"","4345394473","434501001","Транспортировка воды","VS"]
[363,"Кировская область","Киров","33701000","Киров","33701000","26357259","ООО \"Энергетическая компания Нововятского ЛПК\"","4345036118","434501001","Оказание услуг в сфере водоснабжения","VS"]
[364,"Кировская область","Киров","33701000","Киров","33701000","27475050","ООО \"Энерготранс-С\"","4345303878","434501001","Оказание услуг в сфере водоснабжения","VS"]
[365,"Кировская область","Киров","33701000","Киров","33701000","28869735","ООО Комфорт","4345397058","434501001","Транспортировка воды","VS"]
[366,"Кировская область","Киров","33701000","Киров","33701000","26357254","ПАО \"Кировский завод \"Маяк\"","4345000947","434501001","Оказание услуг в сфере водоснабжения","VS"]
[367,"Кировская область","Киров","33701000","Киров","33701000","26357254","ПАО \"Кировский завод \"Маяк\"","4345000947","434501001","Транспортировка воды","VS"]
[368,"Кировская область","Киров","33701000","Киров","33701000","26491511","ПАО «МРСК «Центра и Приволжья»","5260200603","434502001","Оказание услуг в сфере водоснабжения","VS"]
[369,"Кировская область","Киров","33701000","Киров","33701000","26491511","ПАО «МРСК «Центра и Приволжья»","5260200603","434502001","Транспортировка воды","VS"]
[370,"Кировская область","Киров","33701000","Киров","33701000","26471888","ФГ КЭУ \"КЭЧ\"","4347018040","434501001","Оказание услуг в сфере водоснабжения","VS"]
[371,"Кировская область","Киров","33701000","Киров","33701000","30903763","ФГБУ \"ЦЖКУ\" МИНОБОРОНЫ РОССИИ","7729314745","770101001","Транспортировка воды","VS"]
[372,"Кировская область","Киров","33701000","Киров","33701000","30914574","ФГБУ \"ЦЖКУ\" МИНОБОРОНЫ РОССИИ (по ЦВО)","7729314745","667043001","Транспортировка воды","VS"]
[373,"Кировская область","Киров","33701000","Киров","33701000","28941492","Филиал \"Кировский\" ПАО \"Т Плюс\"","6315376946","434543001","Оказание услуг в сфере водоснабжения","VS"]
[374,"Кировская область","Киров","33701000","Киров","33701000","28941492","Филиал \"Кировский\" ПАО \"Т Плюс\"","6315376946","434543001","Транспортировка воды","VS"]
[375,"Кировская область","Киров","33701000","Киров","33701000","26485385","Филиал \"Самарский\" ПАО \"Т Плюс\"","6315376946","631500000","Оказание услуг в сфере водоснабжения","VS"]
[376,"Кировская область","Киров","33701000","Киров","33701000","26517798","Филиал ОАО \"РЖД\" ГЖД Кировский региональный центр дирекции по тепловодоснабжению","7708503727","435731037","Оказание услуг в сфере водоснабжения","VS"]
[377,"Кировская область","Киров","33701000","Киров","33701000","26517798","Филиал ОАО \"РЖД\" ГЖД Кировский региональный центр дирекции по тепловодоснабжению","7708503727","435731037","Транспортировка воды","VS"]
[378,"Кировская область","Кирово-Чепецк","33707000","Кирово-Чепецк","33707000","26372655","МУП \"Водоканал\"","4312126599","431201001","Оказание услуг в сфере водоснабжения","VS"]
[379,"Кировская область","Кирово-Чепецк","33707000","Кирово-Чепецк","33707000","26372655","МУП \"Водоканал\"","4312126599","431201001","Транспортировка воды","VS"]
[380,"Кировская область","Кирово-Чепецк","33707000","Кирово-Чепецк","33707000","26372656","ООО \"ГалоПолимер Кирово-Чепецк\"","4312126856","590801001","Оказание услуг в сфере водоснабжения","VS"]
[381,"Кировская область","Кирово-Чепецк","33707000","Кирово-Чепецк","33707000","26372656","ООО \"ГалоПолимер Кирово-Чепецк\"","4312126856","590801001","Транспортировка воды","VS"]
[382,"Кировская область","Кирово-Чепецк","33707000","Кирово-Чепецк","33707000","26319897","ООО \"ЭСО КЧХК\"","4312128123","431201001","Оказание услуг в сфере водоснабжения","VS"]
[383,"Кировская область","Кирово-Чепецк","33707000","Кирово-Чепецк","33707000","26319897","ООО \"ЭСО КЧХК\"","4312128123","431201001","Транспортировка воды","VS"]
[384,"Кировская область","Кирово-Чепецк","33707000","Кирово-Чепецк","33707000","28941492","Филиал \"Кировский\" ПАО \"Т Плюс\"","6315376946","434543001","Оказание услуг в сфере водоснабжения","VS"]
[385,"Кировская область","Кирово-Чепецк","33707000","Кирово-Чепецк","33707000","28941492","Филиал \"Кировский\" ПАО \"Т Плюс\"","6315376946","434543001","Транспортировка воды","VS"]
[386,"Кировская область","Кирово-Чепецк","33707000","Кирово-Чепецк","33707000","26485385","Филиал \"Самарский\" ПАО \"Т Плюс\"","6315376946","631500000","Оказание услуг в сфере водоснабжения","VS"]
[387,"Кировская область","Кирово-Чепецкий муниципальный район","33618000","Бурмакинское","33618408","26372654","ООО \"Пасегово\"","4312035888","431201001","Оказание услуг в сфере водоснабжения","VS"]
[388,"Кировская область","Кирово-Чепецкий муниципальный район","33618000","Бурмакинское","33618408","26372654","ООО \"Пасегово\"","4312035888","431201001","Транспортировка воды","VS"]
[389,"Кировская область","Кирово-Чепецкий муниципальный район","33618000","Бурмакинское","33618408","26372648","ООО ЖКХ \"Кстинино\"","4312029080","431201001","Оказание услуг в сфере водоснабжения","VS"]
[390,"Кировская область","Кирово-Чепецкий муниципальный район","33618000","Бурмакинское","33618408","26372648","ООО ЖКХ \"Кстинино\"","4312029080","431201001","Транспортировка воды","VS"]
[391,"Кировская область","Кирово-Чепецкий муниципальный район","33618000","Коныпское","33618418","26429903","МУП ЖКХ \"Конып\"","4312022504","431201001","Оказание услуг в сфере водоснабжения","VS"]
[392,"Кировская область","Кирово-Чепецкий муниципальный район","33618000","Коныпское","33618418","26429903","МУП ЖКХ \"Конып\"","4312022504","431201001","Транспортировка воды","VS"]
[393,"Кировская область","Кирово-Чепецкий муниципальный район","33618000","Кстининское","33618420","30433078","ООО «Надежда»","4345421293","434501001","Оказание услуг в сфере водоснабжения","VS"]
[394,"Кировская область","Кирово-Чепецкий муниципальный район","33618000","Кстининское","33618420","30433078","ООО «Надежда»","4345421293","434501001","Транспортировка воды","VS"]
[395,"Кировская область","Кирово-Чепецкий муниципальный район","33618000","Мокрецовское","33618424","26372652","ООО \"ЖКХ Гарант\"","4312042758","431201001","Оказание услуг в сфере водоснабжения","VS"]
[396,"Кировская область","Кирово-Чепецкий муниципальный район","33618000","Мокрецовское","33618424","26372652","ООО \"ЖКХ Гарант\"","4312042758","431201001","Транспортировка воды","VS"]
[397,"Кировская область","Кирово-Чепецкий муниципальный район","33618000","Пасеговское","33618428","28536677","КОГБУЗ \"Областной клинический противотуберкулезный диспансер\"","4345362672","434501001","Оказание услуг в сфере водоснабжения","VS"]
[398,"Кировская область","Кирово-Чепецкий муниципальный район","33618000","Пасеговское","33618428","28536677","КОГБУЗ \"Областной клинический противотуберкулезный диспансер\"","4345362672","434501001","Транспортировка воды","VS"]
[399,"Кировская область","Кирово-Чепецкий муниципальный район","33618000","Пасеговское","33618428","26357069","КОГКУЗ \"Быстрицкий туберкулезный санаторий\"","4312004230","431201001","Оказание услуг в сфере водоснабжения","VS"]
[400,"Кировская область","Кирово-Чепецкий муниципальный район","33618000","Пасеговское","33618428","30388651","ООО \"СтройЖилКомплект\"","4345216431","434501001","Оказание услуг в сфере водоснабжения","VS"]
[401,"Кировская область","Кирово-Чепецкий муниципальный район","33618000","Пасеговское","33618428","30388651","ООО \"СтройЖилКомплект\"","4345216431","434501001","Транспортировка воды","VS"]
[402,"Кировская область","Кирово-Чепецкий муниципальный район","33618000","Пасеговское","33618428","26422227","ООО МЦ \"Дороничи\"","4348029366","434501001","Оказание услуг в сфере водоснабжения","VS"]
[403,"Кировская область","Кирово-Чепецкий муниципальный район","33618000","Пасеговское","33618428","26422227","ООО МЦ \"Дороничи\"","4348029366","434501001","Транспортировка воды","VS"]
[404,"Кировская область","Кирово-Чепецкий муниципальный район","33618000","Поломское","33618432","26372652","ООО \"ЖКХ Гарант\"","4312042758","431201001","Оказание услуг в сфере водоснабжения","VS"]
[405,"Кировская область","Кирово-Чепецкий муниципальный район","33618000","Просницкое","33618412","26429903","МУП ЖКХ \"Конып\"","4312022504","431201001","Оказание услуг в сфере водоснабжения","VS"]
[406,"Кировская область","Кирово-Чепецкий муниципальный район","33618000","Просницкое","33618412","26429903","МУП ЖКХ \"Конып\"","4312022504","431201001","Транспортировка воды","VS"]
[407,"Кировская область","Кирово-Чепецкий муниципальный район","33618000","Селезеневское","33618434","26372652","ООО \"ЖКХ Гарант\"","4312042758","431201001","Оказание услуг в сфере водоснабжения","VS"]
[408,"Кировская область","Кирово-Чепецкий муниципальный район","33618000","Селезеневское","33618434","26592839","ООО ЖКХ \"Чуваши\"","4312033464","431201001","Оказание услуг в сфере водоснабжения","VS"]
[409,"Кировская область","Кирово-Чепецкий муниципальный район","33618000","Фатеевское","33618436","26372654","ООО \"Пасегово\"","4312035888","431201001","Оказание услуг в сфере водоснабжения","VS"]
[410,"Кировская область","Кирово-Чепецкий муниципальный район","33618000","Фатеевское","33618436","26372654","ООО \"Пасегово\"","4312035888","431201001","Транспортировка воды","VS"]
[411,"Кировская область","Кирово-Чепецкий муниципальный район","33618000","Федяковское","33618442","26654299","ООО \"Прогресс\"","4312043350","431201001","Оказание услуг в сфере водоснабжения","VS"]
[412,"Кировская область","Кирово-Чепецкий муниципальный район","33618000","Федяковское","33618442","28752208","ООО «ЖКХ УЮТ»","4312149532","431201001","Оказание услуг в сфере водоснабжения","VS"]
[413,"Кировская область","Кирово-Чепецкий муниципальный район","33618000","Федяковское","33618442","28752208","ООО «ЖКХ УЮТ»","4312149532","431201001","Транспортировка воды","VS"]
[414,"Кировская область","Кирово-Чепецкий муниципальный район","33618000","Федяковское","33618442","26592835","ООО ЖКХ \"Федяковское\"","4312032580","431201001","Оказание услуг в сфере водоснабжения","VS"]
[415,"Кировская область","Кирово-Чепецкий муниципальный район","33618000","Филипповское","33618444","26372652","ООО \"ЖКХ Гарант\"","4312042758","431201001","Оказание услуг в сфере водоснабжения","VS"]
[416,"Кировская область","Кирово-Чепецкий муниципальный район","33618000","Филипповское","33618444","26592837","ООО ЖКХ \"Филиппово\"","4312039770","431201001","Оказание услуг в сфере водоснабжения","VS"]
[417,"Кировская область","Кирово-Чепецкий муниципальный район","33618000","Филипповское","33618444","26592837","ООО ЖКХ \"Филиппово\"","4312039770","431201001","Транспортировка воды","VS"]
[418,"Кировская область","Кирово-Чепецкий муниципальный район","33618000","Чепецкое","33618448","26372655","МУП \"Водоканал\"","4312126599","431201001","Оказание услуг в сфере водоснабжения","VS"]
[419,"Кировская область","Кирово-Чепецкий муниципальный район","33618000","Чепецкое","33618448","26372655","МУП \"Водоканал\"","4312126599","431201001","Транспортировка воды","VS"]
[420,"Кировская область","Кирово-Чепецкий муниципальный район","33618000","Чепецкое","33618448","26604437","ООО \"Жилстрой-сервис\"","4312032541","431201001","Оказание услуг в сфере водоснабжения","VS"]
[421,"Кировская область","Кирово-Чепецкий муниципальный район","33618000","Чепецкое","33618448","26604437","ООО \"Жилстрой-сервис\"","4312032541","431201001","Транспортировка воды","VS"]
[422,"Кировская область","Кирово-Чепецкий муниципальный район","33618000","Чувашевское","33618452","26372652","ООО \"ЖКХ Гарант\"","4312042758","431201001","Оказание услуг в сфере водоснабжения","VS"]
[423,"Кировская область","Кирово-Чепецкий муниципальный район","33618000","Чувашевское","33618452","26592839","ООО ЖКХ \"Чуваши\"","4312033464","431201001","Оказание услуг в сфере водоснабжения","VS"]
[424,"Кировская область","Котельнич","33710000","Котельнич","33710000","26560525","АО \"ГУ ЖКХ\"","5116000922","511601001","Оказание услуг в сфере водоснабжения","VS"]
[425,"Кировская область","Котельнич","33710000","Котельнич","33710000","26560525","АО \"ГУ ЖКХ\"","5116000922","511601001","Транспортировка воды","VS"]
[426,"Кировская область","Котельнич","33710000","Котельнич","33710000","30407160","АО \"ГУ ЖКХ\"","5116000922","183845001","Оказание услуг в сфере водоснабжения","VS"]
[427,"Кировская область","Котельнич","33710000","Котельнич","33710000","30407160","АО \"ГУ ЖКХ\"","5116000922","183845001","Транспортировка воды","VS"]
[428,"Кировская область","Котельнич","33710000","Котельнич","33710000","26808802","Горьковская дирекция по тепловодоснабжению структурное подразделение Центральной дирекции по тепловодоснабжению - филиала ОАО \"РЖД\"","7708503727","525745041","Оказание услуг в сфере водоснабжения","VS"]
[429,"Кировская область","Котельнич","33710000","Котельнич","33710000","26808802","Горьковская дирекция по тепловодоснабжению структурное подразделение Центральной дирекции по тепловодоснабжению - филиала ОАО \"РЖД\"","7708503727","525745041","Транспортировка воды","VS"]
[430,"Кировская область","Котельнич","33710000","Котельнич","33710000","26372871","ЗАО \"Котельничский мачтопропиточный завод\"","4342000723","434201001","Оказание услуг в сфере водоснабжения","VS"]
[431,"Кировская область","Котельнич","33710000","Котельнич","33710000","26372871","ЗАО \"Котельничский мачтопропиточный завод\"","4342000723","434201001","Транспортировка воды","VS"]
[432,"Кировская область","Котельнич","33710000","Котельнич","33710000","26372874","МП \"Горводоканал\"","4342003643","434201001","Оказание услуг в сфере водоснабжения","VS"]
[433,"Кировская область","Котельнич","33710000","Котельнич","33710000","26429834","ОАО \"МРСК Центра и Приволжья\" филиал \"Кировэнерго\" Котельничские РЭС","5260200603","431332001","Оказание услуг в сфере водоснабжения","VS"]
[434,"Кировская область","Котельнич","33710000","Котельнич","33710000","26372673","ООО \"Импульс\"","4313105320","431301001","Оказание услуг в сфере водоснабжения","VS"]
[435,"Кировская область","Котельнич","33710000","Котельнич","33710000","26372673","ООО \"Импульс\"","4313105320","431301001","Транспортировка воды","VS"]
[436,"Кировская область","Котельнич","33710000","Котельнич","33710000","26491511","ПАО «МРСК «Центра и Приволжья»","5260200603","434502001","Оказание услуг в сфере водоснабжения","VS"]
[437,"Кировская область","Котельнич","33710000","Котельнич","33710000","26491511","ПАО «МРСК «Центра и Приволжья»","5260200603","434502001","Транспортировка воды","VS"]
[438,"Кировская область","Котельнич","33710000","Котельнич","33710000","30903763","ФГБУ \"ЦЖКУ\" МИНОБОРОНЫ РОССИИ","7729314745","770101001","Транспортировка воды","VS"]
[439,"Кировская область","Котельнич","33710000","Котельнич","33710000","30914574","ФГБУ \"ЦЖКУ\" МИНОБОРОНЫ РОССИИ (по ЦВО)","7729314745","667043001","Транспортировка воды","VS"]
[440,"Кировская область","Котельнич","33710000","Котельнич","33710000","26357243","ФГКУ комбинат \"Зенит\"","4342003058","431301001","Оказание услуг в сфере водоснабжения","VS"]
[441,"Кировская область","Котельнич","33710000","Котельнич","33710000","26517798","Филиал ОАО \"РЖД\" ГЖД Кировский региональный центр дирекции по тепловодоснабжению","7708503727","435731037","Оказание услуг в сфере водоснабжения","VS"]
[442,"Кировская область","Котельнич","33710000","Котельнич","33710000","26517798","Филиал ОАО \"РЖД\" ГЖД Кировский региональный центр дирекции по тепловодоснабжению","7708503727","435731037","Транспортировка воды","VS"]
[443,"Кировская область","Котельничский муниципальный район","33619000","Александровское","33619464","30352276","ООО \"АЛЕКС\"","4313010519","431301001","Оказание услуг в сфере водоснабжения","VS"]
[444,"Кировская область","Котельничский муниципальный район","33619000","Александровское","33619464","30352276","ООО \"АЛЕКС\"","4313010519","431301001","Транспортировка воды","VS"]
[445,"Кировская область","Котельничский муниципальный район","33619000","Александровское","33619464","26517798","Филиал ОАО \"РЖД\" ГЖД Кировский региональный центр дирекции по тепловодоснабжению","7708503727","435731037","Оказание услуг в сфере водоснабжения","VS"]
[446,"Кировская область","Котельничский муниципальный район","33619000","Александровское","33619464","26517798","Филиал ОАО \"РЖД\" ГЖД Кировский региональный центр дирекции по тепловодоснабжению","7708503727","435731037","Транспортировка воды","VS"]
[447,"Кировская область","Котельничский муниципальный район","33619000","Биртяевское","33619404","26357086","ООО \"Спицыно\"","4313006223","431301001","Оказание услуг в сфере водоснабжения","VS"]
[448,"Кировская область","Котельничский муниципальный район","33619000","Биртяевское","33619404","26372659","СПК колхоз \"Искра\"","4313000060","431301001","Оказание услуг в сфере водоснабжения","VS"]
[449,"Кировская область","Котельничский муниципальный район","33619000","Биртяевское","33619404","26372659","СПК колхоз \"Искра\"","4313000060","431301001","Транспортировка воды","VS"]
[450,"Кировская область","Котельничский муниципальный район","33619000","Вишкильское","33619432","28872948","Администрация Вишкильского сельского поселения","4313005526","431301001","Оказание услуг в сфере водоснабжения","VS"]
[451,"Кировская область","Котельничский муниципальный район","33619000","Вишкильское","33619432","26840982","МУП ДОЛ «Вишкиль»","4313004603","431301001","Оказание услуг в сфере водоснабжения","VS"]
[452,"Кировская область","Котельничский муниципальный район","33619000","Ежихинское","33619416","26357082","МП \"Светловское ЖКХ\"","4313004949","431301001","Оказание услуг в сфере водоснабжения","VS"]
[453,"Кировская область","Котельничский муниципальный район","33619000","Зайцевское","33619428","30352276","ООО \"АЛЕКС\"","4313010519","431301001","Оказание услуг в сфере водоснабжения","VS"]
[454,"Кировская область","Котельничский муниципальный район","33619000","Зайцевское","33619428","30352276","ООО \"АЛЕКС\"","4313010519","431301001","Транспортировка воды","VS"]
[455,"Кировская область","Котельничский муниципальный район","33619000","Зайцевское","33619428","26357084","ООО \"УК Каскад-ЖКХ\"","4313005815","431301001","Оказание услуг в сфере водоснабжения","VS"]
[456,"Кировская область","Котельничский муниципальный район","33619000","Зайцевское","33619428","26357084","ООО \"УК Каскад-ЖКХ\"","4313005815","431301001","Транспортировка воды","VS"]
[457,"Кировская область","Котельничский муниципальный район","33619000","Зайцевское","33619428","26372659","СПК колхоз \"Искра\"","4313000060","431301001","Оказание услуг в сфере водоснабжения","VS"]
[458,"Кировская область","Котельничский муниципальный район","33619000","Зайцевское","33619428","26372659","СПК колхоз \"Искра\"","4313000060","431301001","Транспортировка воды","VS"]
[459,"Кировская область","Котельничский муниципальный район","33619000","Карпушинское","33619440","30354156","Администрация Карпушинского сельского поселения Котельничского района","4313005484","431301001","Оказание услуг в сфере водоснабжения","VS"]
[460,"Кировская область","Котельничский муниципальный район","33619000","Карпушинское","33619440","30354156","Администрация Карпушинского сельского поселения Котельничского района","4313005484","431301001","Транспортировка воды","VS"]
[461,"Кировская область","Котельничский муниципальный район","33619000","Карпушинское","33619440","26372660","СПК колхоз \"Котельничский\"","4313000140","431301001","Оказание услуг в сфере водоснабжения","VS"]
[462,"Кировская область","Котельничский муниципальный район","33619000","Комсомольское","33619452","28869131","Администрация Комсомольского сельского поселения","4313005710","431301001","Оказание услуг в сфере водоснабжения","VS"]
[463,"Кировская область","Котельничский муниципальный район","33619000","Комсомольское","33619452","27362595","ООО \"Альфа\"","4313009513","431301001","Оказание услуг в сфере водоснабжения","VS"]
[464,"Кировская область","Котельничский муниципальный район","33619000","Комсомольское","33619452","26517798","Филиал ОАО \"РЖД\" ГЖД Кировский региональный центр дирекции по тепловодоснабжению","7708503727","435731037","Оказание услуг в сфере водоснабжения","VS"]
[465,"Кировская область","Котельничский муниципальный район","33619000","Комсомольское","33619452","26517798","Филиал ОАО \"РЖД\" ГЖД Кировский региональный центр дирекции по тепловодоснабжению","7708503727","435731037","Транспортировка воды","VS"]
[466,"Кировская область","Котельничский муниципальный район","33619000","Котельничское","33619456","26357086","ООО \"Спицыно\"","4313006223","431301001","Оказание услуг в сфере водоснабжения","VS"]
[467,"Кировская область","Котельничский муниципальный район","33619000","Котельничское","33619456","26357086","ООО \"Спицыно\"","4313006223","431301001","Транспортировка воды","VS"]
[468,"Кировская область","Котельничский муниципальный район","33619000","Котельничское","33619456","26357085","ООО ЖКХ \"Импульс\"","4313006199","431301001","Оказание услуг в сфере водоснабжения","VS"]
[469,"Кировская область","Котельничский муниципальный район","33619000","Красногорское","33619488","26422332","ООО \"Юдинка\"","4313007153","431301001","Оказание услуг в сфере водоснабжения","VS"]
[470,"Кировская область","Котельничский муниципальный район","33619000","Красногорское","33619488","26422332","ООО \"Юдинка\"","4313007153","431301001","Транспортировка воды","VS"]
[471,"Кировская область","Котельничский муниципальный район","33619000","Красногорское","33619488","26517798","Филиал ОАО \"РЖД\" ГЖД Кировский региональный центр дирекции по тепловодоснабжению","7708503727","435731037","Оказание услуг в сфере водоснабжения","VS"]
[472,"Кировская область","Котельничский муниципальный район","33619000","Красногорское","33619488","26517798","Филиал ОАО \"РЖД\" ГЖД Кировский региональный центр дирекции по тепловодоснабжению","7708503727","435731037","Транспортировка воды","VS"]
[473,"Кировская область","Котельничский муниципальный район","33619000","Макарьевское","33619460","28979454","ООО \"Макарье ЖКХ\"","4313010170","431301001","Оказание услуг в сфере водоснабжения","VS"]
[474,"Кировская область","Котельничский муниципальный район","33619000","Макарьевское","33619460","28979454","ООО \"Макарье ЖКХ\"","4313010170","431301001","Транспортировка воды","VS"]
[475,"Кировская область","Котельничский муниципальный район","33619000","Молотниковское","33619436","26357084","ООО \"УК Каскад-ЖКХ\"","4313005815","431301001","Оказание услуг в сфере водоснабжения","VS"]
[476,"Кировская область","Котельничский муниципальный район","33619000","Молотниковское","33619436","26357084","ООО \"УК Каскад-ЖКХ\"","4313005815","431301001","Транспортировка воды","VS"]
[477,"Кировская область","Котельничский муниципальный район","33619000","Морозовское","33619468","26357085","ООО ЖКХ \"Импульс\"","4313006199","431301001","Оказание услуг в сфере водоснабжения","VS"]
[478,"Кировская область","Котельничский муниципальный район","33619000","Морозовское","33619468","26357085","ООО ЖКХ \"Импульс\"","4313006199","431301001","Транспортировка воды","VS"]
[479,"Кировская область","Котельничский муниципальный район","33619000","Покровское","33619480","26598482","Адм. Покровского с/п","4313005413","431301001","Оказание услуг в сфере водоснабжения","VS"]
[480,"Кировская область","Котельничский муниципальный район","33619000","Покровское","33619480","26357085","ООО ЖКХ \"Импульс\"","4313006199","431301001","Оказание услуг в сфере водоснабжения","VS"]
[481,"Кировская область","Котельничский муниципальный район","33619000","Родичевское","33619424","30352276","ООО \"АЛЕКС\"","4313010519","431301001","Оказание услуг в сфере водоснабжения","VS"]
[482,"Кировская область","Котельничский муниципальный район","33619000","Родичевское","33619424","30352276","ООО \"АЛЕКС\"","4313010519","431301001","Транспортировка воды","VS"]
[483,"Кировская область","Котельничский муниципальный район","33619000","Родичевское","33619424","26372671","ООО \"СХП \"Родичи\"","4313006248","431301001","Оказание услуг в сфере водоснабжения","VS"]
[484,"Кировская область","Котельничский муниципальный район","33619000","Светловское","33619481","30847786","Администрация Светловского сельского поселения","4313005678","431301001","Оказание услуг в сфере водоснабжения","VS"]
[485,"Кировская область","Котельничский муниципальный район","33619000","Светловское","33619481","26357082","МП \"Светловское ЖКХ\"","4313004949","431301001","Оказание услуг в сфере водоснабжения","VS"]
[486,"Кировская область","Котельничский муниципальный район","33619000","Светловское","33619481","30956442","ООО \"Кирсинская управляющая компания\"","4303006432","430301001","Оказание услуг в сфере водоснабжения","VS"]
[487,"Кировская область","Котельничский муниципальный район","33619000","Чистопольское","33619490","26598488","Адм. Чистопольского с/п","4313005766","431301001","Оказание услуг в сфере водоснабжения","VS"]
[488,"Кировская область","Котельничский муниципальный район","33619000","Чистопольское","33619490","30388994","Администрация Чистопольского сельского поселения Котельничского района Кировской области","4313005766","431301001","Оказание услуг в сфере водоснабжения","VS"]
[489,"Кировская область","Котельничский муниципальный район","33619000","Чистопольское","33619490","30388994","Администрация Чистопольского сельского поселения Котельничского района Кировской области","4313005766","431301001","Транспортировка воды","VS"]
[490,"Кировская область","Котельничский муниципальный район","33619000","Юбилейное","33619448","30357030","МУП \"ЖКХ Юбилейного сельского поселения\"","4313010558","431301001","Оказание услуг в сфере водоснабжения","VS"]
[491,"Кировская область","Котельничский муниципальный район","33619000","Юбилейное","33619448","30357030","МУП \"ЖКХ Юбилейного сельского поселения\"","4313010558","431301001","Транспортировка воды","VS"]
[492,"Кировская область","Котельничский муниципальный район","33619000","Юбилейное","33619448","26357079","СПК \"Путь Ленина\"","4313000052","431301001","Оказание услуг в сфере водоснабжения","VS"]
[493,"Кировская область","Котельничский муниципальный район","33619000","Юрьевское","33619494","26357086","ООО \"Спицыно\"","4313006223","431301001","Оказание услуг в сфере водоснабжения","VS"]
[494,"Кировская область","Котельничский муниципальный район","33619000","Юрьевское","33619494","26357086","ООО \"Спицыно\"","4313006223","431301001","Транспортировка воды","VS"]
[495,"Кировская область","Куменский муниципальный район","33620000","Березниковское","33620408","26372677","СПК \"Березниковский\"","4314000626","431401001","Оказание услуг в сфере водоснабжения","VS"]
[496,"Кировская область","Куменский муниципальный район","33620000","Большеперелазское","33620440","26372684","ООО \"Куменское ВКХ\"","4314004317","431401001","Оказание услуг в сфере водоснабжения","VS"]
[497,"Кировская область","Куменский муниципальный район","33620000","Большеперелазское","33620440","26372674","СПК  (колхоз)  \"Знамя Ленина\"","4314000231","431401001","Оказание услуг в сфере водоснабжения","VS"]
[498,"Кировская область","Куменский муниципальный район","33620000","Большеперелазское","33620440","26372676","СПК (колхоз) \"Красное знамя\"","4314000369","431401001","Оказание услуг в сфере водоснабжения","VS"]
[499,"Кировская область","Куменский муниципальный район","33620000","Большеперелазское","33620440","26372676","СПК (колхоз) \"Красное знамя\"","4314000369","431401001","Транспортировка воды","VS"]
[500,"Кировская область","Куменский муниципальный район","33620000","Верхобыстрицкое","33620416","26372681","ООО \"Верхобыстрица\"","4314004148","431401001","Оказание услуг в сфере водоснабжения","VS"]
[501,"Кировская область","Куменский муниципальный район","33620000","Верхобыстрицкое","33620416","26446370","ООО \"Плюс\"","4314005487","431401001","Оказание услуг в сфере водоснабжения","VS"]
[502,"Кировская область","Куменский муниципальный район","33620000","Верхобыстрицкое","33620416","26446370","ООО \"Плюс\"","4314005487","431401001","Транспортировка воды","VS"]
[503,"Кировская область","Куменский муниципальный район","33620000","Верхобыстрицкое","33620416","26755600","СПК \"Дружба\"","4314004148","431401001","Оказание услуг в сфере водоснабжения","VS"]
[504,"Кировская область","Куменский муниципальный район","33620000","Верхобыстрицкое","33620416","26372676","СПК (колхоз) \"Красное знамя\"","4314000369","431401001","Оказание услуг в сфере водоснабжения","VS"]
[505,"Кировская область","Куменский муниципальный район","33620000","Верхобыстрицкое","33620416","26372676","СПК (колхоз) \"Красное знамя\"","4314000369","431401001","Транспортировка воды","VS"]
[506,"Кировская область","Куменский муниципальный район","33620000","Вичевское","33620420","26372682","ЗАО племзавод \"Октябрьский\"","4314004250","431401001","Оказание услуг в сфере водоснабжения","VS"]
[507,"Кировская область","Куменский муниципальный район","33620000","Вичевское","33620420","26422458","ООО \"Вожгальское домоуправление\"","4314005423","431401001","Оказание услуг в сфере водоснабжения","VS"]
[508,"Кировская область","Куменский муниципальный район","33620000","Вичевское","33620420","26422458","ООО \"Вожгальское домоуправление\"","4314005423","431401001","Транспортировка воды","VS"]
[509,"Кировская область","Куменский муниципальный район","33620000","Вожгальское","33620421","26422458","ООО \"Вожгальское домоуправление\"","4314005423","431401001","Оказание услуг в сфере водоснабжения","VS"]
[510,"Кировская область","Куменский муниципальный район","33620000","Вожгальское","33620421","26372676","СПК (колхоз) \"Красное знамя\"","4314000369","431401001","Оказание услуг в сфере водоснабжения","VS"]
[511,"Кировская область","Куменский муниципальный район","33620000","Вожгальское","33620421","26372676","СПК (колхоз) \"Красное знамя\"","4314000369","431401001","Транспортировка воды","VS"]
[512,"Кировская область","Куменский муниципальный район","33620000","Вожгальское","33620421","26357093","СПК ордена Ленина племзавод \"Красный Октябрь\"","4314000721","431401001","Оказание услуг в сфере водоснабжения","VS"]
[513,"Кировская область","Куменский муниципальный район","33620000","Вожгальское","33620421","26357093","СПК ордена Ленина племзавод \"Красный Октябрь\"","4314000721","431401001","Транспортировка воды","VS"]
[514,"Кировская область","Куменский муниципальный район","33620000","Кумёнское","33620428","26372684","ООО \"Куменское ВКХ\"","4314004317","431401001","Оказание услуг в сфере водоснабжения","VS"]
[515,"Кировская область","Куменский муниципальный район","33620000","Поселок Кумены","33620151","26372684","ООО \"Куменское ВКХ\"","4314004317","431401001","Оказание услуг в сфере водоснабжения","VS"]
[516,"Кировская область","Куменский муниципальный район","33620000","Поселок Нижнеивкино","33620154","26357091","ЗАО \"Санаторий Нижне-Ивкино\"","4314000305","431401001","Оказание услуг в сфере водоснабжения","VS"]
[517,"Кировская область","Куменский муниципальный район","33620000","Поселок Нижнеивкино","33620154","26357096","ОАО \"Санаторий \"Лесная Новь\" им.Ю.Ф.Янтарева\"","4314002849","431401001","Оказание услуг в сфере водоснабжения","VS"]
[518,"Кировская область","Куменский муниципальный район","33620000","Поселок Нижнеивкино","33620154","26755391","ООО \"ВКБ-Сервис\"","4314005705","431401001","Оказание услуг в сфере водоснабжения","VS"]
[519,"Кировская область","Куменский муниципальный район","33620000","Поселок Нижнеивкино","33620154","26372686","ООО \"Вертикаль-строй\"","4314004420","431401001","Оказание услуг в сфере водоснабжения","VS"]
[520,"Кировская область","Куменский муниципальный район","33620000","Поселок Нижнеивкино","33620154","28267478","ООО \"Санаторий \"Лесная Новь\" имени Ю.Ф. Янтарева\"","4314005945","431401001","Оказание услуг в сфере водоснабжения","VS"]
[521,"Кировская область","Куменский муниципальный район","33620000","Поселок Нижнеивкино","33620154","26422501","СХП \"Раменское\"","4314001387","431401001","Оказание услуг в сфере водоснабжения","VS"]
[522,"Кировская область","Куменский муниципальный район","33620000","Речное","33620444","28424370","МУП ЖКХ п.Речной","4314005938","431401001","Оказание услуг в сфере водоснабжения","VS"]
[523,"Кировская область","Куменский муниципальный район","33620000","Речное","33620444","26755378","ООО \"Речное коммунальное хозяйство\"","4345267718","431401001","Оказание услуг в сфере водоснабжения","VS"]
[524,"Кировская область","Куменский муниципальный район","33620000","Речное","33620444","26372683","ООО \"Речные коммунальные системы\"","4314004282","431401001","Оказание услуг в сфере водоснабжения","VS"]
[525,"Кировская область","Лебяжский муниципальный район","33621000","Ветошкинское","33621412","26372695","Администрация Ветошкинского с/п","4315006405","431501001","Оказание услуг в сфере водоснабжения","VS"]
[526,"Кировская область","Лебяжский муниципальный район","33621000","Ветошкинское","33621412","26491718","ИП Олюшин Л.А.","431500332077","431501001","Оказание услуг в сфере водоснабжения","VS"]
[527,"Кировская область","Лебяжский муниципальный район","33621000","Лажское","33621444","26595065","Администрация Изиморского с/п","4315006606","431501001","Оказание услуг в сфере водоснабжения","VS"]
[528,"Кировская область","Лебяжский муниципальный район","33621000","Лажское","33621444","26372700","Администрация Индыгойского с/п","4315006677","431501001","Оказание услуг в сфере водоснабжения","VS"]
[529,"Кировская область","Лебяжский муниципальный район","33621000","Лажское","33621444","26652843","Администрация Кузнецовского с/п","4315006645","431501001","Оказание услуг в сфере водоснабжения","VS"]
[530,"Кировская область","Лебяжский муниципальный район","33621000","Лажское","33621444","28144276","МКУ Администрация Лажского сельского поселения Лебяжского района Кировкой области","4315006613","431501001","Оказание услуг в сфере водоснабжения","VS"]
[531,"Кировская область","Лебяжский муниципальный район","33621000","Лажское","33621444","26372688","СПК - колхоз \"Кузнецовский\"","4315000178","431501001","Оказание услуг в сфере водоснабжения","VS"]
[532,"Кировская область","Лебяжский муниципальный район","33621000","Михеевское","33621404","26652845","Адм.Окуневского с/п","4315006620","431501001","Оказание услуг в сфере водоснабжения","VS"]
[533,"Кировская область","Лебяжский муниципальный район","33621000","Михеевское","33621404","26473596","Администрация Кокоревского с/п","4315006589","431501001","Оказание услуг в сфере водоснабжения","VS"]
[534,"Кировская область","Лебяжский муниципальный район","33621000","Михеевское","33621404","26652833","Администрация Красноярского с/п","4315006684","431501001","Оказание услуг в сфере водоснабжения","VS"]
[535,"Кировская область","Лебяжский муниципальный район","33621000","Михеевское","33621404","26491720","ИП Дудоров Н.С.","431500153102","431501001","Оказание услуг в сфере водоснабжения","VS"]
[536,"Кировская область","Лебяжский муниципальный район","33621000","Михеевское","33621404","26372701","МКУ Администрация Михеевского сельского поселения Лебяжского района Кировской области","4315006660","431501001","Оказание услуг в сфере водоснабжения","VS"]
[537,"Кировская область","Лебяжский муниципальный район","33621000","Михеевское","33621404","26372692","ОАО РАО \"Лебяжское\"","4315002369","431501001","Оказание услуг в сфере водоснабжения","VS"]
[538,"Кировская область","Лебяжский муниципальный район","33621000","Михеевское","33621404","26372689","ОПХ им.24 партсъезда","4315000442","431501001","Оказание услуг в сфере водоснабжения","VS"]
[539,"Кировская область","Лебяжский муниципальный район","33621000","Михеевское","33621404","26372690","СПК \"Вотский\"","4315000851","431501001","Оказание услуг в сфере водоснабжения","VS"]
[540,"Кировская область","Лебяжский муниципальный район","33621000","Михеевское","33621404","26372687","СПК \"Кокоревский\"","4315000139","431501001","Оказание услуг в сфере водоснабжения","VS"]
[541,"Кировская область","Лебяжский муниципальный район","33621000","Поселок Лебяжье","33621151","27285158","МУП \"Коммунсервис\"","4315002545","431501001","Оказание услуг в сфере водоснабжения","VS"]
[542,"Кировская область","Лузский муниципальный район","33622000","Город Луза","33622101","26357103","Администрация пгт.Христофорово","4316003654","431601001","Оказание услуг в сфере водоснабжения","VS"]
[543,"Кировская область","Лузский муниципальный район","33622000","Город Луза","33622101","26652969","МКП \"Водоканал\"","4316005228","431601001","Оказание услуг в сфере водоснабжения","VS"]
[544,"Кировская область","Лузский муниципальный район","33622000","Город Луза","33622101","26423885","ООО \"АКВА\"","4316004834","431601001","Оказание услуг в сфере водоснабжения","VS"]
[545,"Кировская область","Лузский муниципальный район","33622000","Город Луза","33622101","29647511","ООО \"Лузское УЖКХ\"","4316005757","431601001","Оказание услуг в сфере водоснабжения","VS"]
[546,"Кировская область","Лузский муниципальный район","33622000","Папуловское","33622428","26598597","Адм. Папуловского с/п","4316003615","431601001","Оказание услуг в сфере водоснабжения","VS"]
[547,"Кировская область","Лузский муниципальный район","33622000","Папуловское","33622428","26595080","Администрация Грибошинского с/п","4316003679","431601001","Оказание услуг в сфере водоснабжения","VS"]
[548,"Кировская область","Лузский муниципальный район","33622000","Поселок Лальск","33622154","26595090","Администрация Учецкого с/п","4316003750","431601001","Оказание услуг в сфере водоснабжения","VS"]
[549,"Кировская область","Лузский муниципальный район","33622000","Поселок Лальск","33622154","26491753","МУП \"Лальский АТЦ\"","4316001946","431601001","Оказание услуг в сфере водоснабжения","VS"]
[550,"Кировская область","Лузский муниципальный район","33622000","Поселок Лальск","33622154","26446425","ООО \"Лальский ЖКК\"","4316004979","431601001","Оказание услуг в сфере водоснабжения","VS"]
[551,"Кировская область","Лузский муниципальный район","33622000","Поселок Лальск","33622154","27579509","ООО \"Лальский коммунальный сервис\"","4316005450","431601001","Оказание услуг в сфере водоснабжения","VS"]
[552,"Кировская область","Лузский муниципальный район","33622000","Поселок Лальск","33622154","28040429","ООО \"Лальский коммунальный сервис\"","4316005450","431601001","Оказание услуг в сфере водоснабжения","VS"]
[553,"Кировская область","Малмыжский муниципальный район","33623000","Аджимское","33623404","26595102","Адм. Аджимского с/п","4317005358","431701001","Оказание услуг в сфере водоснабжения","VS"]
[554,"Кировская область","Малмыжский муниципальный район","33623000","Аджимское","33623404","27610972","ООО \"Водолей\"","4317006841","431701001","Оказание услуг в сфере водоснабжения","VS"]
[555,"Кировская область","Малмыжский муниципальный район","33623000","Аджимское","33623404","26446455","СПК сельскохозяйственный артель-колхоз \"Зерновой\"","4317000800","431701001","Оказание услуг в сфере водоснабжения","VS"]
[556,"Кировская область","Малмыжский муниципальный район","33623000","Арыкское","33623408","26595114","Адм. Арыкского с/п","4317005397","431701001","Оказание услуг в сфере водоснабжения","VS"]
[557,"Кировская область","Малмыжский муниципальный район","33623000","Большекитякское","33623412","26595299","Адм. Большекитякского с/п","4317005414","431701001","Оказание услуг в сфере водоснабжения","VS"]
[558,"Кировская область","Малмыжский муниципальный район","33623000","Большекитякское","33623412","26372710","ООО \"ЖКХ\" г. Малмыж","4317005196","431701001","Оказание услуг в сфере водоснабжения","VS"]
[559,"Кировская область","Малмыжский муниципальный район","33623000","Город Малмыж","33623101","30438315","КОГКУСО «Малмыжский психоневрологический интернат»","4317001900","431701001","Оказание услуг в сфере водоснабжения","VS"]
[560,"Кировская область","Малмыжский муниципальный район","33623000","Город Малмыж","33623101","30438315","КОГКУСО «Малмыжский психоневрологический интернат»","4317001900","431701001","Транспортировка воды","VS"]
[561,"Кировская область","Малмыжский муниципальный район","33623000","Город Малмыж","33623101","26754962","ОАО \"Малмыжский завод по ремонту диз.двигателей\"","4317000543","431701001","Оказание услуг в сфере водоснабжения","VS"]
[562,"Кировская область","Малмыжский муниципальный район","33623000","Город Малмыж","33623101","26372710","ООО \"ЖКХ\" г. Малмыж","4317005196","431701001","Оказание услуг в сфере водоснабжения","VS"]
[563,"Кировская область","Малмыжский муниципальный район","33623000","Город Малмыж","33623101","26446455","СПК сельскохозяйственный артель-колхоз \"Зерновой\"","4317000800","431701001","Оказание услуг в сфере водоснабжения","VS"]
[564,"Кировская область","Малмыжский муниципальный район","33623000","Каксинвайское","33623424","26372705","СПК СХА колхоз \"Каксинвайский\"","4317000215","431701001","Оказание услуг в сфере водоснабжения","VS"]
[565,"Кировская область","Малмыжский муниципальный район","33623000","Калининское","33623428","26422529","МУП \"Топливо\"","4317004918","431701001","Оказание услуг в сфере водоснабжения","VS"]
[566,"Кировская область","Малмыжский муниципальный район","33623000","Константиновское","33623432","26595136","Адм. Константиновского с/п","4317005439","431701001","Оказание услуг в сфере водоснабжения","VS"]
[567,"Кировская область","Малмыжский муниципальный район","33623000","Мари-Малмыжское","33623436","26595157","Адм. Мари-Малмыжского с/п","4317005534","431701001","Оказание услуг в сфере водоснабжения","VS"]
[568,"Кировская область","Малмыжский муниципальный район","33623000","Мелетское","33623440","26595316","Адм. Мелетского с/п","4317005291","431701001","Оказание услуг в сфере водоснабжения","VS"]
[569,"Кировская область","Малмыжский муниципальный район","33623000","Новосмаильское","33623444","26595178","Адм. Новосмаильского с/п","4317005277","431701001","Оказание услуг в сфере водоснабжения","VS"]
[570,"Кировская область","Малмыжский муниципальный район","33623000","Новосмаильское","33623444","26372710","ООО \"ЖКХ\" г. Малмыж","4317005196","431701001","Оказание услуг в сфере водоснабжения","VS"]
[571,"Кировская область","Малмыжский муниципальный район","33623000","Плотбищенское","33623448","26372707","Администрация Плотбищенского с/п","4317005333","431701001","Оказание услуг в сфере водоснабжения","VS"]
[572,"Кировская область","Малмыжский муниципальный район","33623000","Преображенское","33623452","26595196","Адм. Преображенского с/п","4317005598","431701001","Оказание услуг в сфере водоснабжения","VS"]
[573,"Кировская область","Малмыжский муниципальный район","33623000","Ральниковское","33623456","26372713","ООО \"Порез\"","4317005774","431701001","Оказание услуг в сфере водоснабжения","VS"]
[574,"Кировская область","Малмыжский муниципальный район","33623000","Ральниковское","33623456","26372711","ООО \"Ральники\"","4317005206","431701001","Оказание услуг в сфере водоснабжения","VS"]
[575,"Кировская область","Малмыжский муниципальный район","33623000","Рожкинское","33623460","26372712","Администрация Рожкинского с/п","4317005326","431701001","Оказание услуг в сфере водоснабжения","VS"]
[576,"Кировская область","Малмыжский муниципальный район","33623000","Рожкинское","33623460","26372710","ООО \"ЖКХ\" г. Малмыж","4317005196","431701001","Оказание услуг в сфере водоснабжения","VS"]
[577,"Кировская область","Малмыжский муниципальный район","33623000","Савальское","33623464","30840436","Администрация Савальского сельского поселения","4317005573","431700100","Оказание услуг в сфере водоснабжения","VS"]
[578,"Кировская область","Малмыжский муниципальный район","33623000","Савальское","33623464","30840436","Администрация Савальского сельского поселения","4317005573","431700100","Транспортировка воды","VS"]
[579,"Кировская область","Малмыжский муниципальный район","33623000","Савальское","33623464","26372708","ГОУ СПО \"Савальский сельхозтехникум\"","4317002438","431701001","Оказание услуг в сфере водоснабжения","VS"]
[580,"Кировская область","Малмыжский муниципальный район","33623000","Савальское","33623464","26491745","ООО Агрофирма \"Савали\"","4317004876","431701001","Оказание услуг в сфере водоснабжения","VS"]
[581,"Кировская область","Малмыжский муниципальный район","33623000","Савальское","33623464","26446455","СПК сельскохозяйственный артель-колхоз \"Зерновой\"","4317000800","431701001","Оказание услуг в сфере водоснабжения","VS"]
[582,"Кировская область","Малмыжский муниципальный район","33623000","Староирюкское","33623470","26446455","СПК сельскохозяйственный артель-колхоз \"Зерновой\"","4317000800","431701001","Оказание услуг в сфере водоснабжения","VS"]
[583,"Кировская область","Малмыжский муниципальный район","33623000","Старотушкинское","33623472","26372710","ООО \"ЖКХ\" г. Малмыж","4317005196","431701001","Оказание услуг в сфере водоснабжения","VS"]
[584,"Кировская область","Малмыжский муниципальный район","33623000","Старотушкинское","33623472","26595273","СПК-СХА (колхоз) им.Мичурина","4317000712","431701001","Оказание услуг в сфере водоснабжения","VS"]
[585,"Кировская область","Малмыжский муниципальный район","33623000","Тат-Верх-Гоньбинское","33623476","27579403","СПК СХА (колхоз) \"Гигант\"","4317000487","431701001","Оказание услуг в сфере водоснабжения","VS"]
[586,"Кировская область","Малмыжский муниципальный район","33623000","Тат-Верх-Гоньбинское","33623476","26446455","СПК сельскохозяйственный артель-колхоз \"Зерновой\"","4317000800","431701001","Оказание услуг в сфере водоснабжения","VS"]
[587,"Кировская область","Малмыжский муниципальный район","33623000","Тат-Верх-Гоньбинское","33623476","26595248","СПК-СХА (колхоз) \"Гигант\"","4317000487","431701001","Оказание услуг в сфере водоснабжения","VS"]
[588,"Кировская область","Мурашинский муниципальный район","33624000","Город Мураши","33624101","26808802","Горьковская дирекция по тепловодоснабжению структурное подразделение Центральной дирекции по тепловодоснабжению - филиала ОАО \"РЖД\"","7708503727","525745041","Оказание услуг в сфере водоснабжения","VS"]
[589,"Кировская область","Мурашинский муниципальный район","33624000","Город Мураши","33624101","26808802","Горьковская дирекция по тепловодоснабжению структурное подразделение Центральной дирекции по тепловодоснабжению - филиала ОАО \"РЖД\"","7708503727","525745041","Транспортировка воды","VS"]
[590,"Кировская область","Мурашинский муниципальный район","33624000","Город Мураши","33624101","28176220","МУП \"Водник\"","4318001719","431801001","Оказание услуг в сфере водоснабжения","VS"]
[591,"Кировская область","Мурашинский муниципальный район","33624000","Город Мураши","33624101","26423899","ООО \"Водник\"","4318003875","431801001","Оказание услуг в сфере водоснабжения","VS"]
[592,"Кировская область","Мурашинский муниципальный район","33624000","Город Мураши","33624101","26446569","ООО \"Тепловые сети\"","4318004244","431801001","Оказание услуг в сфере водоснабжения","VS"]
[593,"Кировская область","Мурашинский муниципальный район","33624000","Город Мураши","33624101","26446569","ООО \"Тепловые сети\"","4318004244","431801001","Транспортировка воды","VS"]
[594,"Кировская область","Мурашинский муниципальный район","33624000","Город Мураши","33624101","26517798","Филиал ОАО \"РЖД\" ГЖД Кировский региональный центр дирекции по тепловодоснабжению","7708503727","435731037","Оказание услуг в сфере водоснабжения","VS"]
[595,"Кировская область","Мурашинский муниципальный район","33624000","Город Мураши","33624101","26517798","Филиал ОАО \"РЖД\" ГЖД Кировский региональный центр дирекции по тепловодоснабжению","7708503727","435731037","Транспортировка воды","VS"]
[596,"Кировская область","Мурашинский муниципальный район","33624000","Мурашинское","33624435","26372718","Администрация Даниловского с/п","4318003378","431801001","Оказание услуг в сфере водоснабжения","VS"]
[597,"Кировская область","Мурашинский муниципальный район","33624000","Мурашинское","33624435","26372717","Администрация Староверческого с/п","4318003272","431801001","Оказание услуг в сфере водоснабжения","VS"]
[598,"Кировская область","Мурашинский муниципальный район","33624000","Мурашинское","33624435","26423974","ИП Зубак В.М.","431800815759","431801001","Оказание услуг в сфере водоснабжения","VS"]
[599,"Кировская область","Мурашинский муниципальный район","33624000","Мурашинское","33624435","26372715","КФХ Кодолова В.В.","431800109440","431801001","Оказание услуг в сфере водоснабжения","VS"]
[600,"Кировская область","Мурашинский муниципальный район","33624000","Мурашинское","33624435","27774212","МУП \"Безбожниковское КХ\"","4318000465","431801001","Оказание услуг в сфере водоснабжения","VS"]
[601,"Кировская область","Мурашинский муниципальный район","33624000","Мурашинское","33624435","30355558","МУП \"Родник\"","4318004519","431801001","Оказание услуг в сфере водоснабжения","VS"]
[602,"Кировская область","Мурашинский муниципальный район","33624000","Мурашинское","33624435","27911880","ООО \"Водоканал\"","4318000850","431801001","Оказание услуг в сфере водоснабжения","VS"]
[603,"Кировская область","Мурашинский муниципальный район","33624000","Мурашинское","33624435","27480427","ООО \"ЖКХ Октябрьский\"","4318004445","431801001","Оказание услуг в сфере водоснабжения","VS"]
[604,"Кировская область","Мурашинский муниципальный район","33624000","Мурашинское","33624435","26423903","ООО \"ЖКХ\" (п.Безбожник)","4318004156","431801001","Оказание услуг в сфере водоснабжения","VS"]
[605,"Кировская область","Мурашинский муниципальный район","33624000","Мурашинское","33624435","30884630","ООО \"Жилкомсервис\"","4318004565","431801001","Оказание услуг в сфере водоснабжения","VS"]
[606,"Кировская область","Мурашинский муниципальный район","33624000","Мурашинское","33624435","30884630","ООО \"Жилкомсервис\"","4318004565","431801001","Транспортировка воды","VS"]
[607,"Кировская область","Мурашинский муниципальный район","33624000","Мурашинское","33624435","26372716","ООО \"Коммунальщик\"","4318003138","431801001","Оказание услуг в сфере водоснабжения","VS"]
[608,"Кировская область","Мурашинский муниципальный район","33624000","Мурашинское","33624435","26372719","ООО \"Коммунсервис\"","4318003917","431801001","Оказание услуг в сфере водоснабжения","VS"]
[609,"Кировская область","Мурашинский муниципальный район","33624000","Мурашинское","33624435","27603110","ООО \"Тепловые сети\"","4318004244","431801001","Оказание услуг в сфере водоснабжения","VS"]
[610,"Кировская область","Нагорский муниципальный район","33625000","Кобринское","33625416","26595372","Адм. Кобринского с/п","4319002994","431901001","Оказание услуг в сфере водоснабжения","VS"]
[611,"Кировская область","Нагорский муниципальный район","33625000","Кобринское","33625416","26652753","ООО \"ЖилКомСервис\"","4319006678","431901001","Оказание услуг в сфере водоснабжения","VS"]
[612,"Кировская область","Нагорский муниципальный район","33625000","Метелевское","33625424","26595355","Адм. Метелевского с/п","4319002909","431901001","Оказание услуг в сфере водоснабжения","VS"]
[613,"Кировская область","Нагорский муниципальный район","33625000","Мулинское","33625428","26372724","МУП \"Мулинское ЖКХ\"","4319003099","431901001","Оказание услуг в сфере водоснабжения","VS"]
[614,"Кировская область","Нагорский муниципальный район","33625000","Поселок Нагорск","33625151","26372725","ООО \"ЖКХ Нагорск\"","4319003123","431901001","Оказание услуг в сфере водоснабжения","VS"]
[615,"Кировская область","Нагорский муниципальный район","33625000","Поселок Нагорск","33625151","28447766","ООО «Нагорские коммунальные системы»","4319000362","431901001","Оказание услуг в сфере водоснабжения","VS"]
[616,"Кировская область","Нагорский муниципальный район","33625000","Поселок Нагорск","33625151","28460842","ООО ЖКХ Нагорск","4319003123","431901001","Оказание услуг в сфере водоснабжения","VS"]
[617,"Кировская область","Нагорский муниципальный район","33625000","Синегорское","33625444","26755624","ООО \"ЖКХ Синегорье\"","4319006580","431901001","Оказание услуг в сфере водоснабжения","VS"]
[618,"Кировская область","Нагорский муниципальный район","33625000","Синегорское","33625444","26424008","ООО \"ЖилКомСервис\"","4319006580","431901001","Оказание услуг в сфере водоснабжения","VS"]
[619,"Кировская область","Нагорский муниципальный район","33625000","Синегорское","33625444","26652753","ООО \"ЖилКомСервис\"","4319006678","431901001","Оказание услуг в сфере водоснабжения","VS"]
[620,"Кировская область","Нагорский муниципальный район","33625000","Чеглаковское","33625432","27547420","Адм.Чеглаковского с/п","4319002867","431901001","Оказание услуг в сфере водоснабжения","VS"]
[621,"Кировская область","Нагорский муниципальный район","33625000","Чеглаковское","33625432","26372725","ООО \"ЖКХ Нагорск\"","4319003123","431901001","Оказание услуг в сфере водоснабжения","VS"]
[622,"Кировская область","Нагорский муниципальный район","33625000","Чеглаковское","33625432","28460842","ООО ЖКХ Нагорск","4319003123","431901001","Оказание услуг в сфере водоснабжения","VS"]
[623,"Кировская область","Нагорский муниципальный район","33625000","Чеглаковское","33625432","26755633","СПК \"Заря\"","4319000059","431901001","Оказание услуг в сфере водоснабжения","VS"]
[624,"Кировская область","Нагорский муниципальный район","33625000","Чеглаковское","33625432","26372721","СПК - колхоз \"Союз\"","4319000549","431901001","Оказание услуг в сфере водоснабжения","VS"]
[625,"Кировская область","Нагорский муниципальный район","33625000","Чеглаковское","33625432","26755631","СПК колхоз \"Нагорск\"","4319002433","431901001","Оказание услуг в сфере водоснабжения","VS"]
[626,"Кировская область","Нагорский муниципальный район","33625000","Чеглаковское","33625432","26372720","СПК колхоз \"Николаевский\"","4319000147","431901001","Оказание услуг в сфере водоснабжения","VS"]
[627,"Кировская область","Немский муниципальный район","33626000","Архангельское","33626404","26372733","МУП \"Лес\"","4320002621","432001001","Оказание услуг в сфере водоснабжения","VS"]
[628,"Кировская область","Немский муниципальный район","33626000","Архангельское","33626404","26593134","ОАО \"Урожайный\"","4320002942","432001001","Оказание услуг в сфере водоснабжения","VS"]
[629,"Кировская область","Немский муниципальный район","33626000","Архангельское","33626404","26372727","ООО \"Природа-Агро\"","4320003015","432001001","Оказание услуг в сфере водоснабжения","VS"]
[630,"Кировская область","Немский муниципальный район","33626000","Архангельское","33626404","27820661","ООО \"Техас\"","4307014561","430701001","Оказание услуг в сфере водоснабжения","VS"]
[631,"Кировская область","Немский муниципальный район","33626000","Архангельское","33626404","26372729","СХА (колхоз) \"Васильевский\"","4320000335","432001001","Оказание услуг в сфере водоснабжения","VS"]
[632,"Кировская область","Немский муниципальный район","33626000","Архангельское","33626404","26372726","СХА (колхоз) \"Урожайный\"","4320000159","432001001","Оказание услуг в сфере водоснабжения","VS"]
[633,"Кировская область","Немский муниципальный район","33626000","Немское городское поселение","33626151","26372733","МУП \"Лес\"","4320002621","432001001","Оказание услуг в сфере водоснабжения","VS"]
[634,"Кировская область","Немский муниципальный район","33626000","Немское городское поселение","33626151","26372731","ООО \"Агрофирма \"Немский\"","4320002340","432001001","Оказание услуг в сфере водоснабжения","VS"]
[635,"Кировская область","Немский муниципальный район","33626000","Немское сельское поселение","33626424","28877305","МКУ администрация Немского сельского поселения","4320002438","432001001","Оказание услуг в сфере водоснабжения","VS"]
[636,"Кировская область","Немский муниципальный район","33626000","Немское сельское поселение","33626424","26372733","МУП \"Лес\"","4320002621","432001001","Оказание услуг в сфере водоснабжения","VS"]
[637,"Кировская область","Немский муниципальный район","33626000","Немское сельское поселение","33626424","26372732","ООО \"Гарант\"","4320002597","432001001","Оказание услуг в сфере водоснабжения","VS"]
[638,"Кировская область","Немский муниципальный район","33626000","Немское сельское поселение","33626424","26447925","СХА (колхоз) \"Крона\"","4320001466","432001001","Оказание услуг в сфере водоснабжения","VS"]
[639,"Кировская область","Немский муниципальный район","33626000","Немское сельское поселение","33626424","26491770","СХА (колхоз) \"Родина\"","4320000303","432001001","Оказание услуг в сфере водоснабжения","VS"]
[640,"Кировская область","Нолинский муниципальный район","33627000","Город Нолинск","33627101","26357127","ООО \"Ремонтный завод\"","4321005382","432101001","Оказание услуг в сфере водоснабжения","VS"]
[641,"Кировская область","Нолинский муниципальный район","33627000","Город Нолинск","33627101","26372735","ООО \"Родник\"","4321005311","432101001","Оказание услуг в сфере водоснабжения","VS"]
[642,"Кировская область","Нолинский муниципальный район","33627000","Красноярское","33627418","28269550","Администрация МО Красноярского сельского поселения Нолинского района","4321005992","432101001","Оказание услуг в сфере водоснабжения","VS"]
[643,"Кировская область","Нолинский муниципальный район","33627000","Красноярское","33627418","26920083","ООО \"Партнер Плюс\"","4321005640","432101001","Оказание услуг в сфере водоснабжения","VS"]
[644,"Кировская область","Нолинский муниципальный район","33627000","Кырчанское","33627420","26372743","Администрация Кырчанского с/п","4321006065","432101001","Оказание услуг в сфере водоснабжения","VS"]
[645,"Кировская область","Нолинский муниципальный район","33627000","Кырчанское","33627420","28127012","Администрация муницыпального образования Кырчанское сельское поселение","4321006065","432101001","Транспортировка воды","VS"]
[646,"Кировская область","Нолинский муниципальный район","33627000","Кырчанское","33627420","27285454","СХА колхоз \"Ленинец\"","4321000666","432101001","Оказание услуг в сфере водоснабжения","VS"]
[647,"Кировская область","Нолинский муниципальный район","33627000","Кырчанское","33627420","27681938","Сельскохозяйственная артель - колхоз \"Восход\"","4321000391","432101001","Оказание услуг в сфере водоснабжения","VS"]
[648,"Кировская область","Нолинский муниципальный район","33627000","Лудянское","33627428","26424155","Администрация Лудянского с/п","4321005960","432101001","Оказание услуг в сфере водоснабжения","VS"]
[649,"Кировская область","Нолинский муниципальный район","33627000","Лудянское","33627428","27986323","Администрация Лудянского сп","4321005960","432101001","Оказание услуг в сфере водоснабжения","VS"]
[650,"Кировская область","Нолинский муниципальный район","33627000","Лудянское","33627428","26920083","ООО \"Партнер Плюс\"","4321005640","432101001","Оказание услуг в сфере водоснабжения","VS"]
[651,"Кировская область","Нолинский муниципальный район","33627000","Медведское","33627430","28855931","Администрация Медведского сельского поселения","4321006058","432101001","Оказание услуг в сфере водоснабжения","VS"]
[652,"Кировская область","Нолинский муниципальный район","33627000","Медведское","33627430","26920083","ООО \"Партнер Плюс\"","4321005640","432101001","Оказание услуг в сфере водоснабжения","VS"]
[653,"Кировская область","Нолинский муниципальный район","33627000","Медведское","33627430","27891660","ООО \"ПромЖилСервис\"","4321006675","432101001","Оказание услуг в сфере водоснабжения","VS"]
[654,"Кировская область","Нолинский муниципальный район","33627000","Медведское","33627430","27891660","ООО \"ПромЖилСервис\"","4321006675","432101001","Транспортировка воды","VS"]
[655,"Кировская область","Нолинский муниципальный район","33627000","Перевозское","33627436","30809058","Администрация муниципального образования Перевозское сельское поселение Нолинского района Кировской области","4321006033","432101001","Оказание услуг в сфере водоснабжения","VS"]
[656,"Кировская область","Нолинский муниципальный район","33627000","Перевозское","33627436","30809058","Администрация муниципального образования Перевозское сельское поселение Нолинского района Кировской области","4321006033","432101001","Транспортировка воды","VS"]
[657,"Кировская область","Нолинский муниципальный район","33627000","Перевозское","33627436","26491773","ООО \"КПП\"","4321018624","432101001","Оказание услуг в сфере водоснабжения","VS"]
[658,"Кировская область","Нолинский муниципальный район","33627000","Перевозское","33627436","26920083","ООО \"Партнер Плюс\"","4321005640","432101001","Оказание услуг в сфере водоснабжения","VS"]
[659,"Кировская область","Нолинский муниципальный район","33627000","Поселок Аркуль","33627152","30809049","Администрация МО Аркульское гп Нолинского района Кировской области","4321006040","432101001","Оказание услуг в сфере водоснабжения","VS"]
[660,"Кировская область","Нолинский муниципальный район","33627000","Поселок Аркуль","33627152","30809049","Администрация МО Аркульское гп Нолинского района Кировской области","4321006040","432101001","Транспортировка воды","VS"]
[661,"Кировская область","Нолинский муниципальный район","33627000","Поселок Аркуль","33627152","26357128","ООО \"ЖКХ п. Аркуль\"","4321005664","432101001","Оказание услуг в сфере водоснабжения","VS"]
[662,"Кировская область","Нолинский муниципальный район","33627000","Рябиновское","33627432","30908173","Администрация муниципального образования  Рябиновского сельского поселения Нолинского района Кировской области","4321006072","432101001","Оказание услуг в сфере водоснабжения","VS"]
[663,"Кировская область","Нолинский муниципальный район","33627000","Рябиновское","33627432","30908173","Администрация муниципального образования  Рябиновского сельского поселения Нолинского района Кировской области","4321006072","432101001","Транспортировка воды","VS"]
[664,"Кировская область","Нолинский муниципальный район","33627000","Рябиновское","33627432","26372736","ООО \"Медведское ЖКХ\"","4321005537","432101001","Оказание услуг в сфере водоснабжения","VS"]
[665,"Кировская область","Нолинский муниципальный район","33627000","Рябиновское","33627432","26372736","ООО \"Медведское ЖКХ\"","4321005537","432101001","Транспортировка воды","VS"]
[666,"Кировская область","Нолинский муниципальный район","33627000","Рябиновское","33627432","26372735","ООО \"Родник\"","4321005311","432101001","Оказание услуг в сфере водоснабжения","VS"]
[667,"Кировская область","Нолинский муниципальный район","33627000","Рябиновское","33627432","26372735","ООО \"Родник\"","4321005311","432101001","Транспортировка воды","VS"]
[668,"Кировская область","Нолинский муниципальный район","33627000","Татауровское","33627452","27988462","Администрация Татауровского с/п","4321005985","432101001","Оказание услуг в сфере водоснабжения","VS"]
[669,"Кировская область","Нолинский муниципальный район","33627000","Шварихинское","33627456","26447941","Администрация Шварихинского с/п","4321005978","432101001","Оказание услуг в сфере водоснабжения","VS"]
[670,"Кировская область","Нолинский муниципальный район","33627000","Шварихинское","33627456","28127005","Администрация муниципального образования Шварихинского сельского поселения","4321005978","432101001","Оказание услуг в сфере водоснабжения","VS"]
[671,"Кировская область","Нолинский муниципальный район","33627000","Шварихинское","33627456","26372739","ЗАО \"Зыковское\"","4321005801","432101001","Оказание услуг в сфере водоснабжения","VS"]
[672,"Кировская область","Нолинский муниципальный район","33627000","Шварихинское","33627456","27555112","МУП \"Шварихинская МТС\"","4321003829","432101001","Оказание услуг в сфере водоснабжения","VS"]
[673,"Кировская область","Омутнинский муниципальный район","33628000","Белореченское","33628410","26577942","ООО \"Сантехсервис\"","4302003936","430201001","Оказание услуг в сфере водоснабжения","VS"]
[674,"Кировская область","Омутнинский муниципальный район","33628000","Белореченское","33628410","26577942","ООО \"Сантехсервис\"","4302003936","430201001","Транспортировка воды","VS"]
[675,"Кировская область","Омутнинский муниципальный район","33628000","Вятское","33628412","26595408","Адм. Белозерского с/п","4322008266","432201001","Оказание услуг в сфере водоснабжения","VS"]
[676,"Кировская область","Омутнинский муниципальный район","33628000","Вятское","33628412","26595395","Адм. Вятского с/п","4322008241","432201001","Оказание услуг в сфере водоснабжения","VS"]
[677,"Кировская область","Омутнинский муниципальный район","33628000","Вятское","33628412","26372747","МУП ЖКХ \"Песковский коммунальник\"","4322006886","432201001","Оказание услуг в сфере водоснабжения","VS"]
[678,"Кировская область","Омутнинский муниципальный район","33628000","Вятское","33628412","26577942","ООО \"Сантехсервис\"","4302003936","430201001","Оказание услуг в сфере водоснабжения","VS"]
[679,"Кировская область","Омутнинский муниципальный район","33628000","Вятское","33628412","26577942","ООО \"Сантехсервис\"","4302003936","430201001","Транспортировка воды","VS"]
[680,"Кировская область","Омутнинский муниципальный район","33628000","Город Омутнинск","33628101","26560525","АО \"ГУ ЖКХ\"","5116000922","511601001","Оказание услуг в сфере водоснабжения","VS"]
[681,"Кировская область","Омутнинский муниципальный район","33628000","Город Омутнинск","33628101","26560525","АО \"ГУ ЖКХ\"","5116000922","511601001","Транспортировка воды","VS"]
[682,"Кировская область","Омутнинский муниципальный район","33628000","Город Омутнинск","33628101","30407160","АО \"ГУ ЖКХ\"","5116000922","183845001","Оказание услуг в сфере водоснабжения","VS"]
[683,"Кировская область","Омутнинский муниципальный район","33628000","Город Омутнинск","33628101","26357131","АО \"Омутнинский металлургический завод\"","4322000130","432201001","Оказание услуг в сфере водоснабжения","VS"]
[684,"Кировская область","Омутнинский муниципальный район","33628000","Город Омутнинск","33628101","26808802","Горьковская дирекция по тепловодоснабжению структурное подразделение Центральной дирекции по тепловодоснабжению - филиала ОАО \"РЖД\"","7708503727","525745041","Оказание услуг в сфере водоснабжения","VS"]
[685,"Кировская область","Омутнинский муниципальный район","33628000","Город Омутнинск","33628101","26808802","Горьковская дирекция по тепловодоснабжению структурное подразделение Центральной дирекции по тепловодоснабжению - филиала ОАО \"РЖД\"","7708503727","525745041","Транспортировка воды","VS"]
[686,"Кировская область","Омутнинский муниципальный район","33628000","Город Омутнинск","33628101","26372749","МУП ЖКХ \"Водоканал\"","4322007696","432201001","Оказание услуг в сфере водоснабжения","VS"]
[687,"Кировская область","Омутнинский муниципальный район","33628000","Город Омутнинск","33628101","26372746","МУП ЖКХ Омутнинского района","4322000404","432201001","Оказание услуг в сфере водоснабжения","VS"]
[688,"Кировская область","Омутнинский муниципальный район","33628000","Город Омутнинск","33628101","26840933","ООО \"Васильевка\"","4322010473","432201001","Оказание услуг в сфере водоснабжения","VS"]
[689,"Кировская область","Омутнинский муниципальный район","33628000","Город Омутнинск","33628101","26840917","ООО \"Осокино\"","4322010480","432201001","Оказание услуг в сфере водоснабжения","VS"]
[690,"Кировская область","Омутнинский муниципальный район","33628000","Город Омутнинск","33628101","26840921","ООО \"Плетеневская\"","4322010459","432201001","Оказание услуг в сфере водоснабжения","VS"]
[691,"Кировская область","Омутнинский муниципальный район","33628000","Город Омутнинск","33628101","26840911","ООО \"Ручеек\"","4322010466","432201001","Оказание услуг в сфере водоснабжения","VS"]
[692,"Кировская область","Омутнинский муниципальный район","33628000","Город Омутнинск","33628101","26517798","Филиал ОАО \"РЖД\" ГЖД Кировский региональный центр дирекции по тепловодоснабжению","7708503727","435731037","Оказание услуг в сфере водоснабжения","VS"]
[693,"Кировская область","Омутнинский муниципальный район","33628000","Город Омутнинск","33628101","26517798","Филиал ОАО \"РЖД\" ГЖД Кировский региональный центр дирекции по тепловодоснабжению","7708503727","435731037","Транспортировка воды","VS"]
[694,"Кировская область","Омутнинский муниципальный район","33628000","Залазнинское","33628420","26372746","МУП ЖКХ Омутнинского района","4322000404","432201001","Оказание услуг в сфере водоснабжения","VS"]
[695,"Кировская область","Омутнинский муниципальный район","33628000","Леснополянское","33628424","26372747","МУП ЖКХ \"Песковский коммунальник\"","4322006886","432201001","Оказание услуг в сфере водоснабжения","VS"]
[696,"Кировская область","Омутнинский муниципальный район","33628000","Поселок Восточный","33628155","27672116","ООО \"Восток\"","4322010635","432201001","Оказание услуг в сфере водоснабжения","VS"]
[697,"Кировская область","Омутнинский муниципальный район","33628000","Поселок Песковка","33628162","26808802","Горьковская дирекция по тепловодоснабжению структурное подразделение Центральной дирекции по тепловодоснабжению - филиала ОАО \"РЖД\"","7708503727","525745041","Оказание услуг в сфере водоснабжения","VS"]
[698,"Кировская область","Омутнинский муниципальный район","33628000","Поселок Песковка","33628162","26808802","Горьковская дирекция по тепловодоснабжению структурное подразделение Центральной дирекции по тепловодоснабжению - филиала ОАО \"РЖД\"","7708503727","525745041","Транспортировка воды","VS"]
[699,"Кировская область","Омутнинский муниципальный район","33628000","Поселок Песковка","33628162","26372747","МУП ЖКХ \"Песковский коммунальник\"","4322006886","432201001","Оказание услуг в сфере водоснабжения","VS"]
[700,"Кировская область","Омутнинский муниципальный район","33628000","Поселок Песковка","33628162","26454661","ФКУ ИК-1 УФСИН России по Кировской области","4322005233","432201001","Оказание услуг в сфере водоснабжения","VS"]
[701,"Кировская область","Омутнинский муниципальный район","33628000","Поселок Песковка","33628162","26454661","ФКУ ИК-1 УФСИН России по Кировской области","4322005233","432201001","Транспортировка воды","VS"]
[702,"Кировская область","Омутнинский муниципальный район","33628000","Поселок Песковка","33628162","26517798","Филиал ОАО \"РЖД\" ГЖД Кировский региональный центр дирекции по тепловодоснабжению","7708503727","435731037","Оказание услуг в сфере водоснабжения","VS"]
[703,"Кировская область","Омутнинский муниципальный район","33628000","Поселок Песковка","33628162","26517798","Филиал ОАО \"РЖД\" ГЖД Кировский региональный центр дирекции по тепловодоснабжению","7708503727","435731037","Транспортировка воды","VS"]
[704,"Кировская область","Омутнинский муниципальный район","33628000","Чернохолуницкое","33628430","26372746","МУП ЖКХ Омутнинского района","4322000404","432201001","Оказание услуг в сфере водоснабжения","VS"]
[705,"Кировская область","Омутнинский муниципальный район","33628000","Шахровское","33628432","26372746","МУП ЖКХ Омутнинского района","4322000404","432201001","Оказание услуг в сфере водоснабжения","VS"]
[706,"Кировская область","Опаринский муниципальный район","33629000","Альмежское","33629404","26595422","Адм. Альмежского с/п","4323003084","432301001","Оказание услуг в сфере водоснабжения","VS"]
[707,"Кировская область","Опаринский муниципальный район","33629000","Вазюкское","33629408","26595432","Адм. Вазюкского с/п","4323003180","432301001","Оказание услуг в сфере водоснабжения","VS"]
[708,"Кировская область","Опаринский муниципальный район","33629000","Заринское","33629414","28985108","ООО \"Управляющая компания \"Комфорт-Плюс\"","4323004352","432301001","Оказание услуг в сфере водоснабжения","VS"]
[709,"Кировская область","Опаринский муниципальный район","33629000","Маромицкое","33629424","30335595","МУП \"Маромицкое коммунальное хозяйство\"","4323004539","432301001","Оказание услуг в сфере водоснабжения","VS"]
[710,"Кировская область","Опаринский муниципальный район","33629000","Маромицкое","33629424","30335595","МУП \"Маромицкое коммунальное хозяйство\"","4323004539","432301001","Транспортировка воды","VS"]
[711,"Кировская область","Опаринский муниципальный район","33629000","Маромицкое","33629424","26357139","ООО \"ТВК Маромица\"","4323002980","432301001","Оказание услуг в сфере водоснабжения","VS"]
[712,"Кировская область","Опаринский муниципальный район","33629000","Поселок Опарино","33629151","26357142","МУП КХ \"Опарино\"","4323003609","432301001","Оказание услуг в сфере водоснабжения","VS"]
[713,"Кировская область","Опаринский муниципальный район","33629000","Поселок Опарино","33629151","27341444","МУП Опаринское КХ","4323003990","432301001","Оказание услуг в сфере водоснабжения","VS"]
[714,"Кировская область","Опаринский муниципальный район","33629000","Речное","33629434","30477786","МКУ \"Управление жилищно-коммунального хозяйства п. Речной\"","4323004916","432301001","Оказание услуг в сфере водоснабжения","VS"]
[715,"Кировская область","Опаринский муниципальный район","33629000","Речное","33629434","30477786","МКУ \"Управление жилищно-коммунального хозяйства п. Речной\"","4323004916","432301001","Транспортировка воды","VS"]
[716,"Кировская область","Опаринский муниципальный район","33629000","Речное","33629434","26772749","Речное сельское поселение","4305003211","432301001","Оказание услуг в сфере водоснабжения","VS"]
[717,"Кировская область","Опаринский муниципальный район","33629000","Речное","33629434","26491793","ФКУ \"Исправительная колония №9 Управления Федеральной службы исполнения наказаний по Кировской области\"","4323001898","432301001","Оказание услуг в сфере водоснабжения","VS"]
[718,"Кировская область","Опаринский муниципальный район","33629000","Речное","33629434","27682717","ФКУ ОИК-1 УФСИН России по Кировской области","4323002676","432300101","Оказание услуг в сфере водоснабжения","VS"]
[719,"Кировская область","Опаринский муниципальный район","33629000","Стрельское","33629435","26491788","ИП Кокоулин","432300084929","432301001","Оказание услуг в сфере водоснабжения","VS"]
[720,"Кировская область","Оричевский муниципальный район","33630000","Адышевское","33630404","26761595","МУП ЖКХ Адышевского сельского поселения Оричевского района Кировской области \"Адышево\"","4324007268","432401001","Оказание услуг в сфере водоснабжения","VS"]
[721,"Кировская область","Оричевский муниципальный район","33630000","Адышевское","33630404","27216696","ООО \"Агрофирма \"Адышево\"","4324007525","432401001","Оказание услуг в сфере водоснабжения","VS"]
[722,"Кировская область","Оричевский муниципальный район","33630000","Адышевское","33630404","26357144","ООО \"Санаторий Колос\"","4324004852","432401001","Оказание услуг в сфере водоснабжения","VS"]
[723,"Кировская область","Оричевский муниципальный район","33630000","Адышевское","33630404","26424554","СПК \"Адышевский\"","4324000287","432401001","Оказание услуг в сфере водоснабжения","VS"]
[724,"Кировская область","Оричевский муниципальный район","33630000","Быстрицкое","33630406","26755660","ИП Кашатских","434581859890","434501001","Оказание услуг в сфере водоснабжения","VS"]
[725,"Кировская область","Оричевский муниципальный район","33630000","Быстрицкое","33630406","26424561","ООО \"ЖКХ Торфяное\"","4324050175","432401001","Оказание услуг в сфере водоснабжения","VS"]
[726,"Кировская область","Оричевский муниципальный район","33630000","Быстрицкое","33630406","26372756","ПСПК \"Луговой\"","4324001918","432401001","Оказание услуг в сфере водоснабжения","VS"]
[727,"Кировская область","Оричевский муниципальный район","33630000","Гарское","33630412","28466362","ООО \"Водоканал плюс\"","4324006803","432401001","Оказание услуг в сфере водоснабжения","VS"]
[728,"Кировская область","Оричевский муниципальный район","33630000","Истобенское","33630416","26424527","ООО \"Водоканал\"","4324050320","432401001","Оказание услуг в сфере водоснабжения","VS"]
[729,"Кировская область","Оричевский муниципальный район","33630000","Коршикское","33630420","26372760","МП ЖКХ \"Коршикское\"","4324050418","432401001","Оказание услуг в сфере водоснабжения","VS"]
[730,"Кировская область","Оричевский муниципальный район","33630000","Коршикское","33630420","26474515","ООО \"Агрофирма\"Коршик\"","4324000760","432401001","Оказание услуг в сфере водоснабжения","VS"]
[731,"Кировская область","Оричевский муниципальный район","33630000","Коршикское","33630420","26813769","ООО ЖКХ \"Коршикское\"","4324007444","432401001","Оказание услуг в сфере водоснабжения","VS"]
[732,"Кировская область","Оричевский муниципальный район","33630000","Кучелаповское","33630424","26813769","ООО ЖКХ \"Коршикское\"","4324007444","432401001","Оказание услуг в сфере водоснабжения","VS"]
[733,"Кировская область","Оричевский муниципальный район","33630000","Кучелаповское","33630424","26372754","СХПК \"Искра\"","4324001428","432401001","Оказание услуг в сфере водоснабжения","VS"]
[734,"Кировская область","Оричевский муниципальный район","33630000","Кучелаповское","33630424","26550298","Санаторий \"Сосновый бор\" - филиал АО \"РЖД-ЗДОРОВЬЕ\"","7703715816","432443002","Оказание услуг в сфере водоснабжения","VS"]
[735,"Кировская область","Оричевский муниципальный район","33630000","Лёвинское","33630153","26372758","ООО \"ВКХ Левинцы плюс\"","4324000745","432401001","Оказание услуг в сфере водоснабжения","VS"]
[736,"Кировская область","Оричевский муниципальный район","33630000","Лёвинское","33630153","31062623","ООО \"Водоканалсервис\"","4324008688","432401001","Оказание услуг в сфере водоснабжения","VS"]
[737,"Кировская область","Оричевский муниципальный район","33630000","Лёвинское","33630153","31062623","ООО \"Водоканалсервис\"","4324008688","432401001","Транспортировка воды","VS"]
[738,"Кировская область","Оричевский муниципальный район","33630000","Лёвинское","33630153","28505866","ООО Водоканалсервис","4324007892","432401001","Оказание услуг в сфере водоснабжения","VS"]
[739,"Кировская область","Оричевский муниципальный район","33630000","Лёвинское","33630153","26446696","Оричевское МУПП ЖКХ \"Коммунсервис\"","4324049317","432401001","Оказание услуг в сфере водоснабжения","VS"]
[740,"Кировская область","Оричевский муниципальный район","33630000","Лугоболотное","33630426","26357150","МП ЖКХ \"Юбилейный\"","4324050390","432401001","Оказание услуг в сфере водоснабжения","VS"]
[741,"Кировская область","Оричевский муниципальный район","33630000","Лугоболотное","33630426","26813760","ООО ЖКХ \"Юбилейный\"","4324007412","432401001","Оказание услуг в сфере водоснабжения","VS"]
[742,"Кировская область","Оричевский муниципальный район","33630000","Лугоболотное","33630426","26372755","ФГУП Кировская лугоболотная опытная станция","4324001900","432401001","Оказание услуг в сфере водоснабжения","VS"]
[743,"Кировская область","Оричевский муниципальный район","33630000","Мирнинское","33630154","26791544","\"Войсковая часть 21228\" ФБУ - войсковая часть 70855","7724729390","432443001","Оказание услуг в сфере водоснабжения","VS"]
[744,"Кировская область","Оричевский муниципальный район","33630000","Мирнинское","33630154","26560525","АО \"ГУ ЖКХ\"","5116000922","511601001","Оказание услуг в сфере водоснабжения","VS"]
[745,"Кировская область","Оричевский муниципальный район","33630000","Мирнинское","33630154","26560525","АО \"ГУ ЖКХ\"","5116000922","511601001","Транспортировка воды","VS"]
[746,"Кировская область","Оричевский муниципальный район","33630000","Мирнинское","33630154","30407160","АО \"ГУ ЖКХ\"","5116000922","183845001","Оказание услуг в сфере водоснабжения","VS"]
[747,"Кировская область","Оричевский муниципальный район","33630000","Мирнинское","33630154","28466362","ООО \"Водоканал плюс\"","4324006803","432401001","Оказание услуг в сфере водоснабжения","VS"]
[748,"Кировская область","Оричевский муниципальный район","33630000","Мирнинское","33630154","26380224","ООО \"ЖКХ\" п.Мирный","4324049973","432401001","Оказание услуг в сфере водоснабжения","VS"]
[749,"Кировская область","Оричевский муниципальный район","33630000","Мирнинское","33630154","27632970","ООО «Теплосистема»","4324049388","432401001","Оказание услуг в сфере водоснабжения","VS"]
[750,"Кировская область","Оричевский муниципальный район","33630000","Мирнинское","33630154","27632970","ООО «Теплосистема»","4324049388","432401001","Транспортировка воды","VS"]
[751,"Кировская область","Оричевский муниципальный район","33630000","Мирнинское","33630154","30903763","ФГБУ \"ЦЖКУ\" МИНОБОРОНЫ РОССИИ","7729314745","770101001","Оказание услуг в сфере водоснабжения","VS"]
[752,"Кировская область","Оричевский муниципальный район","33630000","Мирнинское","33630154","30914574","ФГБУ \"ЦЖКУ\" МИНОБОРОНЫ РОССИИ (по ЦВО)","7729314745","667043001","Оказание услуг в сфере водоснабжения","VS"]
[753,"Кировская область","Оричевский муниципальный район","33630000","Мирнинское","33630154","30914574","ФГБУ \"ЦЖКУ\" МИНОБОРОНЫ РОССИИ (по ЦВО)","7729314745","667043001","Транспортировка воды","VS"]
[754,"Кировская область","Оричевский муниципальный район","33630000","Оричевское","33630151","26808802","Горьковская дирекция по тепловодоснабжению структурное подразделение Центральной дирекции по тепловодоснабжению - филиала ОАО \"РЖД\"","7708503727","525745041","Оказание услуг в сфере водоснабжения","VS"]
[755,"Кировская область","Оричевский муниципальный район","33630000","Оричевское","33630151","26808802","Горьковская дирекция по тепловодоснабжению структурное подразделение Центральной дирекции по тепловодоснабжению - филиала ОАО \"РЖД\"","7708503727","525745041","Транспортировка воды","VS"]
[756,"Кировская область","Оричевский муниципальный район","33630000","Оричевское","33630151","26424527","ООО \"Водоканал\"","4324050320","432401001","Оказание услуг в сфере водоснабжения","VS"]
[757,"Кировская область","Оричевский муниципальный район","33630000","Оричевское","33630151","26446696","Оричевское МУПП ЖКХ \"Коммунсервис\"","4324049317","432401001","Оказание услуг в сфере водоснабжения","VS"]
[758,"Кировская область","Оричевский муниципальный район","33630000","Оричевское","33630151","26517798","Филиал ОАО \"РЖД\" ГЖД Кировский региональный центр дирекции по тепловодоснабжению","7708503727","435731037","Оказание услуг в сфере водоснабжения","VS"]
[759,"Кировская область","Оричевский муниципальный район","33630000","Оричевское","33630151","26517798","Филиал ОАО \"РЖД\" ГЖД Кировский региональный центр дирекции по тепловодоснабжению","7708503727","435731037","Транспортировка воды","VS"]
[760,"Кировская область","Оричевский муниципальный район","33630000","Пищальское","33630436","30391772","Администрация Пищальского сельского поселения Оричевского района  Кировской области","4324049532","431301001","Оказание услуг в сфере водоснабжения","VS"]
[761,"Кировская область","Оричевский муниципальный район","33630000","Пищальское","33630436","30391772","Администрация Пищальского сельского поселения Оричевского района  Кировской области","4324049532","431301001","Транспортировка воды","VS"]
[762,"Кировская область","Оричевский муниципальный район","33630000","Пустощенское","33630440","26424527","ООО \"Водоканал\"","4324050320","432401001","Оказание услуг в сфере водоснабжения","VS"]
[763,"Кировская область","Оричевский муниципальный район","33630000","Спас-Талицкое","33630444","26424527","ООО \"Водоканал\"","4324050320","432401001","Оказание услуг в сфере водоснабжения","VS"]
[764,"Кировская область","Оричевский муниципальный район","33630000","Спас-Талицкое","33630444","26447949","Опытное хозяйство Кировской ГЗМИС","4324006306","432401001","Оказание услуг в сфере водоснабжения","VS"]
[765,"Кировская область","Оричевский муниципальный район","33630000","Спас-Талицкое","33630444","26424531","СХПК им.Кирова","4324001410","432401001","Оказание услуг в сфере водоснабжения","VS"]
[766,"Кировская область","Оричевский муниципальный район","33630000","Стрижевское","33630157","26372758","ООО \"ВКХ Левинцы плюс\"","4324000745","432401001","Оказание услуг в сфере водоснабжения","VS"]
[767,"Кировская область","Оричевский муниципальный район","33630000","Суводское","33630448","26595442","Адм. Суводского с/п","4324049451","432401001","Оказание услуг в сфере водоснабжения","VS"]
[768,"Кировская область","Оричевский муниципальный район","33630000","Торфяное","33630450","26424561","ООО \"ЖКХ Торфяное\"","4324050175","432401001","Оказание услуг в сфере водоснабжения","VS"]
[769,"Кировская область","Оричевский муниципальный район","33630000","Усовское","33630452","26424527","ООО \"Водоканал\"","4324050320","432401001","Оказание услуг в сфере водоснабжения","VS"]
[770,"Кировская область","Оричевский муниципальный район","33630000","Усовское","33630452","26446696","Оричевское МУПП ЖКХ \"Коммунсервис\"","4324049317","432401001","Оказание услуг в сфере водоснабжения","VS"]
[771,"Кировская область","Оричевский муниципальный район","33630000","Шалеговское","33630456","26424527","ООО \"Водоканал\"","4324050320","432401001","Оказание услуг в сфере водоснабжения","VS"]
[772,"Кировская область","Орловский муниципальный район","33645000","Орловское городское поселение","33645101","26372835","ООО \"Орловский водоканал\"","4336002521","433601001","Оказание услуг в сфере водоснабжения","VS"]
[773,"Кировская область","Орловский муниципальный район","33645000","Орловское сельское поселение","33645420","26492010","ИП Вавилин С.М.","433600293989","433601001","Оказание услуг в сфере водоснабжения","VS"]
[774,"Кировская область","Орловский муниципальный район","33645000","Орловское сельское поселение","33645420","28039721","МУП ЖКХ «Орловское»","4336003941","433601001","Оказание услуг в сфере водоснабжения","VS"]
[775,"Кировская область","Орловский муниципальный район","33645000","Орловское сельское поселение","33645420","28263731","МУП Родник","4336004007","433601001","Оказание услуг в сфере водоснабжения","VS"]
[776,"Кировская область","Орловский муниципальный район","33645000","Орловское сельское поселение","33645420","26759747","ООО \"Агрофирма \"Колковская\"","4336000250","433601001","Оказание услуг в сфере водоснабжения","VS"]
[777,"Кировская область","Орловский муниципальный район","33645000","Орловское сельское поселение","33645420","26372842","ООО \"Агрофирма \"Прогресс\"","4336003395","433601001","Оказание услуг в сфере водоснабжения","VS"]
[778,"Кировская область","Орловский муниципальный район","33645000","Орловское сельское поселение","33645420","26447954","ООО \"Кленовицкое\"","4336003518","433601001","Оказание услуг в сфере водоснабжения","VS"]
[779,"Кировская область","Орловский муниципальный район","33645000","Орловское сельское поселение","33645420","26372835","ООО \"Орловский водоканал\"","4336002521","433601001","Оказание услуг в сфере водоснабжения","VS"]
[780,"Кировская область","Орловский муниципальный район","33645000","Орловское сельское поселение","33645420","26492008","ООО \"Русановский\"","4336003660","433601001","Оказание услуг в сфере водоснабжения","VS"]
[781,"Кировская область","Орловский муниципальный район","33645000","Орловское сельское поселение","33645420","26372836","ООО Агрофирма \"Чудиновская\"","4336003772","433601001","Оказание услуг в сфере водоснабжения","VS"]
[782,"Кировская область","Орловский муниципальный район","33645000","Орловское сельское поселение","33645420","26372832","СПК (колхоз) \"Колковский\"","4336000250","433601001","Оказание услуг в сфере водоснабжения","VS"]
[783,"Кировская область","Орловский муниципальный район","33645000","Орловское сельское поселение","33645420","26372832","СПК (колхоз) \"Колковский\"","4336000250","433601001","Транспортировка воды","VS"]
[784,"Кировская область","Орловский муниципальный район","33645000","Орловское сельское поселение","33645420","26372833","СПК-СА (колхоз) \"Русановский\"","4336000394","433601001","Оказание услуг в сфере водоснабжения","VS"]
[785,"Кировская область","Орловский муниципальный район","33645000","Орловское сельское поселение","33645420","26372833","СПК-СА (колхоз) \"Русановский\"","4336000394","433601001","Транспортировка воды","VS"]
[786,"Кировская область","Орловский муниципальный район","33645000","Орловское сельское поселение","33645420","26372834","СХЗАО \"Тохтинское\"","4336001694","433601001","Оказание услуг в сфере водоснабжения","VS"]
[787,"Кировская область","Орловский муниципальный район","33645000","Орловское сельское поселение","33645420","26357208","Цепелевское МУП ЖКХ","4336002708","433601001","Оказание услуг в сфере водоснабжения","VS"]
[788,"Кировская область","Пижанский муниципальный район","33631000","Ахмановское","33631404","26840576","МУП \"Пижанская автоколонна\"","4325002061","432501001","Оказание услуг в сфере водоснабжения","VS"]
[789,"Кировская область","Пижанский муниципальный район","33631000","Ахмановское","33631404","26840576","МУП \"Пижанская автоколонна\"","4325002061","432501001","Транспортировка воды","VS"]
[790,"Кировская область","Пижанский муниципальный район","33631000","Ахмановское","33631404","26372772","ОАО \"Ахмановское\"","4325003019","432501001","Оказание услуг в сфере водоснабжения","VS"]
[791,"Кировская область","Пижанский муниципальный район","33631000","Ахмановское","33631404","26372768","ОАО \"Ластинское\"","4325002696","432501001","Оказание услуг в сфере водоснабжения","VS"]
[792,"Кировская область","Пижанский муниципальный район","33631000","Ахмановское","33631404","28003195","ООО \"Строительно-монтажная компания \"Крафт\"","4325003259","432501001","Оказание услуг в сфере водоснабжения","VS"]
[793,"Кировская область","Пижанский муниципальный район","33631000","Ахмановское","33631404","26372762","СПК \"Сретенский\"","4325000032","432501001","Оказание услуг в сфере водоснабжения","VS"]
[794,"Кировская область","Пижанский муниципальный район","33631000","Безводнинское","33631408","26840576","МУП \"Пижанская автоколонна\"","4325002061","432501001","Оказание услуг в сфере водоснабжения","VS"]
[795,"Кировская область","Пижанский муниципальный район","33631000","Безводнинское","33631408","26840576","МУП \"Пижанская автоколонна\"","4325002061","432501001","Транспортировка воды","VS"]
[796,"Кировская область","Пижанский муниципальный район","33631000","Безводнинское","33631408","28003195","ООО \"Строительно-монтажная компания \"Крафт\"","4325003259","432501001","Оказание услуг в сфере водоснабжения","VS"]
[797,"Кировская область","Пижанский муниципальный район","33631000","Безводнинское","33631408","26372763","СПК \"Земледелец\"","4325000113","432501001","Оказание услуг в сфере водоснабжения","VS"]
[798,"Кировская область","Пижанский муниципальный район","33631000","Войское","33631412","26840576","МУП \"Пижанская автоколонна\"","4325002061","432501001","Оказание услуг в сфере водоснабжения","VS"]
[799,"Кировская область","Пижанский муниципальный район","33631000","Войское","33631412","26840576","МУП \"Пижанская автоколонна\"","4325002061","432501001","Транспортировка воды","VS"]
[800,"Кировская область","Пижанский муниципальный район","33631000","Войское","33631412","28003195","ООО \"Строительно-монтажная компания \"Крафт\"","4325003259","432501001","Оказание услуг в сфере водоснабжения","VS"]
[801,"Кировская область","Пижанский муниципальный район","33631000","Войское","33631412","26372767","СПК \"Войский\"","4325000297","432501001","Оказание услуг в сфере водоснабжения","VS"]
[802,"Кировская область","Пижанский муниципальный район","33631000","Ижевское","33631416","26840576","МУП \"Пижанская автоколонна\"","4325002061","432501001","Оказание услуг в сфере водоснабжения","VS"]
[803,"Кировская область","Пижанский муниципальный район","33631000","Ижевское","33631416","26840576","МУП \"Пижанская автоколонна\"","4325002061","432501001","Транспортировка воды","VS"]
[804,"Кировская область","Пижанский муниципальный район","33631000","Ижевское","33631416","26372771","ОАО \"Ижевское\"","4325002946","432501001","Оказание услуг в сфере водоснабжения","VS"]
[805,"Кировская область","Пижанский муниципальный район","33631000","Ижевское","33631416","28003195","ООО \"Строительно-монтажная компания \"Крафт\"","4325003259","432501001","Оказание услуг в сфере водоснабжения","VS"]
[806,"Кировская область","Пижанский муниципальный район","33631000","Обуховское","33631436","26840576","МУП \"Пижанская автоколонна\"","4325002061","432501001","Оказание услуг в сфере водоснабжения","VS"]
[807,"Кировская область","Пижанский муниципальный район","33631000","Обуховское","33631436","26840576","МУП \"Пижанская автоколонна\"","4325002061","432501001","Транспортировка воды","VS"]
[808,"Кировская область","Пижанский муниципальный район","33631000","Обуховское","33631436","28003195","ООО \"Строительно-монтажная компания \"Крафт\"","4325003259","432501001","Оказание услуг в сфере водоснабжения","VS"]
[809,"Кировская область","Пижанский муниципальный район","33631000","Обуховское","33631436","26372764","СПК \"Ленинец\"","4325000177","432501001","Оказание услуг в сфере водоснабжения","VS"]
[810,"Кировская область","Пижанский муниципальный район","33631000","Пижанское","33631151","26840576","МУП \"Пижанская автоколонна\"","4325002061","432501001","Оказание услуг в сфере водоснабжения","VS"]
[811,"Кировская область","Пижанский муниципальный район","33631000","Пижанское","33631151","26840576","МУП \"Пижанская автоколонна\"","4325002061","432501001","Транспортировка воды","VS"]
[812,"Кировская область","Пижанский муниципальный район","33631000","Пижанское","33631151","26447822","ОАО \"Лактис\"","4325000106","432501001","Оказание услуг в сфере водоснабжения","VS"]
[813,"Кировская область","Пижанский муниципальный район","33631000","Пижанское","33631151","28003195","ООО \"Строительно-монтажная компания \"Крафт\"","4325003259","432501001","Оказание услуг в сфере водоснабжения","VS"]
[814,"Кировская область","Пижанский муниципальный район","33631000","Пижанское","33631151","26357152","ООО \"Управляющая компания ЖКХ Пижанского района\" (ПД)","4325002738","432501001","Оказание услуг в сфере водоснабжения","VS"]
[815,"Кировская область","Пижанский муниципальный район","33631000","Пижанское","33631151","26372765","СХПК \"Кашнурский\"","4325000184","432501001","Оказание услуг в сфере водоснабжения","VS"]
[816,"Кировская область","Пижанский муниципальный район","33631000","Пижанское","33631151","26372766","СХПК СА (колхоз) \"Ошаевский\"","4325000280","432501001","Оказание услуг в сфере водоснабжения","VS"]
[817,"Кировская область","Подосиновский муниципальный район","33632000","Демьяновское городское поселение","33632154","26595460","Адм. Лунданского с/п","4326008203","432601001","Оказание услуг в сфере водоснабжения","VS"]
[818,"Кировская область","Подосиновский муниципальный район","33632000","Демьяновское городское поселение","33632154","26447958","Администрация Зареченского с/п","4326008242","432601001","Оказание услуг в сфере водоснабжения","VS"]
[819,"Кировская область","Подосиновский муниципальный район","33632000","Демьяновское городское поселение","33632154","26357162","Администрация Шолгского СП","4326008186","432601001","Оказание услуг в сфере водоснабжения","VS"]
[820,"Кировская область","Подосиновский муниципальный район","33632000","Демьяновское городское поселение","33632154","26754959","Демьяновское ЖКХ","4326009599","432601001","Оказание услуг в сфере водоснабжения","VS"]
[821,"Кировская область","Подосиновский муниципальный район","33632000","Демьяновское городское поселение","33632154","26357164","МУП \"Коммунальщик\"","4326008820","432601001","Оказание услуг в сфере водоснабжения","VS"]
[822,"Кировская область","Подосиновский муниципальный район","33632000","Демьяновское городское поселение","33632154","30372238","МУП \"Коммунсервис\"","4326001342","432301001","Оказание услуг в сфере водоснабжения","VS"]
[823,"Кировская область","Подосиновский муниципальный район","33632000","Демьяновское городское поселение","33632154","31001136","МУП Водосервис","4326004512","432601001","Оказание услуг в сфере водоснабжения","VS"]
[824,"Кировская область","Подосиновский муниципальный район","33632000","Демьяновское городское поселение","33632154","31001136","МУП Водосервис","4326004512","432601001","Транспортировка воды","VS"]
[825,"Кировская область","Подосиновский муниципальный район","33632000","Демьяновское городское поселение","33632154","28792076","ООО \"Демьяновские мануфактуры\"","4326010234","432601001","Оказание услуг в сфере водоснабжения","VS"]
[826,"Кировская область","Подосиновский муниципальный район","33632000","Демьяновское городское поселение","33632154","26382415","ООО \"ЛПК \"ПОЛЕКО\"","4326003195","432601001","Транспортировка воды","VS"]
[827,"Кировская область","Подосиновский муниципальный район","33632000","Демьяновское городское поселение","33632154","28467683","ООО \"Полеко\"","4326009905","432601001","Оказание услуг в сфере водоснабжения","VS"]
[828,"Кировская область","Подосиновский муниципальный район","33632000","Демьяновское городское поселение","33632154","27694958","ООО \"Полеко\"","4326009905","432601001","Оказание услуг в сфере водоснабжения","VS"]
[829,"Кировская область","Подосиновский муниципальный район","33632000","Демьяновское городское поселение","33632154","27694958","ООО \"Полеко\"","4326009905","432601001","Транспортировка воды","VS"]
[830,"Кировская область","Подосиновский муниципальный район","33632000","Демьяновское городское поселение","33632154","28443804","ООО Водо-сервис","4326010139","432601001","Оказание услуг в сфере водоснабжения","VS"]
[831,"Кировская область","Подосиновский муниципальный район","33632000","Демьяновское городское поселение","33632154","26357159","ООО ЛПК \"Полеко\"","4326003195","432601001","Оказание услуг в сфере водоснабжения","VS"]
[832,"Кировская область","Подосиновский муниципальный район","33632000","Демьяновское городское поселение","33632154","26357159","ООО ЛПК \"Полеко\"","4326003195","432601001","Транспортировка воды","VS"]
[833,"Кировская область","Подосиновский муниципальный район","33632000","Пинюгское городское поселение","33632157","26808802","Горьковская дирекция по тепловодоснабжению структурное подразделение Центральной дирекции по тепловодоснабжению - филиала ОАО \"РЖД\"","7708503727","525745041","Оказание услуг в сфере водоснабжения","VS"]
[834,"Кировская область","Подосиновский муниципальный район","33632000","Пинюгское городское поселение","33632157","26808802","Горьковская дирекция по тепловодоснабжению структурное подразделение Центральной дирекции по тепловодоснабжению - филиала ОАО \"РЖД\"","7708503727","525745041","Транспортировка воды","VS"]
[835,"Кировская область","Подосиновский муниципальный район","33632000","Пинюгское городское поселение","33632157","30372238","МУП \"Коммунсервис\"","4326001342","432301001","Оказание услуг в сфере водоснабжения","VS"]
[836,"Кировская область","Подосиновский муниципальный район","33632000","Пинюгское городское поселение","33632157","27220727","ООО \"Пинюгское ЖКХ\"","4326009503","432601001","Оказание услуг в сфере водоснабжения","VS"]
[837,"Кировская область","Подосиновский муниципальный район","33632000","Пинюгское городское поселение","33632157","28005741","ООО \"Теплосервис п. Пинюг\"","4326009976","432601001","Оказание услуг в сфере водоснабжения","VS"]
[838,"Кировская область","Подосиновский муниципальный район","33632000","Пинюгское городское поселение","33632157","28005741","ООО \"Теплосервис п. Пинюг\"","4326009976","432601001","Транспортировка воды","VS"]
[839,"Кировская область","Подосиновский муниципальный район","33632000","Пинюгское городское поселение","33632157","26517798","Филиал ОАО \"РЖД\" ГЖД Кировский региональный центр дирекции по тепловодоснабжению","7708503727","435731037","Оказание услуг в сфере водоснабжения","VS"]
[840,"Кировская область","Подосиновский муниципальный район","33632000","Пинюгское городское поселение","33632157","26517798","Филиал ОАО \"РЖД\" ГЖД Кировский региональный центр дирекции по тепловодоснабжению","7708503727","435731037","Транспортировка воды","VS"]
[841,"Кировская область","Подосиновский муниципальный район","33632000","Подосиновское городское поселение","33632151","26595496","Адм. Октябрьского с/п","4326008122","432601001","Оказание услуг в сфере водоснабжения","VS"]
[842,"Кировская область","Подосиновский муниципальный район","33632000","Подосиновское городское поселение","33632151","26372777","Администрация Щеткинского с/п","4326008267","432601001","Оказание услуг в сфере водоснабжения","VS"]
[843,"Кировская область","Подосиновский муниципальный район","33632000","Подосиновское городское поселение","33632151","26755697","КОГК УСО \"Подосиновский психоневрологический интернат\"","4326001695","432601001","Оказание услуг в сфере водоснабжения","VS"]
[844,"Кировская область","Подосиновский муниципальный район","33632000","Подосиновское городское поселение","33632151","26755697","КОГК УСО \"Подосиновский психоневрологический интернат\"","4326001695","432601001","Транспортировка воды","VS"]
[845,"Кировская область","Подосиновский муниципальный район","33632000","Подосиновское городское поселение","33632151","30372238","МУП \"Коммунсервис\"","4326001342","432301001","Оказание услуг в сфере водоснабжения","VS"]
[846,"Кировская область","Подосиновский муниципальный район","33632000","Подосиновское городское поселение","33632151","30345191","МУП \"Коммунсервис\"","4326001342","432601001","Оказание услуг в сфере водоснабжения","VS"]
[847,"Кировская область","Подосиновский муниципальный район","33632000","Подосиновское городское поселение","33632151","30345191","МУП \"Коммунсервис\"","4326001342","432601001","Транспортировка воды","VS"]
[848,"Кировская область","Подосиновский муниципальный район","33632000","Подосиновское городское поселение","33632151","26372885","ОАО \"МРСК Центра и Приволжья\" филиал \"Кировэнерго\"  Подосиновский РЭС","5260200603","432632001","Оказание услуг в сфере водоснабжения","VS"]
[849,"Кировская область","Подосиновский муниципальный район","33632000","Подосиновское городское поселение","33632151","26424663","ООО \"Подосиновец тепловодосервис\"","4326009373","432601001","Оказание услуг в сфере водоснабжения","VS"]
[850,"Кировская область","Подосиновский муниципальный район","33632000","Подосиновское городское поселение","33632151","28447793","ООО «Подосиновское коммунальное предприятие»","4326009983","431601001","Оказание услуг в сфере водоснабжения","VS"]
[851,"Кировская область","Подосиновский муниципальный район","33632000","Подосиновское городское поселение","33632151","26491511","ПАО «МРСК «Центра и Приволжья»","5260200603","434502001","Оказание услуг в сфере водоснабжения","VS"]
[852,"Кировская область","Подосиновский муниципальный район","33632000","Подосиновское городское поселение","33632151","26491511","ПАО «МРСК «Центра и Приволжья»","5260200603","434502001","Транспортировка воды","VS"]
[853,"Кировская область","Подосиновский муниципальный район","33632000","Пушемское","33632424","26593550","МУП \"ЖКХ п.Пинюг\"","4326003639","432601001","Оказание услуг в сфере водоснабжения","VS"]
[854,"Кировская область","Подосиновский муниципальный район","33632000","Пушемское","33632424","30372238","МУП \"Коммунсервис\"","4326001342","432301001","Оказание услуг в сфере водоснабжения","VS"]
[855,"Кировская область","Подосиновский муниципальный район","33632000","Утмановское","33632428","26595472","Адм. Утмановского с/п","4326008080","432601001","Оказание услуг в сфере водоснабжения","VS"]
[856,"Кировская область","Подосиновский муниципальный район","33632000","Утмановское","33632428","30372238","МУП \"Коммунсервис\"","4326001342","432301001","Оказание услуг в сфере водоснабжения","VS"]
[857,"Кировская область","Подосиновский муниципальный район","33632000","Яхреньгское","33632440","30372238","МУП \"Коммунсервис\"","4326001342","432301001","Оказание услуг в сфере водоснабжения","VS"]
[858,"Кировская область","Подосиновский муниципальный район","33632000","Яхреньгское","33632440","26424663","ООО \"Подосиновец тепловодосервис\"","4326009373","432601001","Оказание услуг в сфере водоснабжения","VS"]
[859,"Кировская область","Подосиновский муниципальный район","33632000","Яхреньгское","33632440","26357154","СПК \"Новый Маяк\"","4326009743","432601001","Оказание услуг в сфере водоснабжения","VS"]
[860,"Кировская область","Санчурский муниципальный район","33633000","Городищенское","33633418","30372165","МУП «Коммунтранссервис»","4327005244","432701001","Оказание услуг в сфере водоснабжения","VS"]
[861,"Кировская область","Санчурский муниципальный район","33633000","Городищенское","33633418","30372165","МУП «Коммунтранссервис»","4327005244","432701001","Транспортировка воды","VS"]
[862,"Кировская область","Санчурский муниципальный район","33633000","Городищенское","33633418","28871969","ООО \"Ольга\"","4327004603","432701001","Оказание услуг в сфере водоснабжения","VS"]
[863,"Кировская область","Санчурский муниципальный район","33633000","Городищенское","33633418","26653790","ООО \"Рассвет\"","4327003230","432701001","Оказание услуг в сфере водоснабжения","VS"]
[864,"Кировская область","Санчурский муниципальный район","33633000","Корляковское","33633432","26598619","Администрация Корляковского с/п","4327003550","432701001","Оказание услуг в сфере водоснабжения","VS"]
[865,"Кировская область","Санчурский муниципальный район","33633000","Люмпанурское","33633444","26426866","Администрация Люмпанурского с/п","4327003536","432701001","Оказание услуг в сфере водоснабжения","VS"]
[866,"Кировская область","Санчурский муниципальный район","33633000","Матвинурское","33633448","26357168","Администрация Матвинурского сельского поселения","4327003631","432701001","Оказание услуг в сфере водоснабжения","VS"]
[867,"Кировская область","Санчурский муниципальный район","33633000","Поселок Санчурск","33633151","30372165","МУП «Коммунтранссервис»","4327005244","432701001","Оказание услуг в сфере водоснабжения","VS"]
[868,"Кировская область","Санчурский муниципальный район","33633000","Поселок Санчурск","33633151","30372165","МУП «Коммунтранссервис»","4327005244","432701001","Транспортировка воды","VS"]
[869,"Кировская область","Санчурский муниципальный район","33633000","Поселок Санчурск","33633151","28871969","ООО \"Ольга\"","4327004603","432701001","Оказание услуг в сфере водоснабжения","VS"]
[870,"Кировская область","Санчурский муниципальный район","33633000","Сметанинское","33633452","26426879","Администрация Сметанинского с/п","4327003624","432701001","Оказание услуг в сфере водоснабжения","VS"]
[871,"Кировская область","Санчурский муниципальный район","33633000","Сметанинское","33633452","30372165","МУП «Коммунтранссервис»","4327005244","432701001","Оказание услуг в сфере водоснабжения","VS"]
[872,"Кировская область","Санчурский муниципальный район","33633000","Сметанинское","33633452","30372165","МУП «Коммунтранссервис»","4327005244","432701001","Транспортировка воды","VS"]
[873,"Кировская область","Санчурский муниципальный район","33633000","Сметанинское","33633452","28871969","ООО \"Ольга\"","4327004603","432701001","Оказание услуг в сфере водоснабжения","VS"]
[874,"Кировская область","Санчурский муниципальный район","33633000","Сметанинское","33633452","26654192","СХПК \"Заозерский\"","4327000180","432701001","Оказание услуг в сфере водоснабжения","VS"]
[875,"Кировская область","Санчурский муниципальный район","33633000","Шишовское","33633456","26595506","ОАО \"Правда\"","4327004184","432701001","Оказание услуг в сфере водоснабжения","VS"]
[876,"Кировская область","Свечинский муниципальный район","33634000","Поселок Свеча","33634151","30357018","Администрация Свечинского района Кировской области","4328001210","432801001","Оказание услуг в сфере водоснабжения","VS"]
[877,"Кировская область","Свечинский муниципальный район","33634000","Поселок Свеча","33634151","30357018","Администрация Свечинского района Кировской области","4328001210","432801001","Транспортировка воды","VS"]
[878,"Кировская область","Свечинский муниципальный район","33634000","Поселок Свеча","33634151","26651454","Вологодский региональный производственный участок Северной дирекции по тепловодоснабжению - структурное подразделение Центральной дирекции по тепловодоснабжению – филиала ОАО «РЖД»","7708503727","760432079","Оказание услуг в сфере водоснабжения","VS"]
[879,"Кировская область","Свечинский муниципальный район","33634000","Поселок Свеча","33634151","27769149","МУП \"Свечатеплосервис\"","4328003017","432801001","Оказание услуг в сфере водоснабжения","VS"]
[880,"Кировская область","Свечинский муниципальный район","33634000","Поселок Свеча","33634151","27769149","МУП \"Свечатеплосервис\"","4328003017","432801001","Транспортировка воды","VS"]
[881,"Кировская область","Свечинский муниципальный район","33634000","Поселок Свеча","33634151","30803422","МУП \"Свечинское ЖКХ\"","4328003190","432801001","Оказание услуг в сфере водоснабжения","VS"]
[882,"Кировская область","Свечинский муниципальный район","33634000","Поселок Свеча","33634151","30803422","МУП \"Свечинское ЖКХ\"","4328003190","432801001","Транспортировка воды","VS"]
[883,"Кировская область","Свечинский муниципальный район","33634000","Поселок Свеча","33634151","27569540","ООО \"Управляющая организация \"Ремсервис\"","4328002800","432801001","Оказание услуг в сфере водоснабжения","VS"]
[884,"Кировская область","Свечинский муниципальный район","33634000","Свечинское","33634448","30352255","Администрация Свечинского сельского поселения","4328002334","432801001","Оказание услуг в сфере водоснабжения","VS"]
[885,"Кировская область","Свечинский муниципальный район","33634000","Свечинское","33634448","30352255","Администрация Свечинского сельского поселения","4328002334","432801001","Транспортировка воды","VS"]
[886,"Кировская область","Свечинский муниципальный район","33634000","Свечинское","33634448","26603220","МУП \"Круглыжское МТС\"","4328001789","432801001","Оказание услуг в сфере водоснабжения","VS"]
[887,"Кировская область","Свечинский муниципальный район","33634000","Свечинское","33634448","28146727","ООО \"18 Марта\"","4328002609","432801001","Оказание услуг в сфере водоснабжения","VS"]
[888,"Кировская область","Свечинский муниципальный район","33634000","Свечинское","33634448","26603191","СПК \"Память Ильича\"","4328033220","432801001","Оказание услуг в сфере водоснабжения","VS"]
[889,"Кировская область","Слободской","33713000","Слободской","33713000","26560525","АО \"ГУ ЖКХ\"","5116000922","511601001","Оказание услуг в сфере водоснабжения","VS"]
[890,"Кировская область","Слободской","33713000","Слободской","33713000","26560525","АО \"ГУ ЖКХ\"","5116000922","511601001","Транспортировка воды","VS"]
[891,"Кировская область","Слободской","33713000","Слободской","33713000","30407160","АО \"ГУ ЖКХ\"","5116000922","183845001","Оказание услуг в сфере водоснабжения","VS"]
[892,"Кировская область","Слободской","33713000","Слободской","33713000","30407160","АО \"ГУ ЖКХ\"","5116000922","183845001","Транспортировка воды","VS"]
[893,"Кировская область","Слободской","33713000","Слободской","33713000","26357252","АО \"Красный якорь\"","4343004720","771701001","Оказание услуг в сфере водоснабжения","VS"]
[894,"Кировская область","Слободской","33713000","Слободской","33713000","26427478","МУП \"ВКХ г.Слободского\"","4329012455","432901001","Оказание услуг в сфере водоснабжения","VS"]
[895,"Кировская область","Слободской","33713000","Слободской","33713000","27065750","ОАО \"Слободской машиностроительный завод\"","4329000080","432901001","Оказание услуг в сфере водоснабжения","VS"]
[896,"Кировская область","Слободской","33713000","Слободской","33713000","27676457","ООО \"Сквирэл\"","4329014660","432901001","Оказание услуг в сфере водоснабжения","VS"]
[897,"Кировская область","Слободской","33713000","Слободской","33713000","26575809","ООО \"Слободской мебельный комбинат\"","4329013723","432901001","Оказание услуг в сфере водоснабжения","VS"]
[898,"Кировская область","Слободской муниципальный район","33635000","Бобинское","33635402","26357171","АО \"Санаторий Митино\"","4329000724","432901001","Оказание услуг в сфере водоснабжения","VS"]
[899,"Кировская область","Слободской муниципальный район","33635000","Бобинское","33635402","30803414","МУП ЖКХ \"Запад\"","4329018545","432901001","Оказание услуг в сфере водоснабжения","VS"]
[900,"Кировская область","Слободской муниципальный район","33635000","Бобинское","33635402","30803414","МУП ЖКХ \"Запад\"","4329018545","432901001","Транспортировка воды","VS"]
[901,"Кировская область","Слободской муниципальный район","33635000","Денисовское","33635404","26448025","ООО \"Восток\"","4329012864","432901001","Оказание услуг в сфере водоснабжения","VS"]
[902,"Кировская область","Слободской муниципальный район","33635000","Денисовское","33635404","26448025","ООО \"Восток\"","4329012864","432901001","Транспортировка воды","VS"]
[903,"Кировская область","Слободской муниципальный район","33635000","Денисовское","33635404","26427682","ООО \"Денисово\"","4345111439","432901001","Оказание услуг в сфере водоснабжения","VS"]
[904,"Кировская область","Слободской муниципальный район","33635000","Денисовское","33635404","26985236","ООО \"Энергетика\"","4345133626","434501001","Оказание услуг в сфере водоснабжения","VS"]
[905,"Кировская область","Слободской муниципальный район","33635000","Закаринское","33635412","26372796","ООО \"Тепловик\"","4329010909","432901001","Оказание услуг в сфере водоснабжения","VS"]
[906,"Кировская область","Слободской муниципальный район","33635000","Ильинское","33635416","26357176","МП ЖКХ п. Вахруши","4329004750","432901001","Оказание услуг в сфере водоснабжения","VS"]
[907,"Кировская область","Слободской муниципальный район","33635000","Ильинское","33635416","26448027","МУП ЖКХ с.Ильинское","4329013650","432901001","Оказание услуг в сфере водоснабжения","VS"]
[908,"Кировская область","Слободской муниципальный район","33635000","Ильинское","33635416","26427738","ООО \"Союз\"","4329012906","432901001","Оказание услуг в сфере водоснабжения","VS"]
[909,"Кировская область","Слободской муниципальный район","33635000","Каринское","33635424","26372796","ООО \"Тепловик\"","4329010909","432901001","Оказание услуг в сфере водоснабжения","VS"]
[910,"Кировская область","Слободской муниципальный район","33635000","Ленинское","33635432","30803414","МУП ЖКХ \"Запад\"","4329018545","432901001","Оказание услуг в сфере водоснабжения","VS"]
[911,"Кировская область","Слободской муниципальный район","33635000","Ленинское","33635432","30803414","МУП ЖКХ \"Запад\"","4329018545","432901001","Транспортировка воды","VS"]
[912,"Кировская область","Слободской муниципальный район","33635000","Ленинское","33635432","26372799","ООО \"Русская усадьба\"","4329011518","432901001","Оказание услуг в сфере водоснабжения","VS"]
[913,"Кировская область","Слободской муниципальный район","33635000","Ленинское","33635432","26492342","ООО \"СПК СХА им.Ленина\"","4329012624","432901001","Оказание услуг в сфере водоснабжения","VS"]
[914,"Кировская область","Слободской муниципальный район","33635000","Ленинское","33635432","26372786","СПК-СХА (колхоз) им.Ленина","4329000805","432901001","Оказание услуг в сфере водоснабжения","VS"]
[915,"Кировская область","Слободской муниципальный район","33635000","Озерницкий","33635436","26598666","Адм. Озерницкого с/п","4329010144","432901001","Оказание услуг в сфере водоснабжения","VS"]
[916,"Кировская область","Слободской муниципальный район","33635000","Озерницкий","33635436","26448025","ООО \"Восток\"","4329012864","432901001","Оказание услуг в сфере водоснабжения","VS"]
[917,"Кировская область","Слободской муниципальный район","33635000","Озерницкий","33635436","26448025","ООО \"Восток\"","4329012864","432901001","Транспортировка воды","VS"]
[918,"Кировская область","Слободской муниципальный район","33635000","Октябрьское","33635440","26357185","ООО \"Октябрьский\"","4329010916","432901001","Оказание услуг в сфере водоснабжения","VS"]
[919,"Кировская область","Слободской муниципальный район","33635000","Поселок Вахруши","33635153","26357176","МП ЖКХ п. Вахруши","4329004750","432901001","Оказание услуг в сфере водоснабжения","VS"]
[920,"Кировская область","Слободской муниципальный район","33635000","Светозаревское","33635446","26372796","ООО \"Тепловик\"","4329010909","432901001","Оказание услуг в сфере водоснабжения","VS"]
[921,"Кировская область","Слободской муниципальный район","33635000","Светозаревское","33635446","26372790","СПК СА (колхоз) \"Родина\"","4329004630","432901001","Оказание услуг в сфере водоснабжения","VS"]
[922,"Кировская область","Слободской муниципальный район","33635000","Стуловское","33635456","26357176","МП ЖКХ п. Вахруши","4329004750","432901001","Оказание услуг в сфере водоснабжения","VS"]
[923,"Кировская область","Слободской муниципальный район","33635000","Стуловское","33635456","26357172","ОАО Слободская \"Агропромтехника\"","4329002030","432901001","Оказание услуг в сфере водоснабжения","VS"]
[924,"Кировская область","Слободской муниципальный район","33635000","Шестаковское","33635460","26448025","ООО \"Восток\"","4329012864","432901001","Оказание услуг в сфере водоснабжения","VS"]
[925,"Кировская область","Слободской муниципальный район","33635000","Шестаковское","33635460","26448025","ООО \"Восток\"","4329012864","432901001","Транспортировка воды","VS"]
[926,"Кировская область","Слободской муниципальный район","33635000","Шестаковское","33635460","26492351","ООО ПСК \"РесурсЭнергоСтрой\"","4345246919","434501001","Оказание услуг в сфере водоснабжения","VS"]
[927,"Кировская область","Слободской муниципальный район","33635000","Шестаковское","33635460","26654016","СПК СХА (колхоз) \"Красная Талица\"","4329004510","432901001","Оказание услуг в сфере водоснабжения","VS"]
[928,"Кировская область","Слободской муниципальный район","33635000","Шиховское","33635452","26357173","КОГБУСО \"Подлевский психоневрологический интернат\"","4329002908","432901001","Оказание услуг в сфере водоснабжения","VS"]
[929,"Кировская область","Слободской муниципальный район","33635000","Шиховское","33635452","30803414","МУП ЖКХ \"Запад\"","4329018545","432901001","Оказание услуг в сфере водоснабжения","VS"]
[930,"Кировская область","Слободской муниципальный район","33635000","Шиховское","33635452","30803414","МУП ЖКХ \"Запад\"","4329018545","432901001","Транспортировка воды","VS"]
[931,"Кировская область","Слободской муниципальный район","33635000","Шиховское","33635452","26357179","ООО \"Звероводческое племенное хозяйство \"Вятка","4329008459","432901001","Оказание услуг в сфере водоснабжения","VS"]
[932,"Кировская область","Советский муниципальный район","33636000","Город Советск","33636101","26493558","КОГБУЗ \"Кировская областная клиническая психиатрическая больница им. Академика В.М. Бехтерева\"","4345393078","434501001","Оказание услуг в сфере водоснабжения","VS"]
[933,"Кировская область","Советский муниципальный район","33636000","Город Советск","33636101","26428289","ООО \"Водолей\"","4345247172","434501001","Оказание услуг в сфере водоснабжения","VS"]
[934,"Кировская область","Советский муниципальный район","33636000","Город Советск","33636101","28077960","ООО \"ЖКХ\"","4330007604","433001001","Оказание услуг в сфере водоснабжения","VS"]
[935,"Кировская область","Советский муниципальный район","33636000","Город Советск","33636101","28077960","ООО \"ЖКХ\"","4330007604","433001001","Транспортировка воды","VS"]
[936,"Кировская область","Советский муниципальный район","33636000","Город Советск","33636101","26372801","ООО \"ЖилКомСервис\"","4330005935","433001001","Оказание услуг в сфере водоснабжения","VS"]
[937,"Кировская область","Советский муниципальный район","33636000","Греховское","33636460","29646362","Администрация муниципального образования Греховское сельское поселение Советского района Кировской области","4330005149","433001001","Оказание услуг в сфере водоснабжения","VS"]
[938,"Кировская область","Советский муниципальный район","33636000","Греховское","33636460","28546138","КОГБУСО\"Советский психоневрологический интернат\"","4330001514","433001001","Оказание услуг в сфере водоснабжения","VS"]
[939,"Кировская область","Советский муниципальный район","33636000","Греховское","33636460","26428289","ООО \"Водолей\"","4345247172","434501001","Оказание услуг в сфере водоснабжения","VS"]
[940,"Кировская область","Советский муниципальный район","33636000","Греховское","33636460","26551964","ООО \"Водсельсервис\"","4330007033","433001001","Оказание услуг в сфере водоснабжения","VS"]
[941,"Кировская область","Советский муниципальный район","33636000","Греховское","33636460","26372801","ООО \"ЖилКомСервис\"","4330005935","433001001","Оказание услуг в сфере водоснабжения","VS"]
[942,"Кировская область","Советский муниципальный район","33636000","Зашижемское","33636420","29646376","Администрация муниципального образования Зашижемское сельское поселение Советского района Кировской области.","4330005170","433001001","Оказание услуг в сфере водоснабжения","VS"]
[943,"Кировская область","Советский муниципальный район","33636000","Зашижемское","33636420","26428289","ООО \"Водолей\"","4345247172","434501001","Оказание услуг в сфере водоснабжения","VS"]
[944,"Кировская область","Советский муниципальный район","33636000","Зашижемское","33636420","26551964","ООО \"Водсельсервис\"","4330007033","433001001","Оказание услуг в сфере водоснабжения","VS"]
[945,"Кировская область","Советский муниципальный район","33636000","Зашижемское","33636420","26372801","ООО \"ЖилКомСервис\"","4330005935","433001001","Оказание услуг в сфере водоснабжения","VS"]
[946,"Кировская область","Советский муниципальный район","33636000","Ильинское","33636424","26754836","АО \"Прогресс\"","4330005886","433001001","Оказание услуг в сфере водоснабжения","VS"]
[947,"Кировская область","Советский муниципальный район","33636000","Ильинское","33636424","29646407","Администрация муниципального образования Ильинское сельское поселение Советского района Кировской области.","4330005131","433001001","Оказание услуг в сфере водоснабжения","VS"]
[948,"Кировская область","Советский муниципальный район","33636000","Ильинское","33636424","26428289","ООО \"Водолей\"","4345247172","434501001","Оказание услуг в сфере водоснабжения","VS"]
[949,"Кировская область","Советский муниципальный район","33636000","Ильинское","33636424","26551964","ООО \"Водсельсервис\"","4330007033","433001001","Оказание услуг в сфере водоснабжения","VS"]
[950,"Кировская область","Советский муниципальный район","33636000","Ильинское","33636424","26372801","ООО \"ЖилКомСервис\"","4330005935","433001001","Оказание услуг в сфере водоснабжения","VS"]
[951,"Кировская область","Советский муниципальный район","33636000","Кичминское","33636428","29646385","Администрация муниципального образования Кичминское сельское поселение Советского района Кировской области.","4330005318","433001001","Оказание услуг в сфере водоснабжения","VS"]
[952,"Кировская область","Советский муниципальный район","33636000","Кичминское","33636428","26551964","ООО \"Водсельсервис\"","4330007033","433001001","Оказание услуг в сфере водоснабжения","VS"]
[953,"Кировская область","Советский муниципальный район","33636000","Кичминское","33636428","26372801","ООО \"ЖилКомСервис\"","4330005935","433001001","Оказание услуг в сфере водоснабжения","VS"]
[954,"Кировская область","Советский муниципальный район","33636000","Колянурское","33636436","29646399","Администрация муниципального образования Колянурское сельское поселение Советского района Кировской области","4330005364","433001001","Оказание услуг в сфере водоснабжения","VS"]
[955,"Кировская область","Советский муниципальный район","33636000","Колянурское","33636436","26428289","ООО \"Водолей\"","4345247172","434501001","Оказание услуг в сфере водоснабжения","VS"]
[956,"Кировская область","Советский муниципальный район","33636000","Колянурское","33636436","26551964","ООО \"Водсельсервис\"","4330007033","433001001","Оказание услуг в сфере водоснабжения","VS"]
[957,"Кировская область","Советский муниципальный район","33636000","Колянурское","33636436","26372801","ООО \"ЖилКомСервис\"","4330005935","433001001","Оказание услуг в сфере водоснабжения","VS"]
[958,"Кировская область","Советский муниципальный район","33636000","Колянурское","33636436","26755714","ООО \"Услуга\"","4330007139","433001001","Оказание услуг в сфере водоснабжения","VS"]
[959,"Кировская область","Советский муниципальный район","33636000","Колянурское","33636436","26841398","СПК \"Надежда\"","4330004554","433001001","Оказание услуг в сфере водоснабжения","VS"]
[960,"Кировская область","Советский муниципальный район","33636000","Колянурское","33636436","26818412","СПК-СА (колхоз) \"Мушинский\"","4330000398","433001001","Оказание услуг в сфере водоснабжения","VS"]
[961,"Кировская область","Советский муниципальный район","33636000","Лесниковское","33636440","29646415","Администрация муниципального образования Лесниковское сельское поселение Советского района Кировской области.","4330005332","433001001","Оказание услуг в сфере водоснабжения","VS"]
[962,"Кировская область","Советский муниципальный район","33636000","Лесниковское","33636440","26428289","ООО \"Водолей\"","4345247172","434501001","Оказание услуг в сфере водоснабжения","VS"]
[963,"Кировская область","Советский муниципальный район","33636000","Лесниковское","33636440","26551964","ООО \"Водсельсервис\"","4330007033","433001001","Оказание услуг в сфере водоснабжения","VS"]
[964,"Кировская область","Советский муниципальный район","33636000","Лесниковское","33636440","26372801","ООО \"ЖилКомСервис\"","4330005935","433001001","Оказание услуг в сфере водоснабжения","VS"]
[965,"Кировская область","Советский муниципальный район","33636000","Лошкаринский","33636444","30875185","Администрация МО Лошкаринского сельского поселения Советского района Кировской области","4330005163","433001001","Оказание услуг в сфере водоснабжения","VS"]
[966,"Кировская область","Советский муниципальный район","33636000","Лошкаринский","33636444","30875185","Администрация МО Лошкаринского сельского поселения Советского района Кировской области","4330005163","433001001","Транспортировка воды","VS"]
[967,"Кировская область","Советский муниципальный район","33636000","Мокинское","33636448","27505861","АО \"Мокинское\"","4330004586","433000101","Оказание услуг в сфере водоснабжения","VS"]
[968,"Кировская область","Советский муниципальный район","33636000","Мокинское","33636448","26818409","ОАО \"Мокинское\"","4330004586","433001001","Оказание услуг в сфере водоснабжения","VS"]
[969,"Кировская область","Советский муниципальный район","33636000","Мокинское","33636448","26428289","ООО \"Водолей\"","4345247172","434501001","Оказание услуг в сфере водоснабжения","VS"]
[970,"Кировская область","Советский муниципальный район","33636000","Мокинское","33636448","26551964","ООО \"Водсельсервис\"","4330007033","433001001","Оказание услуг в сфере водоснабжения","VS"]
[971,"Кировская область","Советский муниципальный район","33636000","Мокинское","33636448","26372801","ООО \"ЖилКомСервис\"","4330005935","433001001","Оказание услуг в сфере водоснабжения","VS"]
[972,"Кировская область","Советский муниципальный район","33636000","Родыгинское","33636464","26755728","АО \"Русь\"","4330005244","433001001","Оказание услуг в сфере водоснабжения","VS"]
[973,"Кировская область","Советский муниципальный район","33636000","Родыгинское","33636464","29646368","Администрация муниципального образования Родыгинское сельское поселение Советского района Кировской области.","4330005220","433001001","Оказание услуг в сфере водоснабжения","VS"]
[974,"Кировская область","Советский муниципальный район","33636000","Родыгинское","33636464","26428289","ООО \"Водолей\"","4345247172","434501001","Оказание услуг в сфере водоснабжения","VS"]
[975,"Кировская область","Советский муниципальный район","33636000","Родыгинское","33636464","26551964","ООО \"Водсельсервис\"","4330007033","433001001","Оказание услуг в сфере водоснабжения","VS"]
[976,"Кировская область","Советский муниципальный район","33636000","Родыгинское","33636464","26372801","ООО \"ЖилКомСервис\"","4330005935","433001001","Оказание услуг в сфере водоснабжения","VS"]
[977,"Кировская область","Советский муниципальный район","33636000","Родыгинское","33636464","26755717","ООО \"Советская агрофирма\"","4330004233","433001001","Оказание услуг в сфере водоснабжения","VS"]
[978,"Кировская область","Сунский муниципальный район","33637000","Большевитское","33637428","26372652","ООО \"ЖКХ Гарант\"","4312042758","431201001","Оказание услуг в сфере водоснабжения","VS"]
[979,"Кировская область","Сунский муниципальный район","33637000","Большевитское","33637428","26840964","ООО \"Колос\"","4331002493","433101001","Оказание услуг в сфере водоснабжения","VS"]
[980,"Кировская область","Сунский муниципальный район","33637000","Большевитское","33637428","26357195","СПК (колхоз) \"Нива\"","4331000048","433101001","Оказание услуг в сфере водоснабжения","VS"]
[981,"Кировская область","Сунский муниципальный район","33637000","Большевитское","33637428","26357196","СПК колхоз \"Большевик\"","4331000577","433101001","Оказание услуг в сфере водоснабжения","VS"]
[982,"Кировская область","Сунский муниципальный район","33637000","Кокуйское","33637406","26372652","ООО \"ЖКХ Гарант\"","4312042758","431201001","Оказание услуг в сфере водоснабжения","VS"]
[983,"Кировская область","Сунский муниципальный район","33637000","Кокуйское","33637406","26372802","ПСПК \"Краснопольский\"","4331000023","433101001","Оказание услуг в сфере водоснабжения","VS"]
[984,"Кировская область","Сунский муниципальный район","33637000","Кокуйское","33637406","26372802","ПСПК \"Краснопольский\"","4331000023","433101001","Транспортировка воды","VS"]
[985,"Кировская область","Сунский муниципальный район","33637000","Кокуйское","33637406","26492396","СПК \"Плельский\"","4331000136","433101001","Оказание услуг в сфере водоснабжения","VS"]
[986,"Кировская область","Сунский муниципальный район","33637000","Кокуйское","33637406","26492399","СПК \"Сунский\"","4331000030","433101001","Оказание услуг в сфере водоснабжения","VS"]
[987,"Кировская область","Сунский муниципальный район","33637000","Курчумское","33637412","26595532","Адм. Курчумского с/п","4331001933","433101001","Оказание услуг в сфере водоснабжения","VS"]
[988,"Кировская область","Сунский муниципальный район","33637000","Поселок Суна","33637151","26654198","ООО \"ЭнергоСервис\"","4331002207","433101001","Оказание услуг в сфере водоснабжения","VS"]
[989,"Кировская область","Тужинский муниципальный район","33638000","Грековское","33638416","26595542","Администрация Грековского с/п","4332005881","433201001","Оказание услуг в сфере водоснабжения","VS"]
[990,"Кировская область","Тужинский муниципальный район","33638000","Михайловское","33638428","26428350","Администрация Михайловского с/п","4332005828","433201001","Оказание услуг в сфере водоснабжения","VS"]
[991,"Кировская область","Тужинский муниципальный район","33638000","Ныровское","33638436","28005307","Администрация Ныровского с/п","4332005835","433201001","Оказание услуг в сфере водоснабжения","VS"]
[992,"Кировская область","Тужинский муниципальный район","33638000","Ныровское","33638436","26372807","СПК колхоз \"Новый\"","4332002489","433201001","Оказание услуг в сфере водоснабжения","VS"]
[993,"Кировская область","Тужинский муниципальный район","33638000","Пачинское","33638440","26839058","Администрация Пачинского с/п","4332005850","433201001","Оказание услуг в сфере водоснабжения","VS"]
[994,"Кировская область","Тужинский муниципальный район","33638000","Пачинское","33638440","28092187","СПК (колхоз) \"Русь\"","4332006116","433201001","Оказание услуг в сфере водоснабжения","VS"]
[995,"Кировская область","Тужинский муниципальный район","33638000","Пачинское","33638440","26372805","СПК - колхоз \"Родник\"","4332000065","433201001","Оказание услуг в сфере водоснабжения","VS"]
[996,"Кировская область","Тужинский муниципальный район","33638000","Пачинское","33638440","26372809","СПК колхоз \"Русь\"","4332006116","433201001","Оказание услуг в сфере водоснабжения","VS"]
[997,"Кировская область","Тужинский муниципальный район","33638000","Поселок Тужа","33638151","26372806","МУП ЖКХ \"Сервис\"","4332001220","433201001","Оказание услуг в сфере водоснабжения","VS"]
[998,"Кировская область","Тужинский муниципальный район","33638000","Поселок Тужа","33638151","26357199","Тужинское МУП \"Коммунальщик\"","4332002584","433201001","Оказание услуг в сфере водоснабжения","VS"]
[999,"Кировская область","Унинский муниципальный район","33640000","Астраханское","33640402","26652948","Администрация Астраханского с/п","4333001110","433301001","Оказание услуг в сфере водоснабжения","VS"]
[1000,"Кировская область","Унинский муниципальный район","33640000","Астраханское","33640402","30791789","МУ \"Администрация Астраханского сельского поселения Унинского рацона Кировскоц области\"","4333001110","433301001","Оказание услуг в сфере водоснабжения","VS"]
[1001,"Кировская область","Унинский муниципальный район","33640000","Астраханское","33640402","26492488","МУП \"Сибирский\"","4333002643","433301001","Оказание услуг в сфере водоснабжения","VS"]
[1002,"Кировская область","Унинский муниципальный район","33640000","Астраханское","33640402","26506378","ООО \"Коммунальщик\"","4333004055","433301001","Оказание услуг в сфере водоснабжения","VS"]
[1003,"Кировская область","Унинский муниципальный район","33640000","Астраханское","33640402","26492486","СПСК \"Нива\"","4333003679","433301001","Оказание услуг в сфере водоснабжения","VS"]
[1004,"Кировская область","Унинский муниципальный район","33640000","Елганское","33640412","26492508","СПК \"Елгань\"","4333002883","433301001","Оказание услуг в сфере водоснабжения","VS"]
[1005,"Кировская область","Унинский муниципальный район","33640000","Канахинское","33640414","26492500","Администрация Канахинского с/п","4333000741","433301001","Оказание услуг в сфере водоснабжения","VS"]
[1006,"Кировская область","Унинский муниципальный район","33640000","Канахинское","33640414","26492502","СПК \"Земледелец\"","4333002682","433301001","Оказание услуг в сфере водоснабжения","VS"]
[1007,"Кировская область","Унинский муниципальный район","33640000","Комаровское","33640420","26372810","Администрация Комаровского с/п","4333000734","433301001","Оказание услуг в сфере водоснабжения","VS"]
[1008,"Кировская область","Унинский муниципальный район","33640000","Малополомское","33640424","26492493","МКП \"Унинская машинно-технологическая станция\"","4333003189","433301001","Оказание услуг в сфере водоснабжения","VS"]
[1009,"Кировская область","Унинский муниципальный район","33640000","Малополомское","33640424","26759705","МКП \"Унинская машинотехнологическая станиция\"","4333003189","433301001","Оказание услуг в сфере водоснабжения","VS"]
[1010,"Кировская область","Унинский муниципальный район","33640000","Порезское","33640428","26372812","Администрация Порезского с/п","4333000847","433301001","Оказание услуг в сфере водоснабжения","VS"]
[1011,"Кировская область","Унинский муниципальный район","33640000","Поселок Уни","33640151","26506378","ООО \"Коммунальщик\"","4333004055","433301001","Оказание услуг в сфере водоснабжения","VS"]
[1012,"Кировская область","Унинский муниципальный район","33640000","Поселок Уни","33640151","26357200","ООО \"Коммунсервис\"","4333003703","433301001","Оказание услуг в сфере водоснабжения","VS"]
[1013,"Кировская область","Унинский муниципальный район","33640000","Поселок Уни","33640151","26646408","ООО \"Тандем\"","4333004143","433301001","Оказание услуг в сфере водоснабжения","VS"]
[1014,"Кировская область","Унинский муниципальный район","33640000","Сардыкское","33640436","26506378","ООО \"Коммунальщик\"","4333004055","433301001","Оказание услуг в сфере водоснабжения","VS"]
[1015,"Кировская область","Унинский муниципальный район","33640000","Сардыкское","33640436","26492518","ООО \"Сардыкское ЖКХ\"","4333004048","433301001","Оказание услуг в сфере водоснабжения","VS"]
[1016,"Кировская область","Унинский муниципальный район","33640000","Сосновское","33640440","26492512","Администрация Сосновского с/п","4333000815","433301001","Оказание услуг в сфере водоснабжения","VS"]
[1017,"Кировская область","Унинский муниципальный район","33640000","Сосновское","33640440","27712034","Администрация Сосновского с/п","4333000815","433301001","Оказание услуг в сфере водоснабжения","VS"]
[1018,"Кировская область","Унинский муниципальный район","33640000","Сосновское","33640440","26506378","ООО \"Коммунальщик\"","4333004055","433301001","Оказание услуг в сфере водоснабжения","VS"]
[1019,"Кировская область","Унинский муниципальный район","33640000","Сосновское","33640440","26492514","СПК \"Верхнелемский\"","4333002890","433301001","Оказание услуг в сфере водоснабжения","VS"]
[1020,"Кировская область","Уржумский муниципальный район","33641000","Байсинское","33641408","26493206","Администрация Байсинского с/п","4334006538","433401001","Оказание услуг в сфере водоснабжения","VS"]
[1021,"Кировская область","Уржумский муниципальный район","33641000","Большеройское","33641416","26493241","ООО ЖКХ \"Большеройское\"","4334008246","433401001","Оказание услуг в сфере водоснабжения","VS"]
[1022,"Кировская область","Уржумский муниципальный район","33641000","Буйское","33641420","27271166","Администрация Лебедевского с/п","4334006672","433401001","Оказание услуг в сфере водоснабжения","VS"]
[1023,"Кировская область","Уржумский муниципальный район","33641000","Буйское","33641420","27119184","ООО \"Кристалл\"","4334008937","433401001","Оказание услуг в сфере водоснабжения","VS"]
[1024,"Кировская область","Уржумский муниципальный район","33641000","Буйское","33641420","26492530","ООО \"Уют\"","4334007901","433401001","Оказание услуг в сфере водоснабжения","VS"]
[1025,"Кировская область","Уржумский муниципальный район","33641000","Город Уржум","33641101","26372823","ООО \"Коммунальное хозяйство\"","4334007637","433401001","Оказание услуг в сфере водоснабжения","VS"]
[1026,"Кировская область","Уржумский муниципальный район","33641000","Донауровское","33641480","26493210","Администрация Донауровского с/п","4334006545","433401001","Оказание услуг в сфере водоснабжения","VS"]
[1027,"Кировская область","Уржумский муниципальный район","33641000","Лазаревское","33641432","26357201","ООО \"Алмаз\"","4334007299","433401001","Оказание услуг в сфере водоснабжения","VS"]
[1028,"Кировская область","Уржумский муниципальный район","33641000","Лазаревское","33641432","26756182","ООО \"Строй-Сервис\"","4334008870","433401001","Оказание услуг в сфере водоснабжения","VS"]
[1029,"Кировская область","Уржумский муниципальный район","33641000","Лопьяльское","33641440","26372820","Администрация Лопьяльского с/п","4334006714","433401001","Оказание услуг в сфере водоснабжения","VS"]
[1030,"Кировская область","Уржумский муниципальный район","33641000","Лопьяльское","33641440","27255075","ООО \"Выбор\"","4334005566","433401001","Оказание услуг в сфере водоснабжения","VS"]
[1031,"Кировская область","Уржумский муниципальный район","33641000","Петровское","33641452","26372819","Администрация Петровского с/п","4334006658","433401001","Оказание услуг в сфере водоснабжения","VS"]
[1032,"Кировская область","Уржумский муниципальный район","33641000","Петровское","33641452","26492520","ООО \"ЖКХ Петровское\"","4334007965","433401001","Оказание услуг в сфере водоснабжения","VS"]
[1033,"Кировская область","Уржумский муниципальный район","33641000","Пиляндышевское","33641456","26595552","Адм.Пиляндыщевского с/п","4334006640","433401001","Оказание услуг в сфере водоснабжения","VS"]
[1034,"Кировская область","Уржумский муниципальный район","33641000","Рублевское","33641464","26492524","Администрация Рублевского с/п д.Адово","4334018325","433401001","Оказание услуг в сфере водоснабжения","VS"]
[1035,"Кировская область","Уржумский муниципальный район","33641000","Русско-Турекское","33641472","26493226","МУХ КП ЖКХ \"Водолей\"","4334008165","433401001","Оказание услуг в сфере водоснабжения","VS"]
[1036,"Кировская область","Уржумский муниципальный район","33641000","Савиновское","33641476","26428438","Администрация Савиновского с/п","4334006665","433401001","Оказание услуг в сфере водоснабжения","VS"]
[1037,"Кировская область","Уржумский муниципальный район","33641000","Савиновское","33641476","26755769","ООО \"Медведь\"","4334007860","433401001","Оказание услуг в сфере водоснабжения","VS"]
[1038,"Кировская область","Уржумский муниципальный район","33641000","Савиновское","33641476","27271163","ООО \"Медведь\"","4334007860","433401001","Оказание услуг в сфере водоснабжения","VS"]
[1039,"Кировская область","Уржумский муниципальный район","33641000","Уржумское","33641496","26372817","Администрация Андреевского с/п","4334006560","433401001","Оказание услуг в сфере водоснабжения","VS"]
[1040,"Кировская область","Уржумский муниципальный район","33641000","Уржумское","33641496","26493214","Администрация Лебедевского с/п","4334006672","433401001","Оказание услуг в сфере водоснабжения","VS"]
[1041,"Кировская область","Уржумский муниципальный район","33641000","Уржумское","33641496","26372816","Администрация Петряевского с/п","4334006513","433401001","Оказание услуг в сфере водоснабжения","VS"]
[1042,"Кировская область","Уржумский муниципальный район","33641000","Уржумское","33641496","26493222","Администрация Русско-Тимкинского с/п","4334006552","433401001","Оказание услуг в сфере водоснабжения","VS"]
[1043,"Кировская область","Уржумский муниципальный район","33641000","Уржумское","33641496","26493237","ИП Бердников В.Ф.","4334008253","433401001","Оказание услуг в сфере водоснабжения","VS"]
[1044,"Кировская область","Уржумский муниципальный район","33641000","Уржумское","33641496","26372815","КФХ \"Строитель\"","433400173483","433401001","Оказание услуг в сфере водоснабжения","VS"]
[1045,"Кировская область","Уржумский муниципальный район","33641000","Уржумское","33641496","26372821","КФХ им.Кирова","433400706484","433401001","Оказание услуг в сфере водоснабжения","VS"]
[1046,"Кировская область","Уржумский муниципальный район","33641000","Уржумское","33641496","30990317","МУ Администрация Уржумского сельского поселения Уржумского района Кировской области","4334009120","433401001","Оказание услуг в сфере водоснабжения","VS"]
[1047,"Кировская область","Уржумский муниципальный район","33641000","Уржумское","33641496","30990317","МУ Администрация Уржумского сельского поселения Уржумского района Кировской области","4334009120","433401001","Транспортировка воды","VS"]
[1048,"Кировская область","Уржумский муниципальный район","33641000","Уржумское","33641496","30438145","ООО \"Агрофирма Строитель\"","4334008253","433401001","Оказание услуг в сфере водоснабжения","VS"]
[1049,"Кировская область","Уржумский муниципальный район","33641000","Уржумское","33641496","30438145","ООО \"Агрофирма Строитель\"","4334008253","433401001","Транспортировка воды","VS"]
[1050,"Кировская область","Уржумский муниципальный район","33641000","Уржумское","33641496","26492526","ООО \"ЖКХ Андреевское\"","4334007877","433401001","Оказание услуг в сфере водоснабжения","VS"]
[1051,"Кировская область","Уржумский муниципальный район","33641000","Уржумское","33641496","26829545","ООО \"Надежда-хлеб НА\"","4334008408","433401001","Оказание услуг в сфере водоснабжения","VS"]
[1052,"Кировская область","Уржумский муниципальный район","33641000","Уржумское","33641496","27711949","ООО \"Рассвет\"","4334007348","433401001","Оказание услуг в сфере водоснабжения","VS"]
[1053,"Кировская область","Уржумский муниципальный район","33641000","Уржумское","33641496","27910778","ООО \"Родник\"","4334009056","433401001","Оказание услуг в сфере водоснабжения","VS"]
[1054,"Кировская область","Уржумский муниципальный район","33641000","Уржумское","33641496","26493218","СПК \"Им.Коминтерна\"","4334001240","433401001","Оказание услуг в сфере водоснабжения","VS"]
[1055,"Кировская область","Уржумский муниципальный район","33641000","Уржумское","33641496","26492672","СПК \"Плодовоягодное\"","4334000663","433401001","Оказание услуг в сфере водоснабжения","VS"]
[1056,"Кировская область","Уржумский муниципальный район","33641000","Шурминское","33641492","30833947","МУ администрация Шурминского сельского поселения Уржумского района Кировской области","4334006577","433401001","Оказание услуг в сфере водоснабжения","VS"]
[1057,"Кировская область","Уржумский муниципальный район","33641000","Шурминское","33641492","30833947","МУ администрация Шурминского сельского поселения Уржумского района Кировской области","4334006577","433401001","Транспортировка воды","VS"]
[1058,"Кировская область","Уржумский муниципальный район","33641000","Шурминское","33641492","26428573","ООО \"ЖКХ \"Шурминское\"","4334007926","433401001","Оказание услуг в сфере водоснабжения","VS"]
[1059,"Кировская область","Фаленский муниципальный район","33643000","Верхосунское","33643416","28159590","Администрация Верхосунского сельского поселения Фаленского района","4335002913","433501001","Оказание услуг в сфере водоснабжения","VS"]
[1060,"Кировская область","Фаленский муниципальный район","33643000","Верхосунское","33643416","26429191","СПК колхоз \"Победа\"","4335000257","433501001","Оказание услуг в сфере водоснабжения","VS"]
[1061,"Кировская область","Фаленский муниципальный район","33643000","Верхосунское","33643416","26493261","СПК колхоз \"Филейский\"","4335003057","433501001","Оказание услуг в сфере водоснабжения","VS"]
[1062,"Кировская область","Фаленский муниципальный район","33643000","Левановское","33643424","26372827","СПК Колхоз им.Ленина","4335000264","433501001","Оказание услуг в сфере водоснабжения","VS"]
[1063,"Кировская область","Фаленский муниципальный район","33643000","Медвеженское","33643428","26761524","ОАО \"Им.Кирова\"","4335003603","433501001","Оказание услуг в сфере водоснабжения","VS"]
[1064,"Кировская область","Фаленский муниципальный район","33643000","Медвеженское","33643428","26372825","СПК колхоз им.Кирова","4335000144","433501001","Оказание услуг в сфере водоснабжения","VS"]
[1065,"Кировская область","Фаленский муниципальный район","33643000","Медвеженское","33643428","26372828","СПК колхоз им.Свердлова","4335000289","433501001","Оказание услуг в сфере водоснабжения","VS"]
[1066,"Кировская область","Фаленский муниципальный район","33643000","Петруненское","33643444","31021289","Администрация Петруненского сельского поселения Фаленского района Кировской области","4335002938","433501001","Оказание услуг в сфере водоснабжения","VS"]
[1067,"Кировская область","Фаленский муниципальный район","33643000","Петруненское","33643444","31021289","Администрация Петруненского сельского поселения Фаленского района Кировской области","4335002938","433501001","Транспортировка воды","VS"]
[1068,"Кировская область","Фаленский муниципальный район","33643000","Петруненское","33643444","26372824","СПК колхоз \"Петруненский\"","4335000112","433501001","Оказание услуг в сфере водоснабжения","VS"]
[1069,"Кировская область","Фаленский муниципальный район","33643000","Поломское","33643448","26593869","СПК колхоз \"Поломский\"","4335000296","433501001","Оказание услуг в сфере водоснабжения","VS"]
[1070,"Кировская область","Фаленский муниципальный район","33643000","Поселок Фаленки","33643151","26372830","Администрация Николаевского с/п","4335002920","433501001","Оказание услуг в сфере водоснабжения","VS"]
[1071,"Кировская область","Фаленский муниципальный район","33643000","Поселок Фаленки","33643151","26808802","Горьковская дирекция по тепловодоснабжению структурное подразделение Центральной дирекции по тепловодоснабжению - филиала ОАО \"РЖД\"","7708503727","525745041","Оказание услуг в сфере водоснабжения","VS"]
[1072,"Кировская область","Фаленский муниципальный район","33643000","Поселок Фаленки","33643151","26808802","Горьковская дирекция по тепловодоснабжению структурное подразделение Центральной дирекции по тепловодоснабжению - филиала ОАО \"РЖД\"","7708503727","525745041","Транспортировка воды","VS"]
[1073,"Кировская область","Фаленский муниципальный район","33643000","Поселок Фаленки","33643151","26428587","ООО \"Водоканал\"","4335003579","433501001","Оказание услуг в сфере водоснабжения","VS"]
[1074,"Кировская область","Фаленский муниципальный район","33643000","Поселок Фаленки","33643151","28830331","ООО «Фаленский водоканал»","4335004011","433501001","Оказание услуг в сфере водоснабжения","VS"]
[1075,"Кировская область","Фаленский муниципальный район","33643000","Поселок Фаленки","33643151","26429214","СПК колхоз \"Искра\"","4335000169","433501001","Оказание услуг в сфере водоснабжения","VS"]
[1076,"Кировская область","Фаленский муниципальный район","33643000","Поселок Фаленки","33643151","26517798","Филиал ОАО \"РЖД\" ГЖД Кировский региональный центр дирекции по тепловодоснабжению","7708503727","435731037","Оказание услуг в сфере водоснабжения","VS"]
[1077,"Кировская область","Фаленский муниципальный район","33643000","Поселок Фаленки","33643151","26517798","Филиал ОАО \"РЖД\" ГЖД Кировский региональный центр дирекции по тепловодоснабжению","7708503727","435731037","Транспортировка воды","VS"]
[1078,"Кировская область","Фаленский муниципальный район","33643000","Талицкое","33643456","26493259","Агрофирма \"Верхобелье\"","4335003459","433501001","Оказание услуг в сфере водоснабжения","VS"]
[1079,"Кировская область","Фаленский муниципальный район","33643000","Талицкое","33643456","26755787","Администрация Талицкого с/п","4335002857","433501001","Оказание услуг в сфере водоснабжения","VS"]
[1080,"Кировская область","Фаленский муниципальный район","33643000","Талицкое","33643456","26493255","СПК \"Бельский\"","4335003040","433501001","Оказание услуг в сфере водоснабжения","VS"]
[1081,"Кировская область","Фаленский муниципальный район","33643000","Талицкое","33643456","26372831","СПК (колхоз) \"Вогульский\"","4335003064","433501001","Оказание услуг в сфере водоснабжения","VS"]
[1082,"Кировская область","Фаленский муниципальный район","33643000","Талицкое","33643456","26429224","СПК колхоз \"Верхобельский\"","4335000190","433501001","Оказание услуг в сфере водоснабжения","VS"]
[1083,"Кировская область","Фаленский муниципальный район","33643000","Талицкое","33643456","26493257","СПК колхоз \"Нагорский\"","4335000338","433501001","Оказание услуг в сфере водоснабжения","VS"]
[1084,"Кировская область","Фаленский муниципальный район","33643000","Талицкое","33643456","26372826","СПК колхоз \"Талицкий\"","4335000200","433501001","Оказание услуг в сфере водоснабжения","VS"]
[1085,"Кировская область","Шабалинский муниципальный район","33647000","Высокораменское","33647412","26372850","Администрация Высокораменского с/п","4337004289","433701001","Оказание услуг в сфере водоснабжения","VS"]
[1086,"Кировская область","Шабалинский муниципальный район","33647000","Высокораменское","33647412","26429459","ООО \"Теплосервис\"","4337004641","433701001","Оказание услуг в сфере водоснабжения","VS"]
[1087,"Кировская область","Шабалинский муниципальный район","33647000","Высокораменское","33647412","30371704","СПК-колхоз \"Приволье\"","4337003870","433701001","Оказание услуг в сфере водоснабжения","VS"]
[1088,"Кировская область","Шабалинский муниципальный район","33647000","Гостовское","33647416","26372849","Администрация Гостовского с/п","4337004271","433701001","Оказание услуг в сфере водоснабжения","VS"]
[1089,"Кировская область","Шабалинский муниципальный район","33647000","Гостовское","33647416","26429459","ООО \"Теплосервис\"","4337004641","433701001","Оказание услуг в сфере водоснабжения","VS"]
[1090,"Кировская область","Шабалинский муниципальный район","33647000","Гостовское","33647416","30371704","СПК-колхоз \"Приволье\"","4337003870","433701001","Оказание услуг в сфере водоснабжения","VS"]
[1091,"Кировская область","Шабалинский муниципальный район","33647000","Новотроицкое","33647448","28220854","Администрация Новотроицкого сельского поселения Шабалинского района","4337004240","433701001","Оказание услуг в сфере водоснабжения","VS"]
[1092,"Кировская область","Шабалинский муниципальный район","33647000","Новотроицкое","33647448","26429459","ООО \"Теплосервис\"","4337004641","433701001","Оказание услуг в сфере водоснабжения","VS"]
[1093,"Кировская область","Шабалинский муниципальный район","33647000","Новотроицкое","33647448","30345196","ООО «Сельскохозяйственное предприятие «Соловецкое»","4337004828","434501001","Оказание услуг в сфере водоснабжения","VS"]
[1094,"Кировская область","Шабалинский муниципальный район","33647000","Новотроицкое","33647448","26372844","СПК (колхоз) \"Родина\"","4337000407","433701001","Оказание услуг в сфере водоснабжения","VS"]
[1095,"Кировская область","Шабалинский муниципальный район","33647000","Новотроицкое","33647448","26429387","СПК - СА (колхоз) \"Им.Калинина\"","4337000781","433701001","Оказание услуг в сфере водоснабжения","VS"]
[1096,"Кировская область","Шабалинский муниципальный район","33647000","Новотроицкое","33647448","26429334","СПК - СА (колхоз) \"Новотроицкий\"","4337000157","433701001","Оказание услуг в сфере водоснабжения","VS"]
[1097,"Кировская область","Шабалинский муниципальный район","33647000","Новотроицкое","33647448","26372843","СПК СА колхоз \"Победа\"","4337000301","433701001","Оказание услуг в сфере водоснабжения","VS"]
[1098,"Кировская область","Шабалинский муниципальный район","33647000","Новотроицкое","33647448","30371704","СПК-колхоз \"Приволье\"","4337003870","433701001","Оказание услуг в сфере водоснабжения","VS"]
[1099,"Кировская область","Шабалинский муниципальный район","33647000","Поселок Ленинское","33647151","26651454","Вологодский региональный производственный участок Северной дирекции по тепловодоснабжению - структурное подразделение Центральной дирекции по тепловодоснабжению – филиала ОАО «РЖД»","7708503727","760432079","Оказание услуг в сфере водоснабжения","VS"]
[1100,"Кировская область","Шабалинский муниципальный район","33647000","Поселок Ленинское","33647151","26429459","ООО \"Теплосервис\"","4337004641","433701001","Оказание услуг в сфере водоснабжения","VS"]
[1101,"Кировская область","Шабалинский муниципальный район","33647000","Поселок Ленинское","33647151","28263344","ООО \"Шабалинское ЖКХ\"","4337004987","433701001","Оказание услуг в сфере водоснабжения","VS"]
[1102,"Кировская область","Шабалинский муниципальный район","33647000","Поселок Ленинское","33647151","26372845","СПК СА (колхоз) \"Маяк\"","4337000598","433701001","Оказание услуг в сфере водоснабжения","VS"]
[1103,"Кировская область","Шабалинский муниципальный район","33647000","Поселок Ленинское","33647151","30371704","СПК-колхоз \"Приволье\"","4337003870","433701001","Оказание услуг в сфере водоснабжения","VS"]
[1104,"Кировская область","Шабалинский муниципальный район","33647000","Поселок Ленинское","33647151","26836275","Северная Дирекция по тепловодоснабжению структурное подразделение Центральной дирекции по тепловодоснабжению - филиала ОАО \"РЖД\"","7708503727","760445028","Оказание услуг в сфере водоснабжения","VS"]
[1105,"Кировская область","Шабалинский муниципальный район","33647000","Поселок Ленинское","33647151","26836275","Северная Дирекция по тепловодоснабжению структурное подразделение Центральной дирекции по тепловодоснабжению - филиала ОАО \"РЖД\"","7708503727","760445028","Транспортировка воды","VS"]
[1106,"Кировская область","Шабалинский муниципальный район","33647000","Черновское","33647474","26372851","Администрация Черновского с/п","4337004320","433701001","Оказание услуг в сфере водоснабжения","VS"]
[1107,"Кировская область","Шабалинский муниципальный район","33647000","Черновское","33647474","26429459","ООО \"Теплосервис\"","4337004641","433701001","Оказание услуг в сфере водоснабжения","VS"]
[1108,"Кировская область","Шабалинский муниципальный район","33647000","Черновское","33647474","30371704","СПК-колхоз \"Приволье\"","4337003870","433701001","Оказание услуг в сфере водоснабжения","VS"]
[1109,"Кировская область","Шабалинский муниципальный район","33647000","Черновское","33647474","28156288","администрация Черновского сельского поселения Шабалинского района","4337004320","433701001","Оказание услуг в сфере водоснабжения","VS"]
[1110,"Кировская область","Юрьянский муниципальный район","33649000","Великорецкое","33649416","30438140","КОГОБУ для детей-сирот и детей, оставшихся без попечения родителей \"Детский дом-школа с. Великорецкре Юрьянского района\"","4338003425","433801001","Оказание услуг в сфере водоснабжения","VS"]
[1111,"Кировская область","Юрьянский муниципальный район","33649000","Великорецкое","33649416","30438140","КОГОБУ для детей-сирот и детей, оставшихся без попечения родителей \"Детский дом-школа с. Великорецкре Юрьянского района\"","4338003425","433801001","Транспортировка воды","VS"]
[1112,"Кировская область","Юрьянский муниципальный район","33649000","Великорецкое","33649416","26598713","МОУ \"Детский дом-интернат\"","4338003425","433801001","Оказание услуг в сфере водоснабжения","VS"]
[1113,"Кировская область","Юрьянский муниципальный район","33649000","Верховинское","33649420","26372854","ИП Коршунов М.М.","433800279389","433801001","Оказание услуг в сфере водоснабжения","VS"]
[1114,"Кировская область","Юрьянский муниципальный район","33649000","Верховинское","33649420","26372855","ИП Мельников А.Ф.","433800386197","433801001","Оказание услуг в сфере водоснабжения","VS"]
[1115,"Кировская область","Юрьянский муниципальный район","33649000","Верховинское","33649420","26357222","ООО \"Юрьянские коммунальные системы\"","4338007356","433801001","Оказание услуг в сфере водоснабжения","VS"]
[1116,"Кировская область","Юрьянский муниципальный район","33649000","Гирсовское","33649430","30895831","ООО \"Коммунальные системы\"","4345459160","434501001","Оказание услуг в сфере водоснабжения","VS"]
[1117,"Кировская область","Юрьянский муниципальный район","33649000","Гирсовское","33649430","30895831","ООО \"Коммунальные системы\"","4345459160","434501001","Транспортировка воды","VS"]
[1118,"Кировская область","Юрьянский муниципальный район","33649000","Загарское","33649432","26429509","ООО \"Зодиак\"","4338007412","433801001","Оказание услуг в сфере водоснабжения","VS"]
[1119,"Кировская область","Юрьянский муниципальный район","33649000","Ивановское","33649436","30933816","ООО \"Уют\"","4338009610","433801001","Оказание услуг в сфере водоснабжения","VS"]
[1120,"Кировская область","Юрьянский муниципальный район","33649000","Ивановское","33649436","30933816","ООО \"Уют\"","4338009610","433801001","Транспортировка воды","VS"]
[1121,"Кировская область","Юрьянский муниципальный район","33649000","Ивановское","33649436","26357222","ООО \"Юрьянские коммунальные системы\"","4338007356","433801001","Оказание услуг в сфере водоснабжения","VS"]
[1122,"Кировская область","Юрьянский муниципальный район","33649000","Медянское","33649448","30840273","Индивидуальный предприниматель Буйских Николай Геннадьевич","433800342908","отсутствует","Оказание услуг в сфере водоснабжения","VS"]
[1123,"Кировская область","Юрьянский муниципальный район","33649000","Медянское","33649448","30840273","Индивидуальный предприниматель Буйских Николай Геннадьевич","433800342908","отсутствует","Транспортировка воды","VS"]
[1124,"Кировская область","Юрьянский муниципальный район","33649000","Медянское","33649448","26357224","ООО \"ЖКХ Медяны\"","4338007444","433801001","Оказание услуг в сфере водоснабжения","VS"]
[1125,"Кировская область","Юрьянский муниципальный район","33649000","Медянское","33649448","28812271","ООО \"Энергия-Строй\"","4338008783","433801001","Оказание услуг в сфере водоснабжения","VS"]
[1126,"Кировская область","Юрьянский муниципальный район","33649000","Подгорцевское","33649455","26598744","Адм. Монастырского с/п","4338006810","433801001","Оказание услуг в сфере водоснабжения","VS"]
[1127,"Кировская область","Юрьянский муниципальный район","33649000","Подгорцевское","33649455","26372859","Администрация Высоковского с/п","4338007081","433801001","Оказание услуг в сфере водоснабжения","VS"]
[1128,"Кировская область","Юрьянский муниципальный район","33649000","Подгорцевское","33649455","30838130","МУП ЖКХ \"Подгорцы\"","4338009508","433801001","Оказание услуг в сфере водоснабжения","VS"]
[1129,"Кировская область","Юрьянский муниципальный район","33649000","Подгорцевское","33649455","30838130","МУП ЖКХ \"Подгорцы\"","4338009508","433801001","Транспортировка воды","VS"]
[1130,"Кировская область","Юрьянский муниципальный район","33649000","Подгорцевское","33649455","30352261","ООО \"ЛЕСТОРГ\"","4345408140","434501001","Оказание услуг в сфере водоснабжения","VS"]
[1131,"Кировская область","Юрьянский муниципальный район","33649000","Подгорцевское","33649455","30352261","ООО \"ЛЕСТОРГ\"","4345408140","434501001","Транспортировка воды","VS"]
[1132,"Кировская область","Юрьянский муниципальный район","33649000","Поселок Мурыгино","33649154","28941999","МУП «Мурыгинское жилищно-коммунальное хозяйство»","4338009346","433801001","Оказание услуг в сфере водоснабжения","VS"]
[1133,"Кировская область","Юрьянский муниципальный район","33649000","Поселок Мурыгино","33649154","28941999","МУП «Мурыгинское жилищно-коммунальное хозяйство»","4338009346","433801001","Транспортировка воды","VS"]
[1134,"Кировская область","Юрьянский муниципальный район","33649000","Поселок Мурыгино","33649154","28882438","ООО \"Кировская бумажная фабрика\"","4338009272","433801001","Оказание услуг в сфере водоснабжения","VS"]
[1135,"Кировская область","Юрьянский муниципальный район","33649000","Поселок Мурыгино","33649154","30990338","ООО \"Сокольский фанерный комбинат\"","7707375416","770701001","Оказание услуг в сфере водоснабжения","VS"]
[1136,"Кировская область","Юрьянский муниципальный район","33649000","Поселок Мурыгино","33649154","30990338","ООО \"Сокольский фанерный комбинат\"","7707375416","770701001","Транспортировка воды","VS"]
[1137,"Кировская область","Юрьянский муниципальный район","33649000","Поселок Юрья","33649151","30933816","ООО \"Уют\"","4338009610","433801001","Оказание услуг в сфере водоснабжения","VS"]
[1138,"Кировская область","Юрьянский муниципальный район","33649000","Поселок Юрья","33649151","30933816","ООО \"Уют\"","4338009610","433801001","Транспортировка воды","VS"]
[1139,"Кировская область","Юрьянский муниципальный район","33649000","Поселок Юрья","33649151","26357222","ООО \"Юрьянские коммунальные системы\"","4338007356","433801001","Оказание услуг в сфере водоснабжения","VS"]
[1140,"Кировская область","Яранский муниципальный район","33650000","Город Яранск","33650101","26372868","МУП \"Водоканал\"","4339008240","433901001","Оказание услуг в сфере водоснабжения","VS"]
[1141,"Кировская область","Яранский муниципальный район","33650000","Город Яранск","33650101","26429746","ООО \"Союз\"","4339008747","433901001","Оказание услуг в сфере водоснабжения","VS"]
[1142,"Кировская область","Яранский муниципальный район","33650000","Город Яранск","33650101","28870204","ООО «Возрождение»","4339010224","433901001","Оказание услуг в сфере водоснабжения","VS"]
[1143,"Кировская область","Яранский муниципальный район","33650000","Город Яранск","33650101","28870204","ООО «Возрождение»","4339010224","433901001","Транспортировка воды","VS"]
[1144,"Кировская область","Яранский муниципальный район","33650000","Знаменское","33650412","26372868","МУП \"Водоканал\"","4339008240","433901001","Оказание услуг в сфере водоснабжения","VS"]
[1145,"Кировская область","Яранский муниципальный район","33650000","Знаменское","33650412","28978305","ООО МП \"ВКХ\"","4339010457","433901001","Оказание услуг в сфере водоснабжения","VS"]
[1146,"Кировская область","Яранский муниципальный район","33650000","Кугальское","33650424","26429746","ООО \"Союз\"","4339008747","433901001","Оказание услуг в сфере водоснабжения","VS"]
[1147,"Кировская область","Яранский муниципальный район","33650000","Кугальское","33650424","28978305","ООО МП \"ВКХ\"","4339010457","433901001","Оказание услуг в сфере водоснабжения","VS"]
[1148,"Кировская область","Яранский муниципальный район","33650000","Кугушерское","33650426","26429746","ООО \"Союз\"","4339008747","433901001","Оказание услуг в сфере водоснабжения","VS"]
[1149,"Кировская область","Яранский муниципальный район","33650000","Кугушерское","33650426","28978305","ООО МП \"ВКХ\"","4339010457","433901001","Оказание услуг в сфере водоснабжения","VS"]
[1150,"Кировская область","Яранский муниципальный район","33650000","Никольское","33650440","28978305","ООО МП \"ВКХ\"","4339010457","433901001","Оказание услуг в сфере водоснабжения","VS"]
[1151,"Кировская область","Яранский муниципальный район","33650000","Никольское","33650440","26372865","СПК СА (колхоз) им.Калинина","4339001050","433901001","Оказание услуг в сфере водоснабжения","VS"]
[1152,"Кировская область","Яранский муниципальный район","33650000","Никулятское","33650448","26429746","ООО \"Союз\"","4339008747","433901001","Оказание услуг в сфере водоснабжения","VS"]
[1153,"Кировская область","Яранский муниципальный район","33650000","Никулятское","33650448","28978305","ООО МП \"ВКХ\"","4339010457","433901001","Оказание услуг в сфере водоснабжения","VS"]
[1154,"Кировская область","Яранский муниципальный район","33650000","Опытнопольское","33650452","26986472","ООО \"Спутник\"","4339009596","433900001","Оказание услуг в сфере водоснабжения","VS"]
[1155,"Кировская область","Яранский муниципальный район","33650000","Опытнопольское","33650452","26980735","ООО \"Спутник\"","4339009596","433901001","Оказание услуг в сфере водоснабжения","VS"]
[1156,"Кировская область","Яранский муниципальный район","33650000","Опытнопольское","33650452","26841005","ООО «Каскад»","4339009170","433901001","Оказание услуг в сфере водоснабжения","VS"]
[1157,"Кировская область","Яранский муниципальный район","33650000","Опытнопольское","33650452","28978305","ООО МП \"ВКХ\"","4339010457","433901001","Оказание услуг в сфере водоснабжения","VS"]
[1158,"Кировская область","Яранский муниципальный район","33650000","Салобелякское","33650468","28978305","ООО МП \"ВКХ\"","4339010457","433901001","Оказание услуг в сфере водоснабжения","VS"]
[1159,"Кировская область","Яранский муниципальный район","33650000","Салобелякское","33650468","28978305","ООО МП \"ВКХ\"","4339010457","433901001","Транспортировка воды","VS"]
[1160,"Кировская область","Яранский муниципальный район","33650000","Сердежское","33650472","26429746","ООО \"Союз\"","4339008747","433901001","Оказание услуг в сфере водоснабжения","VS"]
[1161,"Кировская область","Яранский муниципальный район","33650000","Сердежское","33650472","28978305","ООО МП \"ВКХ\"","4339010457","433901001","Оказание услуг в сфере водоснабжения","VS"]
[1162,"Кировская область","Яранский муниципальный район","33650000","Шкаланское","33650480","26429746","ООО \"Союз\"","4339008747","433901001","Оказание услуг в сфере водоснабжения","VS"]
[1163,"Кировская область","Яранский муниципальный район","33650000","Шкаланское","33650480","28978305","ООО МП \"ВКХ\"","4339010457","433901001","Оказание услуг в сфере водоснабжения","VS"]

{"sheet":"modClassifierValidate","index":20,"n_rows":0,"n_cols":0,"rows_kept":0,"cut":false,"hidden":true,"merged":[]}

{"sheet":"modHyp","index":21,"n_rows":0,"n_cols":0,"rows_kept":0,"cut":false,"hidden":true,"merged":[]}

{"sheet":"modList00","index":22,"n_rows":0,"n_cols":0,"rows_kept":0,"cut":false,"hidden":true,"merged":[]}

{"sheet":"modList01","index":23,"n_rows":0,"n_cols":0,"rows_kept":0,"cut":false,"hidden":true,"merged":[]}

{"sheet":"modList02","index":24,"n_rows":0,"n_cols":0,"rows_kept":0,"cut":false,"hidden":true,"merged":[]}

{"sheet":"modList03","index":25,"n_rows":0,"n_cols":0,"rows_kept":0,"cut":false,"hidden":true,"merged":[]}

{"sheet":"modList04","index":26,"n_rows":0,"n_cols":0,"rows_kept":0,"cut":false,"hidden":true,"merged":[]}

{"sheet":"modfrmDateChoose","index":27,"n_rows":0,"n_cols":0,"rows_kept":0,"cut":false,"hidden":true,"merged":[]}

{"sheet":"modComm","index":28,"n_rows":0,"n_cols":0,"rows_kept":0,"cut":false,"hidden":true,"merged":[]}

{"sheet":"modThisWorkbook","index":29,"n_rows":0,"n_cols":0,"rows_kept":0,"cut":false,"hidden":true,"merged":[]}

{"sheet":"REESTR_MO","index":30,"n_rows":365,"n_cols":4,"rows_kept":365,"cut":false,"hidden":true,"merged":[]}
["№","МР","МО","МО_ОКТМО"]
[1,"Арбажский муниципальный район","Арбажский муниципальный район","33602000"]
[2,"Арбажский муниципальный район","Арбажское","33602151"]
[3,"Арбажский муниципальный район","Верхотульское","33602416"]
[4,"Арбажский муниципальный район","Корминское","33602424"]
[5,"Арбажский муниципальный район","Сорвижское","33602440"]
[6,"Арбажский муниципальный район","Шембетское","33602452"]
[7,"Афанасьевский муниципальный район","Афанасьевский муниципальный район","33603000"]
[8,"Афанасьевский муниципальный район","Бисеровское","33603412"]
[9,"Афанасьевский муниципальный район","Борское","33603416"]
[10,"Афанасьевский муниципальный район","Гординское","33603428"]
[11,"Афанасьевский муниципальный район","Ичетовкинское","33603404"]
[12,"Афанасьевский муниципальный район","Лыткинское","33603448"]
[13,"Афанасьевский муниципальный район","Пашинское","33603456"]
[14,"Афанасьевский муниципальный район","Поселок Афанасьево","33603151"]
[15,"Белохолуницкий муниципальный район","Белохолуницкий муниципальный район","33605000"]
[16,"Белохолуницкий муниципальный район","Быдановское","33605408"]
[17,"Белохолуницкий муниципальный район","Всехсвятское","33605420"]
[18,"Белохолуницкий муниципальный район","Город Белая Холуница","33605101"]
[19,"Белохолуницкий муниципальный район","Гуренское","33605422"]
[20,"Белохолуницкий муниципальный район","Дубровское","33605423"]
[21,"Белохолуницкий муниципальный район","Климковское","33605428"]
[22,"Белохолуницкий муниципальный район","Подрезчихинское","33605436"]
[23,"Белохолуницкий муниципальный район","Поломское","33605440"]
[24,"Белохолуницкий муниципальный район","Прокопьевское","33605444"]
[25,"Белохолуницкий муниципальный район","Ракаловское","33605448"]
[26,"Белохолуницкий муниципальный район","Троицкое","33605456"]
[27,"Богородский муниципальный район","Богородский муниципальный район","33606000"]
[28,"Богородский муниципальный район","Ошланское","33606412"]
[29,"Богородский муниципальный район","Поселок Богородское","33606151"]
[30,"Верхнекамский муниципальный район","Верхнекамский муниципальный район","33607000"]
[31,"Верхнекамский муниципальный район","Город Кирс","33607101"]
[32,"Верхнекамский муниципальный район","Кайское","33607420"]
[33,"Верхнекамский муниципальный район","Камское","33607424"]
[34,"Верхнекамский муниципальный район","Лойнское","33607428"]
[35,"Верхнекамский муниципальный район","Поселок Лесной","33607154"]
[36,"Верхнекамский муниципальный район","Поселок Рудничный","33607160"]
[37,"Верхнекамский муниципальный район","Поселок Светлополянск","33607162"]
[38,"Верхнекамский муниципальный район","Созимское","33607434"]
[39,"Верхнекамский муниципальный район","Чусовского","33607436"]
[40,"Верхошижемский муниципальный район","Верхошижемский муниципальный район","33608000"]
[41,"Верхошижемский муниципальный район","Зоновское","33608416"]
[42,"Верхошижемский муниципальный район","Калачиговское","33608418"]
[43,"Верхошижемский муниципальный район","Косинское","33608420"]
[44,"Верхошижемский муниципальный район","Мякишинское","33608424"]
[45,"Верхошижемский муниципальный район","Поселок Верхошижемье","33608151"]
[46,"Верхошижемский муниципальный район","Пунгинское","33608428"]
[47,"Верхошижемский муниципальный район","Среднеивкинское","33608432"]
[48,"Верхошижемский муниципальный район","Сырдинское","33608436"]
[49,"Верхошижемский муниципальный район","Угорское","33608440"]
[50,"Вятские Поляны","Вятские Поляны","33704000"]
[51,"Вятскополянский муниципальный район","Вятскополянский муниципальный район","33610000"]
[52,"Вятскополянский муниципальный район","Город Сосновка","33610104"]
[53,"Вятскополянский муниципальный район","Гремячевское","33610404"]
[54,"Вятскополянский муниципальный район","Ершовское","33610406"]
[55,"Вятскополянский муниципальный район","Кулыжское","33610408"]
[56,"Вятскополянский муниципальный район","Новобурецкое","33610410"]
[57,"Вятскополянский муниципальный район","Омгинское","33610412"]
[58,"Вятскополянский муниципальный район","Поселок Красная Поляна","33610154"]
[59,"Вятскополянский муниципальный район","Слудское","33610416"]
[60,"Вятскополянский муниципальный район","Среднетойменское","33610420"]
[61,"Вятскополянский муниципальный район","Среднешунское","33610424"]
[62,"Вятскополянский муниципальный район","Старопинигерское","33610426"]
[63,"Вятскополянский муниципальный район","Усть-Люгинское","33610428"]
[64,"Вятскополянский муниципальный район","Чекашевское","33610432"]
[65,"Даровской муниципальный район","Верховонданское","33612412"]
[66,"Даровской муниципальный район","Вонданское","33612416"]
[67,"Даровской муниципальный район","Даровской муниципальный район","33612000"]
[68,"Даровской муниципальный район","Кобрское","33612432"]
[69,"Даровской муниципальный район","Лузянское","33612440"]
[70,"Даровской муниципальный район","Пиксурское","33612408"]
[71,"Даровской муниципальный район","Поселок Даровской","33612151"]
[72,"ЗАТО Первомайский","ЗАТО Первомайский","33787000"]
[73,"Зуевский муниципальный район","Город Зуевка","33614101"]
[74,"Зуевский муниципальный район","Зуевский муниципальный район","33614000"]
[75,"Зуевский муниципальный район","Зуевское","33614408"]
[76,"Зуевский муниципальный район","Кордяжское","33614412"]
[77,"Зуевский муниципальный район","Косинское","33614458"]
[78,"Зуевский муниципальный район","Мухинское","33614424"]
[79,"Зуевский муниципальный район","Октябрьское","33614428"]
[80,"Зуевский муниципальный район","Сезеневское","33614436"]
[81,"Зуевский муниципальный район","Семушинское","33614442"]
[82,"Зуевский муниципальный район","Соколовское","33614443"]
[83,"Зуевский муниципальный район","Сунское","33614448"]
[84,"Зуевский муниципальный район","Чепецкое","33614453"]
[85,"Кикнурский муниципальный район","Кикнурский муниципальный район","33616000"]
[86,"Кикнурский муниципальный район","Кикнурское","33616438"]
[87,"Кикнурский муниципальный район","Поселок Кикнур","33616151"]
[88,"Кильмезский муниципальный район","Большепорекское","33617440"]
[89,"Кильмезский муниципальный район","Бурашевское","33617404"]
[90,"Кильмезский муниципальный район","Вихаревское","33617408"]
[91,"Кильмезский муниципальный район","Дамаскинское","33617412"]
[92,"Кильмезский муниципальный район","Зимнякское","33617418"]
[93,"Кильмезский муниципальный район","Кильмезский муниципальный район","33617000"]
[94,"Кильмезский муниципальный район","Малокильмезское","33617424"]
[95,"Кильмезский муниципальный район","Моторское","33617428"]
[96,"Кильмезский муниципальный район","Паскинское","33617436"]
[97,"Кильмезский муниципальный район","Поселок Кильмезь","33617151"]
[98,"Кильмезский муниципальный район","Рыбно-Ватажское","33617444"]
[99,"Кильмезский муниципальный район","Селинское","33617448"]
[100,"Кильмезский муниципальный район","Чернушское","33617456"]
[101,"Киров","Киров","33701000"]
[102,"Кирово-Чепецк","Кирово-Чепецк","33707000"]
[103,"Кирово-Чепецкий муниципальный район","Бурмакинское","33618408"]
[104,"Кирово-Чепецкий муниципальный район","Кирово-Чепецкий муниципальный район","33618000"]
[105,"Кирово-Чепецкий муниципальный район","Коныпское","33618418"]
[106,"Кирово-Чепецкий муниципальный район","Кстининское","33618420"]
[107,"Кирово-Чепецкий муниципальный район","Мокрецовское","33618424"]
[108,"Кирово-Чепецкий муниципальный район","Пасеговское","33618428"]
[109,"Кирово-Чепецкий муниципальный район","Поломское","33618432"]
[110,"Кирово-Чепецкий муниципальный район","Просницкое","33618412"]
[111,"Кирово-Чепецкий муниципальный район","Селезеневское","33618434"]
[112,"Кирово-Чепецкий муниципальный район","Фатеевское","33618436"]
[113,"Кирово-Чепецкий муниципальный район","Федяковское","33618442"]
[114,"Кирово-Чепецкий муниципальный район","Филипповское","33618444"]
[115,"Кирово-Чепецкий муниципальный район","Чепецкое","33618448"]
[116,"Кирово-Чепецкий муниципальный район","Чувашевское","33618452"]
[117,"Котельнич","Котельнич","33710000"]
[118,"Котельничский муниципальный район","Александровское","33619464"]
[119,"Котельничский муниципальный район","Биртяевское","33619404"]
[120,"Котельничский муниципальный район","Вишкильское","33619432"]
[121,"Котельничский муниципальный район","Ежихинское","33619416"]
[122,"Котельничский муниципальный район","Зайцевское","33619428"]
[123,"Котельничский муниципальный район","Карпушинское","33619440"]
[124,"Котельничский муниципальный район","Комсомольское","33619452"]
[125,"Котельничский муниципальный район","Котельничский муниципальный район","33619000"]
[126,"Котельничский муниципальный район","Котельничское","33619456"]
[127,"Котельничский муниципальный район","Красногорское","33619488"]
[128,"Котельничский муниципальный район","Макарьевское","33619460"]
[129,"Котельничский муниципальный район","Молотниковское","33619436"]
[130,"Котельничский муниципальный район","Морозовское","33619468"]
[131,"Котельничский муниципальный район","Покровское","33619480"]
[132,"Котельничский муниципальный район","Родичевское","33619424"]
[133,"Котельничский муниципальный район","Светловское","33619481"]
[134,"Котельничский муниципальный район","Спасское","33619484"]
[135,"Котельничский муниципальный район","Сретенское","33619486"]
[136,"Котельничский муниципальный район","Чистопольское","33619490"]
[137,"Котельничский муниципальный район","Юбилейное","33619448"]
[138,"Котельничский муниципальный район","Юрьевское","33619494"]
[139,"Куменский муниципальный район","Березниковское","33620408"]
[140,"Куменский муниципальный район","Большеперелазское","33620440"]
[141,"Куменский муниципальный район","Верхобыстрицкое","33620416"]
[142,"Куменский муниципальный район","Вичевское","33620420"]
[143,"Куменский муниципальный район","Вожгальское","33620421"]
[144,"Куменский муниципальный район","Кумёнское","33620428"]
[145,"Куменский муниципальный район","Куменский муниципальный район","33620000"]
[146,"Куменский муниципальный район","Поселок Кумены","33620151"]
[147,"Куменский муниципальный район","Поселок Нижнеивкино","33620154"]
[148,"Куменский муниципальный район","Речное","33620444"]
[149,"Лебяжский муниципальный район","Ветошкинское","33621412"]
[150,"Лебяжский муниципальный район","Лажское","33621444"]
[151,"Лебяжский муниципальный район","Лебяжский муниципальный район","33621000"]
[152,"Лебяжский муниципальный район","Михеевское","33621404"]
[153,"Лебяжский муниципальный район","Поселок Лебяжье","33621151"]
[154,"Лузский муниципальный район","Город Луза","33622101"]
[155,"Лузский муниципальный район","Лузский муниципальный район","33622000"]
[156,"Лузский муниципальный район","Папуловское","33622428"]
[157,"Лузский муниципальный район","Поселок Лальск","33622154"]
[158,"Малмыжский муниципальный район","Аджимское","33623404"]
[159,"Малмыжский муниципальный район","Арыкское","33623408"]
[160,"Малмыжский муниципальный район","Большекитякское","33623412"]
[161,"Малмыжский муниципальный район","Город Малмыж","33623101"]
[162,"Малмыжский муниципальный район","Каксинвайское","33623424"]
[163,"Малмыжский муниципальный район","Калининское","33623428"]
[164,"Малмыжский муниципальный район","Константиновское","33623432"]
[165,"Малмыжский муниципальный район","Малмыжский муниципальный район","33623000"]
[166,"Малмыжский муниципальный район","Мари-Малмыжское","33623436"]
[167,"Малмыжский муниципальный район","Мелетское","33623440"]
[168,"Малмыжский муниципальный район","Новосмаильское","33623444"]
[169,"Малмыжский муниципальный район","Плотбищенское","33623448"]
[170,"Малмыжский муниципальный район","Преображенское","33623452"]
[171,"Малмыжский муниципальный район","Ральниковское","33623456"]
[172,"Малмыжский муниципальный район","Рожкинское","33623460"]
[173,"Малмыжский муниципальный район","Савальское","33623464"]
[174,"Малмыжский муниципальный район","Староирюкское","33623470"]
[175,"Малмыжский муниципальный район","Старотушкинское","33623472"]
[176,"Малмыжский муниципальный район","Тат-Верх-Гоньбинское","33623476"]
[177,"Мурашинский муниципальный район","Город Мураши","33624101"]
[178,"Мурашинский муниципальный район","Мурашинский муниципальный район","33624000"]
[179,"Мурашинский муниципальный район","Мурашинское","33624435"]
[180,"Нагорский муниципальный район","Кобринское","33625416"]
[181,"Нагорский муниципальный район","Метелевское","33625424"]
[182,"Нагорский муниципальный район","Мулинское","33625428"]
[183,"Нагорский муниципальный район","Нагорский муниципальный район","33625000"]
[184,"Нагорский муниципальный район","Поселок Нагорск","33625151"]
[185,"Нагорский муниципальный район","Синегорское","33625444"]
[186,"Нагорский муниципальный район","Чеглаковское","33625432"]
[187,"Немский муниципальный район","Архангельское","33626404"]
[188,"Немский муниципальный район","Ильинское","33626412"]
[189,"Немский муниципальный район","Немский муниципальный район","33626000"]
[190,"Немский муниципальный район","Немское городское поселение","33626151"]
[191,"Немский муниципальный район","Немское сельское поселение","33626424"]
[192,"Нолинский муниципальный район","Город Нолинск","33627101"]
[193,"Нолинский муниципальный район","Красноярское","33627418"]
[194,"Нолинский муниципальный район","Кырчанское","33627420"]
[195,"Нолинский муниципальный район","Лудянское","33627428"]
[196,"Нолинский муниципальный район","Медведское","33627430"]
[197,"Нолинский муниципальный район","Нолинский муниципальный район","33627000"]
[198,"Нолинский муниципальный район","Перевозское","33627436"]
[199,"Нолинский муниципальный район","Поселок Аркуль","33627152"]
[200,"Нолинский муниципальный район","Рябиновское","33627432"]
[201,"Нолинский муниципальный район","Татауровское","33627452"]
[202,"Нолинский муниципальный район","Шварихинское","33627456"]
[203,"Омутнинский муниципальный район","Белореченское","33628410"]
[204,"Омутнинский муниципальный район","Вятское","33628412"]
[205,"Омутнинский муниципальный район","Город Омутнинск","33628101"]
[206,"Омутнинский муниципальный район","Залазнинское","33628420"]
[207,"Омутнинский муниципальный район","Леснополянское","33628424"]
[208,"Омутнинский муниципальный район","Омутнинский муниципальный район","33628000"]
[209,"Омутнинский муниципальный район","Поселок Восточный","33628155"]
[210,"Омутнинский муниципальный район","Поселок Песковка","33628162"]
[211,"Омутнинский муниципальный район","Чернохолуницкое","33628430"]
[212,"Омутнинский муниципальный район","Шахровское","33628432"]
[213,"Опаринский муниципальный район","Альмежское","33629404"]
[214,"Опаринский муниципальный район","Вазюкское","33629408"]
[215,"Опаринский муниципальный район","Заринское","33629414"]
[216,"Опаринский муниципальный район","Маромицкое","33629424"]
[217,"Опаринский муниципальный район","Опаринский муниципальный район","33629000"]
[218,"Опаринский муниципальный район","Поселок Опарино","33629151"]
[219,"Опаринский муниципальный район","Речное","33629434"]
[220,"Опаринский муниципальный район","Стрельское","33629435"]
[221,"Оричевский муниципальный район","Адышевское","33630404"]
[222,"Оричевский муниципальный район","Быстрицкое","33630406"]
[223,"Оричевский муниципальный район","Гарское","33630412"]
[224,"Оричевский муниципальный район","Истобенское","33630416"]
[225,"Оричевский муниципальный район","Коршикское","33630420"]
[226,"Оричевский муниципальный район","Кучелаповское","33630424"]
[227,"Оричевский муниципальный район","Лёвинское","33630153"]
[228,"Оричевский муниципальный район","Лугоболотное","33630426"]
[229,"Оричевский муниципальный район","Мирнинское","33630154"]
[230,"Оричевский муниципальный район","Оричевский муниципальный район","33630000"]
[231,"Оричевский муниципальный район","Оричевское","33630151"]
[232,"Оричевский муниципальный район","Пищальское","33630436"]
[233,"Оричевский муниципальный район","Пустощенское","33630440"]
[234,"Оричевский муниципальный район","Спас-Талицкое","33630444"]
[235,"Оричевский муниципальный район","Стрижевское","33630157"]
[236,"Оричевский муниципальный район","Суводское","33630448"]
[237,"Оричевский муниципальный район","Торфяное","33630450"]
[238,"Оричевский муниципальный район","Усовское","33630452"]
[239,"Оричевский муниципальный район","Шалеговское","33630456"]
[240,"Орловский муниципальный район","Орловский муниципальный район","33645000"]
[241,"Орловский муниципальный район","Орловское городское поселение","33645101"]
[242,"Орловский муниципальный район","Орловское сельское поселение","33645420"]
[243,"Пижанский муниципальный район","Ахмановское","33631404"]
[244,"Пижанский муниципальный район","Безводнинское","33631408"]
[245,"Пижанский муниципальный район","Войское","33631412"]
[246,"Пижанский муниципальный район","Ижевское","33631416"]
[247,"Пижанский муниципальный район","Обуховское","33631436"]
[248,"Пижанский муниципальный район","Пижанский муниципальный район","33631000"]
[249,"Пижанский муниципальный район","Пижанское","33631151"]
[250,"Подосиновский муниципальный район","Демьяновское городское поселение","33632154"]
[251,"Подосиновский муниципальный район","Пинюгское городское поселение","33632157"]
[252,"Подосиновский муниципальный район","Подосиновский муниципальный район","33632000"]
[253,"Подосиновский муниципальный район","Подосиновское городское поселение","33632151"]
[254,"Подосиновский муниципальный район","Пушемское","33632424"]
[255,"Подосиновский муниципальный район","Утмановское","33632428"]
[256,"Подосиновский муниципальный район","Яхреньгское","33632440"]
[257,"Санчурский муниципальный район","Городищенское","33633418"]
[258,"Санчурский муниципальный район","Корляковское","33633432"]
[259,"Санчурский муниципальный район","Люмпанурское","33633444"]
[260,"Санчурский муниципальный район","Матвинурское","33633448"]
[261,"Санчурский муниципальный район","Поселок Санчурск","33633151"]
[262,"Санчурский муниципальный район","Санчурский муниципальный район","33633000"]
[263,"Санчурский муниципальный район","Сметанинское","33633452"]
[264,"Санчурский муниципальный район","Шишовское","33633456"]
[265,"Свечинский муниципальный район","Поселок Свеча","33634151"]
[266,"Свечинский муниципальный район","Свечинский муниципальный район","33634000"]
[267,"Свечинский муниципальный район","Свечинское","33634448"]
[268,"Слободской","Слободской","33713000"]
[269,"Слободской муниципальный район","Бобинское","33635402"]
[270,"Слободской муниципальный район","Денисовское","33635404"]
[271,"Слободской муниципальный район","Закаринское","33635412"]
[272,"Слободской муниципальный район","Ильинское","33635416"]
[273,"Слободской муниципальный район","Каринское","33635424"]
[274,"Слободской муниципальный район","Ленинское","33635432"]
[275,"Слободской муниципальный район","Озерницкий","33635436"]
[276,"Слободской муниципальный район","Октябрьское","33635440"]
[277,"Слободской муниципальный район","Поселок Вахруши","33635153"]
[278,"Слободской муниципальный район","Светозаревское","33635446"]
[279,"Слободской муниципальный район","Слободской муниципальный район","33635000"]
[280,"Слободской муниципальный район","Стуловское","33635456"]
[281,"Слободской муниципальный район","Шестаковское","33635460"]
[282,"Слободской муниципальный район","Шиховское","33635452"]
[283,"Советский муниципальный район","Город Советск","33636101"]
[284,"Советский муниципальный район","Греховское","33636460"]
[285,"Советский муниципальный район","Зашижемское","33636420"]
[286,"Советский муниципальный район","Ильинское","33636424"]
[287,"Советский муниципальный район","Кичминское","33636428"]
[288,"Советский муниципальный район","Колянурское","33636436"]
[289,"Советский муниципальный район","Лесниковское","33636440"]
[290,"Советский муниципальный район","Лошкаринский","33636444"]
[291,"Советский муниципальный район","Мокинское","33636448"]
[292,"Советский муниципальный район","Родыгинское","33636464"]
[293,"Советский муниципальный район","Советский муниципальный район","33636000"]
[294,"Сунский муниципальный район","Большевитское","33637428"]
[295,"Сунский муниципальный район","Кокуйское","33637406"]
[296,"Сунский муниципальный район","Курчумское","33637412"]
[297,"Сунский муниципальный район","Поселок Суна","33637151"]
[298,"Сунский муниципальный район","Сунский муниципальный район","33637000"]
[299,"Тужинский муниципальный район","Грековское","33638416"]
[300,"Тужинский муниципальный район","Михайловское","33638428"]
[301,"Тужинский муниципальный район","Ныровское","33638436"]
[302,"Тужинский муниципальный район","Пачинское","33638440"]
[303,"Тужинский муниципальный район","Поселок Тужа","33638151"]
[304,"Тужинский муниципальный район","Тужинский муниципальный район","33638000"]
[305,"Унинский муниципальный район","Астраханское","33640402"]
[306,"Унинский муниципальный район","Елганское","33640412"]
[307,"Унинский муниципальный район","Канахинское","33640414"]
[308,"Унинский муниципальный район","Комаровское","33640420"]
[309,"Унинский муниципальный район","Малополомское","33640424"]
[310,"Унинский муниципальный район","Порезское","33640428"]
[311,"Унинский муниципальный район","Поселок Уни","33640151"]
[312,"Унинский муниципальный район","Сардыкское","33640436"]
[313,"Унинский муниципальный район","Сосновское","33640440"]
[314,"Унинский муниципальный район","Унинский муниципальный район","33640000"]
[315,"Уржумский муниципальный район","Байсинское","33641408"]
[316,"Уржумский муниципальный район","Большеройское","33641416"]
[317,"Уржумский муниципальный район","Буйское","33641420"]
[318,"Уржумский муниципальный район","Город Уржум","33641101"]
[319,"Уржумский муниципальный район","Донауровское","33641480"]
[320,"Уржумский муниципальный район","Лазаревское","33641432"]
[321,"Уржумский муниципальный район","Лопьяльское","33641440"]
[322,"Уржумский муниципальный район","Петровское","33641452"]
[323,"Уржумский муниципальный район","Пиляндышевское","33641456"]
[324,"Уржумский муниципальный район","Рублевское","33641464"]
[325,"Уржумский муниципальный район","Русско-Турекское","33641472"]
[326,"Уржумский муниципальный район","Савиновское","33641476"]
[327,"Уржумский муниципальный район","Уржумский муниципальный район","33641000"]
[328,"Уржумский муниципальный район","Уржумское","33641496"]
[329,"Уржумский муниципальный район","Шурминское","33641492"]
[330,"Фаленский муниципальный район","Верхосунское","33643416"]
[331,"Фаленский муниципальный район","Левановское","33643424"]
[332,"Фаленский муниципальный район","Медвеженское","33643428"]
[333,"Фаленский муниципальный район","Петруненское","33643444"]
[334,"Фаленский муниципальный район","Поломское","33643448"]
[335,"Фаленский муниципальный район","Поселок Фаленки","33643151"]
[336,"Фаленский муниципальный район","Талицкое","33643456"]
[337,"Фаленский муниципальный район","Фаленский муниципальный район","33643000"]
[338,"Шабалинский муниципальный район","Высокораменское","33647412"]
[339,"Шабалинский муниципальный район","Гостовское","33647416"]
[340,"Шабалинский муниципальный район","Новотроицкое","33647448"]
[341,"Шабалинский муниципальный район","Поселок Ленинское","33647151"]
[342,"Шабалинский муниципальный район","Черновское","33647474"]
[343,"Шабалинский муниципальный район","Шабалинский муниципальный район","33647000"]
[344,"Юрьянский муниципальный район","Великорецкое","33649416"]
[345,"Юрьянский муниципальный район","Верховинское","33649420"]
[346,"Юрьянский муниципальный район","Гирсовское","33649430"]
[347,"Юрьянский муниципальный район","Загарское","33649432"]
[348,"Юрьянский муниципальный район","Ивановское","33649436"]
[349,"Юрьянский муниципальный район","Медянское","33649448"]
[350,"Юрьянский муниципальный район","Подгорцевское","33649455"]
[351,"Юрьянский муниципальный район","Поселок Мурыгино","33649154"]
[352,"Юрьянский муниципальный район","Поселок Юрья","33649151"]
[353,"Юрьянский муниципальный район","Юрьянский муниципальный район","33649000"]
[354,"Яранский муниципальный район","Город Яранск","33650101"]
[355,"Яранский муниципальный район","Знаменское","33650412"]
[356,"Яранский муниципальный район","Кугальское","33650424"]
[357,"Яранский муниципальный район","Кугушерское","33650426"]
[358,"Яранский муниципальный район","Никольское","33650440"]
[359,"Яранский муниципальный район","Никулятское","33650448"]
[360,"Яранский муниципальный район","Опытнопольское","33650452"]
[361,"Яранский муниципальный район","Салобелякское","33650468"]
[362,"Яранский муниципальный район","Сердежское","33650472"]
[363,"Яранский муниципальный район","Шкаланское","33650480"]
[364,"Яранский муниципальный район","Яранский муниципальный район","33650000"]

{"sheet":"modfrmReestrMR","index":31,"n_rows":0,"n_cols":0,"rows_kept":0,"cut":false,"hidden":true,"merged":[]}

{"sheet":"modfrmRegion","index":32,"n_rows":0,"n_cols":0,"rows_kept":0,"cut":false,"hidden":true,"merged":[]}

{"sheet":"modfrmCheckUpdates","index":33,"n_rows":0,"n_cols":0,"rows_kept":0,"cut":false,"hidden":true,"merged":[]}